Workbook

Sheet INDEX
A1: INDEX | B1: s
A2: Model Specs
A3: 1. Information Sheet
A4: 2. Current Tariff Schedule
A5: 3. Continuity Schedule
A6: 4. Billing Det. for Def-Var
A7: 5. Allocating Def-Var Balances
A8: 6. GA Calculation
A9: 6A. GA Allocation_Class A
A10: 6B. GA Allocation_new Class B
A11: 7. CBR Calculation | B11: PowerStream service area specific
A12: 7A. CBR Allocation_Class A
A13: 7B. CBR Allocation_new Class B
A14: 8. Calculation of Def-Var RR
A15: 9. STS-Tax Change
A16: 10. Shared Tax - RR
A17: 11. RTSR - Current Rates
A18: 12. RTSR-UTRs & Sub-Tx
A19: 13. RTSR-Historic Wholesale
A20: 14. RTSR-Current Wholesale
A21: 15. RTSR-Forecast Wholesale
A22: 16. RTSR-Rates to Forecast
A23: 17. Rev2Cost-GDPIPI
A24: 18. Regulatory Charges
A25: 19. Additional Rates
A26: 20. Final Tariff Schedule
A27: 21. Bill Impacts
A28: RATES
A29: BoD Reporting
A30: FHA Impact

Sheet Model Specs
A1: Back to Index | K1: Lists:
B2: Model Specifications
K3: Yes
B4: Utility | C4: Alectra - PowerStream | K4: No
B6: Applying for Rates Effective | C6: 2019-01-01 | K6: kWh
K7: kW
K8: kVA
B9: Line Loss Factor | C9: 1.0369
K10: Alectra - PowerStream
K11: Alectra - Enersource
K12: Alectra - Horizon Utilites
K13: Alectra - Hydro One Brampton
C14: Rate Classes (select from the List)
B15: =IFERROR(VLOOKUP(C15,$K$16:$L$30,2,FALSE),"") -> RES | C15: RESIDENTIAL SERVICE CLASSIFICATION
B16: GSL | C16: GENERAL SERVICE LESS THAN 50 kW SERVICE CLASSIFICATION | K16: RESIDENTIAL SERVICE CLASSIFICATION | L16: RES
B17: GS50 | C17: GENERAL SERVICE 50 to 4,999 kW SERVICE CLASSIFICATION | K17: GENERAL SERVICE LESS THAN 50 kW SERVICE CLASSIFICATION | L17: GSL
B18: LU | C18: LARGE USE SERVICE CLASSIFICATION | K18: GENERAL SERVICE 50 to 499 kW SERVICE CLASSIFICATION | L18: GS50_499
B19: USL | C19: UNMETERED SCATTERED LOAD SERVICE CLASSIFICATION | K19: GENERAL SERVICE 50 to 699 KW SERVICE CLASSIFICATION | L19: GS50_699
B20: SB | C20: STANDBY POWER SERVICE CLASSIFICATION | K20: GENERAL SERVICE 50 to 4,999 kW SERVICE CLASSIFICATION | L20: GS50
B21: SEN | C21: SENTINEL LIGHTING SERVICE CLASSIFICATION | K21: GENERAL SERVICE 500 to 4,999 kW SERVICE CLASSIFICATION | L21: GS500
B22: SL | C22: STREET LIGHTING SERVICE CLASSIFICATION | K22: GENERAL SERVICE 700 to 4,999 KW SERVICE CLASSIFICATION | L22: GS700
K23: LARGE USE SERVICE CLASSIFICATION | L23: LU
K24: UNMETERED SCATTERED LOAD SERVICE CLASSIFICATION | L24: USL
K25: STREET LIGHTING SERVICE CLASSIFICATION | L25: SL
K26: STANDBY POWER SERVICE CLASSIFICATION | L26: SB
K27: SENTINEL LIGHTING SERVICE CLASSIFICATION | L27: SEN
K28: EMBEDDED DISTRIBUTOR SERVICE CLASSIFICATION | L28: EMB
K29: DISTRIBUTED GENERATION [DGEN] SERVICE CLASSIFICATION | L29: DG
K30: ENERGY FROM WASTE SERVICE CLASSIFICATION | L30: WST
B34: Have one or more Class A customers | C34: Yes

Sheet 1. Information Sheet
A1: Back to Index | V1: a
B2: INCENTIVE REGULATION MODEL FOR 2019 FILERS
N12: Version | O12: 1
F14: Utility Name | G14: Alectra - PowerStream
F16: Service Territory
F18: Assigned EB Number | G18: EB-2018-0016
F20: Name of Contact and Title | G20: Indy J. Butany-DeSouza, Vice-President, Regulatory Affairs
F22: Phone Number | G22: 905-821-5727
F24: Email Address | G24: indy.butany@alectrautilities.com
F26: We are applying for rates effective | G26: 2019-01-01
F28: Rate-Setting Method | G28: Price Cap IR
B30: Please indicate in which Rate Year the Group 1 accounts were last cleared1 | G30: 2018
B32: Please indicate the last Cost of Service Re-Basing Year | G32: 2017
C35: Notes
D37: Pale gray cells represent input cells.
D39: Pale blue cells represent drop-down lists.
D41: White cells contain fixed values, automatically generated values or formulae.
B44: Note: 1. Rate year of application

Sheet 2. Current Tariff Schedule
A1: Back to Index
B2: =+'1. Information Sheet'!B2 -> INCENTIVE REGULATION MODEL FOR 2019 FILERS
B11: Alectra Utilities Corporation
B12: PowerStream Rate Zone
B13: TARIFF OF RATES AND CHARGES
B14: Effective Date January 1, 2018
B15: Implementation Date May 1, 2018
B17: This schedule supersedes and replaces all previously
B18: approved schedules of Rates, Charges and Loss Factors
D19: EB-2017-0024
B21: RESIDENTIAL SERVICE CLASSIFICATION
B23: This classification refers to an account taking electricity at 750 volts or less where the electricity is used exclusively in a separately metered living accommodation. Customers shall be residing in single-dwelling units that consist of a detached house or one unit of a semi-detached, duplex, triplex or quadruplex house, with a residential zoning. Separately metered dwellings within a town house complex or apartment building also qualify as residential customers. Multi-unit residential establishments such as apartment buildings supplied through one service (bulk metered) shall be classified as general service. Class B consumers are defined in accordance with O. Reg. 429/04. Further servicing details are available in the distributor’s Conditions of Service.
B25: APPLICATION
B27: The application of these rates and charges shall be in accordance with the Licence of the Distributor and any Code or Order of the Ontario Energy Board, and amendments thereto as approved by the Ontario Energy Board, which may be applicable to the administration of this schedule.
B29: No rates and charges for the distribution of electricity and charges to meet the costs of any work or service done or furnished for the purpose of the distribution of electricity shall be made except as permitted by this schedule, unless required by the Distributor’s Licence or a Code or Order of the Ontario Energy Board, and amendments thereto as approved by the Ontario Energy Board, or as specified herein.
B31: Unless specifically noted, this schedule does not contain any charges for the electricity commodity, be it under the Regulated Price Plan, a contract with a retailer or the wholesale market price, as applicable. In addition, the charges in the MONTHLY RATES AND CHARGES – Regulatory Component of this schedule do not apply to a customer that is an embedded wholesale market participant.
B33: It should be noted that this schedule does not list any charges, assessments or credits that are required by law to be invoiced by a distributor and that are not subject to Ontario Energy Board approval, such as the Debt Retirement Charge, the Global Adjustment and the HST.
B35: MONTHLY RATES AND CHARGES – Delivery Component
A37: R_F | B37: Service Charge | C37: $ | D37: 21.63
A38: R_SME | B38: Smart Metering Entity Charge - effective until December 31, 2022 | C38: $ | D38: 0.57
A39: R_2RAL16 | B39: Rate Rider for Disposition of Group 2 Deferral/Variance Accounts (2016) – effective until September 30, 2018 | C39: $ | D39: 0.12
A40: R_SMA16 | B40: Rate Rider for Recovery of Stranded Meter Assets (2016) – effective until September 30, 2018 | C40: $ | D40: 0.06
B41: Rate Rider for Recovery of ICM (2018) - in effect from May 1, 2018 until the effective date of the next cost of service based rate order | C41: $ | D41: 0.11
B42: Rate Rider for Recovery of 2018 Foregone Revenue - effective until December 31, 2018 | C42: $ | D42: 0.14
A43: R_V | B43: Distribution Volumetric Rate | C43: $/kWh | D43: 0.0088
A44: R_LV | B44: Low Voltage Service Rate | C44: $/kWh | D44: 0.0005
B45: Rate Rider for Disposition of Global Adjustment Account (2016) - effective until September 30, 2018 Applicable only for Non-RPP Customers | C45: $/kWh | D45: 0.0062
B46: Rate Rider for Disposition of Global Adjustment Account (2018) - effective until April 30, 2019 Applicable only for Non-RPP Customers | C46: $/kWh | D46: 0.0004
B47: Rate Rider for Disposition of Deferral/Variance Accounts (2016) – effective until September 30, 2018 | C47: $/kWh | D47: 0.0003
B48: Rate Rider for Disposition of Deferral/Variance Account – Power (2016) – effective until September 30, 2018 | C48: $/kWh | D48: -0.0003
B49: Rate Rider for Disposition of Deferral/Variance Accounts (2018) - effective until April 30, 2019 | C49: $/kWh | D49: -0.003
B50: Rate Rider for Disposition of Capacity Based Recovery Account (2018) - effective until April 30, 2019 Applicable Only for Class B Customers | C50: $/kWh | D50: 0.0002
A51: R_TN | B51: Retail Transmission Rate - Network Service Rate | C51: $/kWh | D51: 0.0075
A52: R_TC | B52: Retail Transmission Rate - Line and Transformation Connection Service Rate | C52: $/kWh | D52: 0.004
B54: MONTHLY RATES AND CHARGES – Regulatory Component
B56: Wholesale Market Service Rate (WMS) - not including CBR | C56: $/kWh | D56: 0.0032
B57: Capacity Based Recovery (CBR) - Applicable for Class B Customers | C57: $/kWh | D57: 0.0004
B58: Rural or Remote Electricity Rate Protection Charge (RRRP) | C58: $/kWh | D58: 0.0003
B59: Standard Supply Service – Administrative Charge (if applicable) | C59: $ | D59: 0.25
B61: GENERAL SERVICE LESS THAN 50 kW SERVICE CLASSIFICATION
B63: This classification refers to a non-residential account taking electricity at 750 volts or less wheose monthly average peak demand is less than, or is forecast to be less than, 50 kW. Class B consumers are defined in accordance with O. Reg. 429/04. Further servicing details are available in the distributor’s Conditions of Service.
B65: APPLICATION
B67: The application of these rates and charges shall be in accordance with the Licence of the Distributor and any Code or Order of the Ontario Energy Board, and amendments thereto as approved by the Ontario Energy Board, which may be applicable to the administration of this schedule.
B69: No rates and charges for the distribution of electricity and charges to meet the costs of any work or service done or furnished for the purpose of the distribution of electricity shall be made except as permitted by this schedule, unless required by the Distributor’s Licence or a Code or Order of the Ontario Energy Board, and amendments thereto as approved by the Ontario Energy Board, or as specified herein.
B71: Unless specifically noted, this schedule does not contain any charges for the electricity commodity, be it under the Regulated Price Plan, a contract with a retailer or the wholesale market price, as applicable. In addition, the charges in the MONTHLY RATES AND CHARGES – Regulatory Component of this schedule do not apply to a customer that is an embedded wholesale market participant.
B73: It should be noted that this schedule does not list any charges, assessments or credits that are required by law to be invoiced by a distributor and that are not subject to Ontario Energy Board approval, such as the Debt Retirement Charge, the Global Adjustment and the HST.
B75: MONTHLY RATES AND CHARGES – Delivery Component
A77: GSL_F | B77: Service Charge | C77: $ | D77: 29
A78: GSL_SME | B78: Smart Metering Entity Charge - effective until December 31, 2022 | C78: $ | D78: 0.57
A79: GSL_SMA16 | B79: Rate Rider for Recovery of Stranded Meter Assets (2016) – effective until September 30, 2018 | C79: $ | D79: 0.21
B80: Rate Rider for Recovery of ICM (2018) - in effect from May 1, 2018 until the effective date of the next cost of service based rate order | C80: $ | D80: 0.12
B81: Rate Rider for Recovery of 2018 Foregone Revenue - effective until December 31, 2018 | C81: $ | D81: 0.4
A82: GSL_V | B82: Distribution Volumetric Rate | C82: $/kWh | D82: 0.0185
A83: GSL_LV | B83: Low Voltage Service Rate | C83: $/kWh | D83: 0.0004
B84: Rate Rider for Disposition of Global Adjustment Account (2016) - effective until September 30, 2018 Applicable only for Non-RPP Customers | C84: $/kWh | D84: 0.0062
B85: Rate Rider for Disposition of Global Adjustment Account (2018) - effective until April 30, 2019 Applicable only for Non-RPP Customers | C85: $/kWh | D85: 0.0004
A86: GSL_RAL16 | B86: Rate Rider for Disposition of Deferral/Variance Accounts (2016) – effective until September 30, 2018 | C86: $/kWh | D86: 0.0003
A87: GSL_RALP16 | B87: Rate Rider for Disposition of Deferral/Variance Account – Power (2016) – effective until September 30, 2018 | C87: $/kWh | D87: -0.0003
B88: Rate Rider for Disposition of Deferral/Variance Accounts (2018) - effective until April 30, 2019 | C88: $/kWh | D88: -0.003
A89: GSL_2RAL16 | B89: Rate Rider for Disposition of Group 2 Deferral/Variance Accounts (2016) – effective until September 30, 2018 | C89: $/kWh | D89: 0.0002
B90: Rate Rider for Recovery of ICM (2018) - in effect from May 1, 2018 until the effective date of the next cost of service based rate order | C90: $/kWh | D90: 0.0001
B91: Rate Rider for Disposition of Capacity Based Recovery Account (2018) - effective until April 30, 2019 Applicable Only for Class B Customers | C91: $/kWh | D91: 0.0002
B92: Rate Rider for Disposition of Lost Revenue Adjustment Mechanism Variance Account (LRAMVA) (2018) - effective until April 30, 2019 | C92: $/kWh | D92: 0.0009
A93: GSL_TN | B93: Retail Transmission Rate - Network Service Rate | C93: $/kWh | D93: 0.0067
A94: GSL_TC | B94: Retail Transmission Rate - Line and Transformation Connection Service Rate | C94: $/kWh | D94: 0.0035
B96: MONTHLY RATES AND CHARGES – Regulatory Component
B98: Wholesale Market Service Rate (WMS) - not including CBR | C98: $/kWh | D98: 0.0032
B99: Capacity Based Recovery (CBR) - Applicable for Class B Customers | C99: $/kWh | D99: 0.0004
B100: Rural or Remote Electricity Rate Protection Charge (RRRP) | C100: $/kWh | D100: 0.0003
B101: Standard Supply Service – Administrative Charge (if applicable) | C101: $ | D101: 0.25
B102: GENERAL SERVICE 50 to 4,999 kW SERVICE CLASSIFICATION
B104: This classification refers to a non-residential account whose monthly average peak demand is equal to or greater than, or is forecast to be equal to or greater than, 50 kW but less than 5,000 kW, both regular and interval metered. Class A and Class B consumers are defined in accordance with O. Reg. 429/04. Further servicing details are available in the distributor’s Conditions of Service.
B106: APPLICATION
B108: The application of these rates and charges shall be in accordance with the Licence of the Distributor and any Code or Order of the Ontario Energy Board, and amendments thereto as approved by the Ontario Energy Board, which may be applicable to the administration of this schedule.
B110: No rates and charges for the distribution of electricity and charges to meet the costs of any work or service done or furnished for the purpose of the distribution of electricity shall be made except as permitted by this schedule, unless required by the Distributor’s Licence or a Code or Order of the Ontario Energy Board, and amendments thereto as approved by the Ontario Energy Board, or as specified herein.
B112: Unless specifically noted, this schedule does not contain any charges for the electricity commodity, be it under the Regulated Price Plan, a contract with a retailer or the wholesale market price, as applicable. In addition, the charges in the MONTHLY RATES AND CHARGES – Regulatory Component of this schedule do not apply to a customer that is an embedded wholesale market participant.
B114: The rate rider for the disposition of WMS – Sub-account CBR Class B is not applicable to wholesale market participants (WMP), customers that transitioned between Class A and Class B during the variance account accumulation period, or to customers that were in Class A for the entire period. Customers who transitioned are to be charged or refunded their share of the variance disposed through customer specific billing adjustments. This rate rider is to be consistently applied for the entire period to the sunset date of the rate rider. In addition, this rate rider is applicable to all new Class B customers.
B116: The rate rider for the disposition of Global Adjustment is only applicable to non-RPP Class B customers. It is not applicable to WMP customers that transitioned between Class A and Class B during the variance account accumulation period, or to customers that were in Class A for the entire period. Customers who transitioned are to be charged or refunded their share of the variance disposed through customer specific billing adjustments. This rate order is applicable to all new non-RPP Class B customers.
B118: It should be noted that this schedule does not list any charges, assessments or credits that are required by law to be invoiced by a distributor and that are not subject to Ontario Energy Board approval, such as the Debt Retirement Charge, the Global Adjustment and the HST.
B120: MONTHLY RATES AND CHARGES – Delivery Component
A122: GSG_F | B122: Service Charge | C122: $ | D122: 142.24
A123: GSG_ICMF | B123: Rate Rider for Recovery of ICM (2018) - in effect from May 1, 2018 until the effective date of the next cost of service based rate order | C123: $ | D123: 0.57
B124: Rate Rider for Recovery of 2018 Foregone Revenue - effective until December 31, 2018 | C124: $ | D124: 4.21
A125: GSG_V | B125: Distribution Volumetric Rate | C125: $/kW | D125: 4.2415
A126: GSG_LV | B126: Low Voltage Service Rate | C126: $/kW | D126: 0.1589
B127: Rate Rider for Disposition of Global Adjustment Account (2016) – effective until September 30, 2018 Applicable only to non-RPP non-Interval Metered Customers | C127: $/kW | D127: 2.3303
B128: Rate Rider for Disposition of Global Adjustment Account (2016) – effective until September 30, 2018 Applicable only for Class B Interval Metered Customers at December 31, 2016 | C128: $/kW | D128: -1.6412
B129: Rate Rider for Disposition of Global Adjustment Account (2018) - effective until April 30, 2019 Applicable only for Non-RPP Customers | C129: $/kWh | D129: 0.0004
A130: GSG_RAL16 | B130: Rate Rider for Disposition of Deferral/Variance Accounts (2016) – effective until September 30, 2018 | C130: $/kW | D130: 0.1169
A131: GSG_RALP16 | B131: Rate Rider for Disposition of Deferral/Variance Account – Power (2016) – effective until September 30, 2018 | C131: $/kW | D131: -0.1224
A132: GSG_RAL17 | B132: Rate Rider for Disposition of Deferral/Variance Accounts (2018) - effective until April 30, 2019 | C132: $/kW | D132: 0.0184
A133: GSG_RAL17_non | B133: Rate Rider for Disposition of Deferral/Variance Accounts (2018) - effective until April 30, 2019 Applicable only for Non-Wholesale Market Participants | C133: $/kW | D133: -1.1367
A134: GSG_2RAL16 | B134: Rate Rider for Disposition of Group 2 Deferral/Variance Accounts (2016) – effective until September 30, 2018 | C134: $/kW | D134: 0.062
B135: Rate Rider for Recovery of ICM (2018) - in effect from May 1, 2018 until the effective date of the next cost of service based rate order | C135: $/kW | D135: 0.0168
B136: Rate Rider for Disposition of Lost Revenue Adjustment Mechanism Variance Account (LRAMVA) (2018) - effective until April 30, 2019 | C136: $/kW | D136: 0.0796
A137: GSG_CBR | B137: Rate Rider for Disposition of Capacity Based Recovery Account (2018) - effective until April 30, 2019 Applicable Only for Class B Customers | C137: $/kW | D137: 0.0905
A138: GSG_TN | B138: Retail Transmission Rate - Network Service Rate | C138: $/kW | D138: 2.6739
A139: GSG_TC | B139: Retail Transmission Rate - Line and Transformation Connection Service Rate | C139: $/kW | D139: 1.342
A140: GSGI_TN | B140: Retail Transmission Rate - Network Service Rate – Interval Metered | C140: $/kW | D140: 2.803
A141: GSGI_TC | B141: Retail Transmission Rate - Line and Transformation Connection Service Rate – Interval Metered | C141: $/kW | D141: 1.452
B144: MONTHLY RATES AND CHARGES – Regulatory Component
B146: Wholesale Market Service Rate (WMS) - not including CBR | C146: $/kWh | D146: 0.0032
B147: Capacity Based Recovery (CBR) - Applicable for Class B Customers | C147: $/kWh | D147: 0.0004
B148: Rural or Remote Electricity Rate Protection Charge (RRRP) | C148: $/kWh | D148: 0.0003
B149: Standard Supply Service – Administrative Charge (if applicable) | C149: $ | D149: 0.25
B151: LARGE USE SERVICE CLASSIFICATION
B153: This classification refers to an account whose monthly average peak demand is equal to or greater than, or is forecast to be equal to or greater than, 5,000 kW. Class A and Class B consumers are defined in accordance with O. Reg. 429/04. Further servicing details are available in the distributor’s Conditions of Service.
B155: APPLICATION
B157: The application of these rates and charges shall be in accordance with the Licence of the Distributor and any Code or Order of the Ontario Energy Board, and amendments thereto as approved by the Ontario Energy Board, which may be applicable to the administration of this schedule.
B159: No rates and charges for the distribution of electricity and charges to meet the costs of any work or service done or furnished for the purpose of the distribution of electricity shall be made except as permitted by this schedule, unless required by the Distributor’s Licence or a Code or Order of the Ontario Energy Board, and amendments thereto as approved by the Ontario Energy Board, or as specified herein.
B161: Unless specifically noted, this schedule does not contain any charges for the electricity commodity, be it under the Regulated Price Plan, a contract with a retailer or the wholesale market price, as applicable. In addition, the charges in the MONTHLY RATES AND CHARGES – Regulatory Component of this schedule do not apply to a customer that is an embedded wholesale market participant.
B163: The rate rider for the disposition of WMS – Sub-account CBR Class B is not applicable to wholesale market participants (WMP), customers that transitioned between Class A and Class B during the variance account accumulation period, or to customers that were in Class A for the entire period. Customers who transitioned are to be charged or refunded their share of the variance disposed through customer specific billing adjustments. This rate rider is to be consistently applied for the entire period to the sunset date of the rate rider. In addition, this rate rider is applicable to all new Class B customers.
B165: The rate rider for the disposition of Global Adjustment is only applicable to non-RPP Class B customers. It is not applicable to WMP customers that transitioned between Class A and Class B during the variance account accumulation period, or to customers that were in Class A for the entire period. Customers who transitioned are to be charged or refunded their share of the variance disposed through customer specific billing adjustments. This rate order is applicable to all new non-RPP Class B customers.
B167: It should be noted that this schedule does not list any charges, assessments or credits that are required by law to be invoiced by a distributor and that are not subject to Ontario Energy Board approval, such as the Debt Retirement Charge, the Global Adjustment and the HST.
B169: MONTHLY RATES AND CHARGES – Delivery Component
A171: LU_F | B171: Service Charge | C171: $ | D171: 6128.34
A172: LU_ICMF | B172: Rate Rider for Recovery of ICM (2018) - in effect from May 1, 2018 until the effective date of the next cost of service based rate order | C172: $ | D172: 24.34
B173: Rate Rider for Recovery of 2018 Foregone Revenue - effective until December 31, 2018 | C173: $ | D173: 97.02
A174: LU_V | B174: Distribution Volumetric Rate | C174: $/kW | D174: 2.2623
A175: LU_LV | B175: Low Voltage Service Rate | C175: $/kW | D175: 0.163
A176: LU_RAL16 | B176: Rate Rider for Disposition of Deferral/Variance Accounts (2016) – effective until September 30, 2018 | C176: $/kW | D176: 0.1584
A177: LU_RALP16 | B177: Rate Rider for Disposition of Deferral/Variance Account – Power (2016) – effective until September 30, 2018 | C177: $/kW | D177: -0.1659
B178: Rate Rider for Disposition of Deferral/Variance Accounts (2018) - effective until April 30, 2019 | C178: $/kW | D178: -1.3235
A179: LU_2RAL16 | B179: Rate Rider for Disposition of Group 2 Deferral/Variance Accounts (2016) – effective until September 30, 2018 | C179: $/kW | D179: 0.084
B180: Rate Rider for Recovery of ICM (2018) - in effect from May 1, 2018 until the effective date of the next cost of service based rate order | C180: $/kW | D180: 0.009
B181: Rate Rider for Disposition of Lost Revenue Adjustment Mechanism Variance Account (LRAMVA) (2018) - effective until April 30, 2019 | C181: $/kW | D181: -0.0723
A182: LU_TN | B182: Retail Transmission Rate - Network Service Rate | C182: $/kW | D182: 3.2305
A183: LU_TC | B183: Retail Transmission Rate - Line and Transformation Connection Service Rate | C183: $/kW | D183: 1.4016
B185: MONTHLY RATES AND CHARGES – Regulatory Component
B187: Wholesale Market Service Rate (WMS) - not including CBR | C187: $/kWh | D187: 0.0032
B188: Capacity Based Recovery (CBR) - Applicable for Class B Customers | C188: $/kWh | D188: 0.0004
B189: Rural or Remote Electricity Rate Protection Charge (RRRP) | C189: $/kWh | D189: 0.0003
B190: Standard Supply Service – Administrative Charge (if applicable) | C190: $ | D190: 0.25
B191: STANDBY POWER SERVICE CLASSIFICATION
B193: This classification refers to an account that has Load Displacement Generation and requires the distributor to provide back-up service. Further servicing details are available in the distributor’s Conditions of Service.
B195: APPLICATION
B197: The application of these rates and charges shall be in accordance with the Licence of the Distributor and any Code or Order of the Ontario Energy Board, and amendments thereto as approved by the Ontario Energy Board, which may be applicable to the administration of this schedule.
B199: No rates and charges for the distribution of electricity and charges to meet the costs of any work or service done or furnished for the purpose of the distribution of electricity shall be made except as permitted by this schedule, unless required by the Distributor’s Licence or a Code or Order of the Ontario Energy Board, and amendments thereto as approved by the Ontario Energy Board, or as specified herein.
B201: Unless specifically noted, this schedule does not contain any charges for the electricity commodity, be it under the Regulated Price Plan, a contract with a retailer or the wholesale market price, as applicable.
B203: It should be noted that this schedule does not list any charges, assessments or credits that are required by law to be invoiced by a distributor and that are not subject to Ontario Energy Board approval, such as the Debt Retirement Charge, the Global Adjustment and the HST.
B205: MONTHLY RATES AND CHARGES – Delivery Component - APPROVED ON AN INTERIM BASIS
B207: Standby Charge – for a month where standby power is not provided. The charge is applied to the
A208: SB_V | B208: contracted amount (e.g. nameplate rating of generation facility). | C208: $/kW | D208: 2.8334
B211: UNMETERED SCATTERED LOAD SERVICE CLASSIFICATION
B213: This classification refers to an account taking electricity at 750 volts or less whose average monthly peak demand is less than, or is forecast to be less than, 50 kW and the consumption is unmetered. Such connections include cable TV power packs, bus shelters, telephone booths, traffic lights, railway crossings, etc. The customer will provide detailed manufacturer information/documentation with regard to electrical demand/consumption of the proposed unmetered load. Class B consumers are defined in accordance with O. Reg. 429/04. Further servicing details are available in the distributor’s Conditions of Service.
B215: APPLICATION
B217: The application of these rates and charges shall be in accordance with the Licence of the Distributor and any Code or Order of the Ontario Energy Board, and amendments thereto as approved by the Ontario Energy Board, which may be applicable to the administration of this schedule.
B219: No rates and charges for the distribution of electricity and charges to meet the costs of any work or service done or furnished for the purpose of the distribution of electricity shall be made except as permitted by this schedule, unless required by the Distributor’s Licence or a Code or Order of the Ontario Energy Board, and amendments thereto as approved by the Ontario Energy Board, or as specified herein.
B221: Unless specifically noted, this schedule does not contain any charges for the electricity commodity, be it under the Regulated Price Plan, a contract with a retailer or the wholesale market price, as applicable. In addition, the charges in the MONTHLY RATES AND CHARGES – Regulatory Component of this schedule do not apply to a customer that is an embedded wholesale market participant.
B223: It should be noted that this schedule does not list any charges, assessments or credits that are required by law to be invoiced by a distributor and that are not subject to Ontario Energy Board approval, such as the Debt Retirement Charge, the Global Adjustment and the HST.
B225: MONTHLY RATES AND CHARGES – Delivery Component
A227: USL_F | B227: Service Charge | C227: $ | D227: 8.68
A228: USL_ICMF | B228: Rate Rider for Recovery of ICM (2018) - in effect from May 1, 2018 until the effective date of the next cost of service based rate order | C228: $ | D228: 0.03
B229: Rate Rider for Recovery of 2018 Foregone Revenue - effective until December 31, 2018 | C229: $ | D229: 0.08
A230: USL_V | B230: Distribution Volumetric Rate | C230: $/kWh | D230: 0.0197
A231: USL_LV | B231: Low Voltage Service Rate | C231: $/kWh | D231: 0.0005
B232: Rate Rider for Disposition of Global Adjustment Account (2016) – effective until September 30, 2018 Applicable only for non-RPP Customers | C232: $/kWh | D232: 0.0062
B233: Rate Rider for Disposition of Global Adjustment Account (2018) - effective until April 30, 2019 Applicable only for Non-RPP Customers | C233: $/kWh | D233: 0.0004
A234: USL_RAL16 | B234: Rate Rider for Disposition of Deferral/Variance Accounts (2016) – effective until September 30, 2018 | C234: $/kWh | D234: 0.0003
A235: USL_RALP16 | B235: Rate Rider for Disposition of Deferral/Variance Account – Power (2016) – effective until September 30, 2018 | C235: $/kWh | D235: -0.0003
B236: Rate Rider for Disposition of Deferral/Variance Accounts (2018) - effective until April 30, 2019 | C236: $/kWh | D236: -0.0029
A237: USL_2RAL16 | B237: Rate Rider for Disposition of Group 2 Deferral/Variance Accounts (2016) – effective until September 30, 2018 | C237: $/kWh | D237: 0.0002
B238: Rate Rider for Disposition of Capacity Based Recovery Account (2018) - effective until April 30, 2019 Applicable Only for Class B Customers | C238: $/kWh | D238: 0.0002
B239: Rate Rider for Recovery of ICM (2018) - in effect from May 1, 2018 until the effective date of the next cost of service based rate order | C239: $/kWh | D239: 0.0001
B240: Rate Rider for Disposition of Lost Revenue Adjustment Mechanism Variance Account (LRAMVA) (2018) - effective until April 30, 2019 | C240: $/kWh | D240: -0.0005
A241: USL_TN | B241: Retail Transmission Rate - Network Service Rate | C241: $/kWh | D241: 0.0063
A242: USL_TC | B242: Retail Transmission Rate - Line and Transformation Connection Service Rate | C242: $/kWh | D242: 0.0037
B244: MONTHLY RATES AND CHARGES – Regulatory Component
B246: Wholesale Market Service Rate (WMS) - not including CBR | C246: $/kWh | D246: 0.0032
B247: Capacity Based Recovery (CBR) - Applicable for Class B Customers | C247: $/kWh | D247: 0.0004
B248: Rural or Remote Electricity Rate Protection Charge (RRRP) | C248: $/kWh | D248: 0.0003
A249: WMS | B249: Standard Supply Service – Administrative Charge (if applicable) | C249: $ | D249: 0.25
A250: CBR
A251: OESP | B251: SENTINEL LIGHTING SERVICE CLASSIFICATION
A252: SSS
B253: This classification refers to an unmetered lighting load supplied to a sentinel light. Class B consumers are defined in accordance with O. Reg. 429/04. Further servicing details are available in the distributor’s Conditions of Service.
B255: APPLICATION
B257: The application of these rates and charges shall be in accordance with the Licence of the Distributor and any Code or Order of the Ontario Energy Board, and amendments thereto as approved by the Ontario Energy Board, which may be applicable to the administration of this schedule.
B259: No rates and charges for the distribution of electricity and charges to meet the costs of any work or service done or furnished for the purpose of the distribution of electricity shall be made except as permitted by this schedule, unless required by the Distributor’s Licence or a Code or Order of the Ontario Energy Board, and amendments thereto as approved by the Ontario Energy Board, or as specified herein.
B261: Unless specifically noted, this schedule does not contain any charges for the electricity commodity, be it under the Regulated Price Plan, a contract with a retailer or the wholesale market price, as applicable. In addition, the charges in the MONTHLY RATES AND CHARGES – Regulatory Component of this schedule do not apply to a customer that is an embedded wholesale market participant.
B263: It should be noted that this schedule does not list any charges, assessments or credits that are required by law to be invoiced by a distributor and that are not subject to Ontario Energy Board approval, such as the Debt Retirement Charge, the Global Adjustment and the HST.
B265: MONTHLY RATES AND CHARGES – Delivery Component
A267: SEN_F | B267: Service Charge (per Connection) | C267: $ | D267: 4.23
A268: SEN_ICMF | B268: Rate Rider for Recovery of ICM (2018) - in effect from May 1, 2018 until the effective date of the next cost of service based rate order | C268: $ | D268: 0.02
B269: Rate Rider for Recovery of 2018 Foregone Revenue - effective until December 31, 2018 | C269: $ | D269: 0.04
A270: SEN_V | B270: Distribution Volumetric Rate | C270: $/kW | D270: 9.9582
A271: SEN_LV | B271: Low Voltage Service Rate | C271: $/kW | D271: 0.117
B272: Rate Rider for Disposition of Global Adjustment Account (2016) – effective until September 30, 2018 Applicable only for non-RPP Customers | C272: $/kW | D272: 2.3977
B273: Rate Rider for Disposition of Global Adjustment Account (2018) - effective until April 30, 2019 Applicable only for Non-RPP Customers | C273: $/kWh | D273: 0.0004
A274: SEN_RAL16 | B274: Rate Rider for Disposition of Deferral/Variance Accounts (2016) – effective until September 30, 2018 | C274: $/kW | D274: 0.121
A275: SEN_RALP16 | B275: Rate Rider for Disposition of Deferral/Variance Account – Power (2016) – effective until September 30, 2018 | C275: $/kW | D275: -0.1267
B276: Rate Rider for Disposition of Deferral/Variance Accounts (2018) - effective until April 30, 2019 | C276: $/kW | D276: -1.074
A277: SEN_2RAL16 | B277: Rate Rider for Disposition of Group 2 Deferral/Variance Accounts (2016) – effective until September 30, 2018 | C277: $/kW | D277: 0.0641
B278: Rate Rider for Disposition of Capacity Based Recovery Account (2018) - effective until April 30, 2019 Applicable Only for Class B Customers | C278: $/kW | D278: 0.0895
B279: Rate Rider for Recovery of ICM (2018) - in effect from May 1, 2018 until the effective date of the next cost of service based rate order | C279: $/kW | D279: 0.0396
B280: Rate Rider for Disposition of Lost Revenue Adjustment Mechanism Variance Account (LRAMVA) (2018) - effective until April 30, 2019 | C280: $/kW | D280: -0.385
A281: SEN_TN | B281: Retail Transmission Rate - Network Service Rate | C281: $/kW | D281: 2.0778
A282: SEN_TC | B282: Retail Transmission Rate - Line and Transformation Connection Service Rate | C282: $/kW | D282: 0.9929
B284: MONTHLY RATES AND CHARGES – Regulatory Component
B286: Wholesale Market Service Rate (WMS) - not including CBR | C286: $/kWh | D286: 0.0032
... 105 more rows

Sheet 3. Continuity Schedule
A1: Back to Index | B1: Back to Index | CU1: FALSE
C2: =+'1. Information Sheet'!B2 -> INCENTIVE REGULATION MODEL FOR 2019 FILERS | CU2: FALSE
CU3: FALSE
CU4: FALSE
CU5: FALSE
CU6: FALSE
CU7: FALSE
CU8: FALSE
CU9: FALSE
CU10: TRUE
CU11: TRUE
C12: Please complete the following continuity schedule for the following Deferral/Variance Accounts. Enter information into green cells only. Column CE shoudl match the latest 2.1.7 RRR filing. When inputting balances in the continuity schedule, Account 1580 RSVA - Wholesale Market Service Charge is to exclude any amounts relating to CBR. The CBR amounts are to be entered separately in the Class A and Class B 1580 sub-accounts. Only Class B amounts are to be disposed. Class A amounts are not to be disposed. If you have received approval to dispose of balances from prior years, the starting point for entries in the schedule below will be the balance sheet date as per your general ledger for which you received approval. For example, if in the 2016 EDR process (CoS or IRM) you received approval for the December 31, 2014 balances, the starting point for your entries below should be the 2013 year. This will allow for the correct starting point for the 2014 opening balance columns for both principal and interest. Please refer to the footnotes for further instructions.
E16: 2010 | O16: 2011 | Y16: 2012 | AI16: 2013 | AS16: 2014 | BC16: 2015 | BM16: 2016 | BW16: 2017 | CG16: 2018 | CK16: Projected Interest on Dec-31-17 Balances | CO16: 2.1.7 RRR
C17: Account Descriptions | D17: Account Number | E17: Opening Principal Amounts as of Jan 1, 2010 | F17: Transactions2 Debit / (Credit) during 2010 | G17: OEB-Approved Disposition during 2010 | H17: Principal Adjustments1 during 2010 | I17: Closing Principal Balance as of Dec 31, 2010 | J17: Opening Interest Amounts as of Jan 1, 2010 | K17: Interest Jan 1 to Dec 31, 2010 | L17: OEB-Approved Disposition during 2010 | M17: Interest Adjustments1 during 2010 | N17: Closing Interest Amounts as of Dec 31, 2010 | O17: Opening Principal Amounts as of Jan 1, 2011 | P17: Transactions2 Debit / (Credit) during 2011 | Q17: OEB-Approved Disposition during 2011 | R17: Principal Adjustments1 during 2011 | S17: Closing Principal Balance as of Dec 31, 2011 | T17: Opening Interest Amounts as of Jan 1, 2011 | U17: Interest Jan 1 to Dec 31, 2011 | V17: OEB-Approved Disposition during 2011 | W17: Interest Adjustments1 during 2011 | X17: Closing Interest Amounts as of Dec 31, 2011 | Y17: Opening Principal Amounts as of Jan 1, 2012 | Z17: Transactions2 Debit / (Credit) during 2012 | AA17: OEB-Approved Disposition during 2012 | AB17: Principal Adjustments1 during 2012 | AC17: Closing Principal Balance as of Dec 31, 2012 | AD17: Opening Interest Amounts as of Jan 1, 2012 | AE17: Interest Jan 1 to Dec 31, 2012 | AF17: OEB-Approved Disposition during 2012 | AG17: Interest Adjustments1 during 2012 | AH17: Closing Interest Amounts as of Dec 31, 2012 | AI17: Opening Principal Amounts as of Jan 1, 2013 | AJ17: Transactions2 Debit / (Credit) during 2013 | AK17: OEB-Approved Disposition during 2013 | AL17: Principal Adjustments1 during 2013 | AM17: Closing Principal Balance as of Dec 31, 2013 | AN17: Opening Interest Amounts as of Jan 1, 2013 | AO17: Interest Jan 1 to Dec 31, 2013 | AP17: OEB-Approved Disposition during 2013 | AQ17: Interest Adjustments1 during 2013 | AR17: Closing Interest Amounts as of Dec 31, 2013 | AS17: Opening Principal Amounts as of Jan 1, 2014 | AT17: Transactions2 Debit / (Credit) during 2014 | AU17: OEB-Approved Disposition during 2014 | AV17: Principal Adjustments1 during 2014 | AW17: Closing Principal Balance as of Dec 31, 2014 | AX17: Opening Interest Amounts as of Jan 1, 2014 | AY17: Interest Jan 1 to Dec 31. 2014 | AZ17: OEB-Approved Disposition during 2014 | BA17: Interest Adjustments1 during 2014 | BB17: Closing Interest Amounts as of Dec 31, 2014 | BC17: Opening Principal Amounts as of Jan 1, 2015 | BD17: Transactions2 Debit / (Credit) during 2015 | BE17: OEB-Approved Disposition during 2015 | BF17: Principal Adjustments1 during 2015 | BG17: Closing Principal Balance as of Dec 31, 15 | BH17: Opening Interest Amounts as of Jan 1, 15 | BI17: Interest Jan 1 to Dec 31, 15 | BJ17: OEB-Approved Disposition during 2015 | BK17: Interest Adjustments1 during 2015 | BL17: Closing Interest Amounts as of Dec 31, 15 | BM17: Opening Principal Amounts as of Jan 1, 2016 | BN17: Transactions2 Debit / (Credit) during 2016 | BO17: OEB-Approved Disposition during 2016 | BP17: Principal Adjustments1 during 2016 | BQ17: Closing Principal Balance as of Dec 31, 16 | BR17: Opening Interest Amounts as of Jan 1, 16 | BS17: Interest Jan 1 to Dec 31, 16 | BT17: OEB-Approved Disposition during 2016 | BU17: Interest Adjustments1 during 2016 | BV17: Closing Interest Amounts as of Dec 31, 16 | BW17: Opening Principal Amounts as of Jan 1, 2017 | BX17: Transactions2 Debit / (Credit) during 2017 | BY17: OEB-Approved Disposition during 2017 | BZ17: Principal Adjustments1 during 2017 | CA17: Closing Principal Balance as of Dec 31, 17 | CB17: Opening Interest Amounts as of Jan 1, 17 | CC17: Interest Jan 1 to Dec 31, 17 | CD17: OEB-Approved Disposition during 2017 | CE17: Interest Adjustments1 during 2017 | CF17: Closing Interest Amounts as of Dec 31, 17 | CG17: Principal Disposition during 2018 - instructed by OEB | CH17: Interest Disposition during 2018 - instructed by OEB | CI17: Closing Principal Balances as of Dec 31, 2017 Adjusted for Dispositions during 2018 | CJ17: Closing Interest Balances as of Dec 31, 2017 Adjusted for Disposition in 2018 | CK17: Projected Interest from January 1, 2018 to December 31, 2018 on December 31, 2017 balance adjusted for disposition during 2019 3 | CL17: Projected Interest from January 1, 2018 to April 30, 2018 on Dec 31 -16 balance adjusted for disposition during 2017 3 | CM17: Total Interest | CN17: Total Claim | CO17: As of Dec 31-17 | CP17: Variance RRR vs. 2017 Balance (Principal + Interest)
CN19: Claim before Forecasted Transactions
C20: Group 1 Accounts
C21: LV Variance Account | D21: 1550 | I21: =E21+F21-G21+H21 -> 0 | N21: =J21+K21-L21+M21 -> 0 | O21: =I21 -> 0 | P21: -680807 | S21: =O21+P21-Q21+SUM(R21:R21) -> -680807 | T21: =N21 -> 0 | U21: -25273.3616 | X21: =T21+U21-V21+W21 -> -25273.3616 | Y21: =S21 -> -680807 | Z21: 477919 | AA21: -680807 | AC21: =Y21+Z21-AA21+SUM(AB21:AB21) -> 477919 | AD21: =X21 -> -25273.3616 | AE21: -7005 | AF21: -35310 | AH21: =AD21+AE21-AF21+AG21 -> 3031.6384 | AI21: =AC21 -> 477919 | AJ21: -112182 | AM21: =AI21+AJ21-AK21+SUM(AL21:AL21) -> 365737 | AN21: =AH21 -> 3031.6384 | AO21: 6431 | AR21: =AN21+AO21-AP21+AQ21 -> 9462.6384 | AS21: =AM21 -> 365737 | AT21: -133409 | AU21: 477919 | AW21: =AS21+AT21-AU21+SUM(AV21:AV21) -> -245591 | AX21: =AR21 -> 9462.6384 | AY21: -1339 | AZ21: 10057 | BB21: =AX21+AY21-AZ21+BA21 -> -1933.3616 | BC21: =AW21 -> -245591 | BD21: 1878888.72 | BG21: =BC21+BD21-BE21+SUM(BF21:BF21) -> 1633297.72 | BH21: =BB21 -> -1933.3616 | BI21: 2930.11 | BL21: =BH21+BI21-BJ21+BK21 -> 996.7484 | BM21: =BG21 -> 1633297.72 | BN21: 2598645.27 | BO21: -245591 | BQ21: =BM21+BN21-BO21+SUM(BP21:BP21) -> 4477533.99 | BR21: =BL21 -> 996.7484 | BS21: 31733.49338 | BT21: -6702 | BV21: =BR21+BS21-BT21+BU21 -> 39432.24178 | BW21: =BQ21 -> 4477533.99 | BX21: 1506287.71 | CA21: =BW21+BX21-BY21+SUM(BZ21:BZ21) -> 5983821.7 | CB21: =BV21 -> 39432.24178 | CC21: 62844.3 | CF21: =CB21+CC21-CD21+CE21 -> 102276.5418 | CG21: 4477533.99 | CH21: 117005.5182 | CI21: =CA21-CG21 -> 1506287.71 | CJ21: =CF21-CH21 -> -14728.97638 | CK21: =+CI21*((0.015*3/12)+(0.0189*9/12)) -> 27000.2072 | CM21: =CJ21+CK21+CL21 -> 12271.23082 | CN21: =SUM(CI21:CL21) -> 1518558.941 | CO21: 6086099.54 | CP21: =CO21-SUM(CA21,CF21) -> 1.298218529
C22: Smart Metering Entity Charge Variance Account | D22: 1551 | I22: =E22+F22-G22+H22 -> 0 | N22: =J22+K22-L22+M22 -> 0 | O22: =I22 -> 0 | S22: 0 | T22: 0 | X22: =T22+U22-V22+W22 -> 0 | Y22: 0 | AC22: =Y22+Z22-AA22+SUM(AB22:AB22) -> 0 | AD22: =X22 -> 0 | AH22: =AD22+AE22-AF22+AG22 -> 0 | AI22: 0 | AJ22: 185108 | AM22: 185108 | AN22: 0 | AO22: 1632 | AR22: =AN22+AO22-AP22+AQ22 -> 1632 | AS22: 185108 | AT22: -93458 | AW22: 91650 | AX22: 1632 | AY22: 2228 | BB22: =AX22+AY22-AZ22+BA22 -> 3860 | BC22: 91650 | BD22: -127715.26 | BG22: -36065.26 | BH22: 3860 | BI22: 652.96 | BL22: =BH22+BI22-BJ22+BK22 -> 4512.96 | BM22: =BG22 -> -36065.26 | BN22: -125095.12 | BO22: 91650 | BQ22: =BM22+BN22-BO22+SUM(BP22:BP22) -> -252810.38 | BR22: 4512.96 | BS22: -1054.24 | BT22: 5640 | BV22: =BR22+BS22-BT22+BU22 -> -2181.28 | BW22: =BQ22 -> -252810.38 | BX22: -389458.59 | CA22: =BW22+BX22-BY22+SUM(BZ22:BZ22) -> -642268.97 | CB22: -2181.28 | CC22: -3628 | CF22: =CB22+CC22-CD22+CE22 -> -5809.28 | CG22: -252810.38 | CH22: -6561.219833 | CI22: -389458.59 | CJ22: 751.9398335 | CK22: -6981.045226 | CM22: =CJ22+CK22+CL22 -> -6229.105392 | CN22: =SUM(CI22:CL22) -> -395687.6954 | CO22: -648078.5 | CP22: -0.25
C23: RSVA - Wholesale Market Service Charge | D23: 1580 | I23: =E23+F23-G23+H23 -> 0 | N23: =J23+K23-L23+M23 -> 0 | O23: =I23 -> 0 | P23: -22160709 | S23: =O23+P23-Q23+SUM(R23:R23) -> -22160709 | T23: 0 | U23: -453592 | X23: =T23+U23-V23+W23 -> -453592 | Y23: -22160709 | Z23: -10646313 | AA23: -22160709 | AC23: =Y23+Z23-AA23+SUM(AB23:AB23) -> -10646313 | AD23: =X23 -> -453592 | AE23: -411074 | AF23: -780247 | AH23: =AD23+AE23-AF23+AG23 -> -84419 | AI23: -10646313 | AJ23: -5065917 | AM23: -15712230 | AN23: -84419 | AO23: -200434 | AR23: =AN23+AO23-AP23+AQ23 -> -284853 | AS23: -15712230 | AT23: -877534 | AU23: -10646313 | AW23: -5943451 | AX23: -284853 | AY23: -58992 | AZ23: -240919 | BB23: =AX23+AY23-AZ23+BA23 -> -102926 | BC23: -5943451 | BD23: -18323012.7 | BG23: -24266463.7 | BH23: -102926 | BI23: -122114.92 | BL23: =BH23+BI23-BJ23+BK23 -> -225040.92 | BM23: -24266463.7 | BN23: -7562592.09 | BO23: -5943451 | BQ23: =BM23+BN23-BO23+SUM(BP23:BP23) -> -25885604.79 | BR23: -225040.92 | BS23: -299766.02 | BT23: -218327 | BV23: =BR23+BS23-BT23+BU23 -> -306479.94 | BW23: -25885604.79 | BX23: -7987407.68 | CA23: =BW23+BX23-BY23+SUM(BZ23:BZ23) -> -33873012.47 | CB23: -306479.94 | CC23: -351627.42 | CF23: =CB23+CC23-CD23+CE23 -> -658107.36 | CG23: -25885604.79 | CH23: -754948.043 | CI23: -7987407.68 | CJ23: 96840.68299 | CK23: -143174.2827 | CM23: -46333.59968 | CN23: =SUM(CI23:CL23) -> -8033741.28 | CO23: -34531120.15 | CP23: -0.3200000003
C24: Variance WMS – Sub-account CBR Class A | D24: 1580 | I24: 0 | N24: 0 | O24: 0 | S24: 0 | T24: 0 | X24: 0 | Y24: 0 | AC24: 0 | AD24: 0 | AH24: 0 | AI24: 0 | AM24: 0 | AN24: 0 | AR24: 0 | AS24: 0 | AW24: 0 | AX24: 0 | BB24: 0 | BC24: 0 | BD24: 52343.91 | BG24: =BC24+BD24-BE24+SUM(BF24:BF24) -> 52343.91 | BH24: 0 | BI24: 152.66 | BL24: 152.66 | BM24: 52343.91 | BN24: -52343.89 | BQ24: =BM24+BN24-BO24+SUM(BP24:BP24) -> 0.02 | BR24: 152.66 | BS24: -152.66 | BV24: -2.842170943e-14 | BW24: 0.02 | BX24: -0.13 | CA24: =BW24+BX24-BY24+SUM(BZ24:BZ24) -> -0.11 | CB24: -2.842170943e-14 | CC24: 0 | CF24: -2.842170943e-14 | CG24: 0.02 | CH24: 0.0003465 | CI24: -0.13 | CJ24: -0.0003465000001 | CK24: -0.00233025 | CM24: -0.00267675 | CN24: -0.13267675 | CO24: -0.11 | CP24: 2.842170943e-14
C25: Variance WMS – Sub-account CBR Class B | D25: 1580 | I25: 0 | N25: 0 | O25: 0 | S25: 0 | T25: 0 | X25: 0 | Y25: 0 | AC25: 0 | AD25: 0 | AH25: 0 | AI25: 0 | AM25: 0 | AN25: 0 | AR25: 0 | AS25: 0 | AW25: 0 | AX25: 0 | BB25: 0 | BC25: 0 | BD25: 2283691.86 | BG25: 2283691.86 | BH25: 0 | BI25: 7619.77 | BL25: 7619.77 | BM25: 2283691.86 | BN25: -336420.75 | BQ25: =BM25+BN25-BO25+SUM(BP25:BP25) -> 1947271.11 | BR25: 7619.77 | BS25: 22213.17 | BV25: 29832.94 | BW25: 1947271.11 | BX25: -84171.47 | CA25: =BW25+BX25-BY25+SUM(BZ25:BZ25) -> 1863099.64 | CB25: 29832.94 | CC25: 22576.75 | CF25: 52409.69 | CG25: 1947271.11 | CH25: 63569.41198 | CI25: -84171.47 | CJ25: -11159.72198 | CK25: -1508.7736 | CM25: -12668.49558 | CN25: -96839.96558 | CO25: 1915509.33 | CP25: 0
C26: RSVA - Retail Transmission Network Charge | D26: 1584 | I26: 0 | N26: 0 | O26: =I26 -> 0 | P26: 2673296 | S26: 2673296 | T26: 0 | U26: -116407 | X26: =T26+U26-V26+W26 -> -116407 | Y26: 2673296 | Z26: 1005953 | AA26: 2673296 | AC26: =Y26+Z26-AA26+SUM(AB26:AB26) -> 1005953 | AD26: -116407 | AE26: 62777 | AF26: -77003 | AH26: =AD26+AE26-AF26+AG26 -> 23373 | AI26: 1005953 | AJ26: 2616584 | AM26: 3622537 | AN26: 23373 | AO26: 30713 | AR26: =AN26+AO26-AP26+AQ26 -> 54086 | AS26: 3622537 | AT26: 1288689 | AU26: 1005953 | AW26: 3905273 | AX26: 54086 | AY26: 47481 | AZ26: 38161 | BB26: =AX26+AY26-AZ26+BA26 -> 63406 | BC26: 3905273 | BD26: -2787980.34 | BG26: 1117292.66 | BH26: 63406 | BI26: 34775.27 | BL26: =BH26+BI26-BJ26+BK26 -> 98181.27 | BM26: 1117292.66 | BN26: -3707689.67 | BO26: 3905273 | BQ26: =BM26+BN26-BO26+SUM(BP26:BP26) -> -6495670.01 | BR26: 98181.27 | BS26: -12831.10098 | BT26: 139232 | BV26: =BR26+BS26-BT26+BU26 -> -53881.83098 | BW26: -6495670.01 | BX26: -6668761.05 | CA26: -13164431.06 | CB26: -53881.83098 | CC26: -117824.16 | CF26: -171705.991 | CG26: -6495670.01 | CH26: -166419.3139 | CI26: -6668761.05 | CJ26: -5286.677077 | CK26: -119537.5418 | CM26: -124824.2189 | CN26: -6793585.269 | CO26: -13336136.75 | CP26: 0.3009824585
C27: RSVA - Retail Transmission Connection Charge | D27: 1586 | I27: 0 | N27: 0 | O27: 0 | P27: -3227883 | S27: -3227883 | T27: 0 | U27: -156955 | X27: -156955 | Y27: -3227883 | Z27: -588231 | AA27: -3227884 | AC27: -588230 | AD27: -156955 | AE27: -52540 | AF27: -204532 | AH27: -4963 | AI27: -588230 | AJ27: 601094 | AM27: 12864 | AN27: -4963 | AO27: -5847 | AR27: -10810 | AS27: 12864 | AT27: 852228 | AU27: -588230 | AW27: 1453322 | AX27: -10810 | AY27: 10423 | AZ27: -13609 | BB27: 13222 | BC27: 1453322 | BD27: 990194.18 | BG27: 2443516.18 | BH27: 13222 | BI27: 22520.13 | BL27: 35742.13 | BM27: 2443516.18 | BN27: 1633312.96 | BO27: 1453320 | BQ27: 2623509.14 | BR27: 35742.13 | BS27: 32517.2688 | BT27: 41440 | BV27: 26819.3988 | BW27: 2623509.14 | BX27: -1010067.39 | CA27: 1613441.75 | CB27: 26819.3988 | CC27: 23718.58 | CF27: 50537.9788 | CG27: 2623509.14 | CH27: 72271.69465 | CI27: -1010067.39 | CJ27: -21733.71585 | CK27: -18105.45797 | CM27: -39839.17382 | CN27: =SUM(CI27:CL27) -> -1049906.564 | CO27: 1663980.02 | CP27: 0.2911963023
C28: RSVA - Power | D28: 1588 | I28: 0 | N28: 0 | O28: 0 | P28: 2102302 | R28: -13 | S28: 2102289 | T28: 0 | U28: 400055 | X28: 400055 | Y28: 2102289 | Z28: 877101 | AA28: 2102302 | AC28: 877088 | AD28: 400055 | AE28: 8778 | AF28: 431043 | AH28: -22210 | AI28: 877088 | AJ28: 1357196 | AM28: 2234284 | AN28: -22210 | AO28: 51968 | AR28: 29758 | AS28: 2234284 | AT28: -794425 | AU28: 877088 | AW28: 562771 | AX28: 29758 | AY28: 27275 | AZ28: -9317 | BB28: 66350 | BC28: 562771 | BD28: -317280.77 | BG28: 245490.23 | BH28: 66350 | BI28: 18479.84 | BL28: 84829.84 | BM28: 245490.23 | BN28: 2176561.37 | BO28: 562770 | BP28: -811309 | BQ28: 1047972.6 | BR28: 84829.84 | BS28: 13235.0569 | BT28: 77277 | BV28: 20787.8969 | BW28: 1047972.6 | BX28: =2567046.61 -> 2567046.61 | BZ28: =-BP28+3601753.6 -> 4413062.6 | CA28: 8028081.81 | CB28: 20787.8969 | CC28: -21507.45 | CF28: -719.5530968 | CG28: 1047972.6 | CH28: 38944.0222 | CI28: 6980109.21 | CJ28: -39663.5753 | CK28: 125118.4576 | CM28: 85454.88229 | CN28: 7065564.092 | CO28: 4425608.31 | CP28: -3601753.947
C29: RSVA - Global Adjustment | D29: 1589 | I29: 0 | N29: 0 | O29: 0 | P29: 17526364 | S29: 17526364 | T29: 0 | U29: 668802 | X29: 668802 | Y29: 17526364 | Z29: -1664568 | AA29: 17526364 | AC29: -1664568 | AD29: 668802 | AE29: 259570 | AF29: 927145 | AH29: 1227 | AI29: -1664568 | AJ29: -3374332 | AM29: -5038900 | AN29: 1227 | AO29: 22026 | AR29: 23253 | AS29: -5038900 | AT29: 13553905 | AU29: -1664568 | AW29: 10179573 | AX29: 23253 | AY29: 46383 | AZ29: -23242 | BB29: 92878 | BC29: 10179573 | BD29: 5736836.86 | BG29: 15916409.86 | BH29: 92878 | BI29: 141760.4 | BL29: 234638.4 | BM29: 15916409.86 | BN29: -9817313.03 | BO29: 10179574 | BP29: 4970749 | BQ29: 890271.83 | BR29: 234638.4 | BS29: 157113.26 | BT29: 290529 | BV29: 101222.66 | BW29: 890271.83 | BX29: =4877432.07 -> 4877432.07 | BZ29: =-BP29+4539888.19686403 -> -430860.8031 | CA29: 5336843.097 | CB29: 101222.66 | CC29: 42793.17 | CF29: 144015.83 | CG29: 890271.83 | CH29: 116646.6195 | CI29: 4446571.267 | CJ29: 27369.21055 | CK29: 79704.78996 | CM29: 107074.0005 | CN29: 4553645.267 | CO29: 940970.71 | CP29: -4539888.217
C30: Disposition and Recovery/Refund of Regulatory Balances (2009)4 | D30: 1595 | I30: 0 | N30: 0 | O30: 0 | P30: -1042 | S30: -1042 | T30: 0 | U30: 3222 | X30: 3222 | Y30: -1042 | Z30: -15 | AA30: -1042 | AC30: -15 | AD30: 3222 | AF30: 3208 | AH30: 14 | AI30: -15 | AM30: -15 | AN30: 14 | AR30: 14 | AS30: -15 | AT30: 2 | AU30: -15 | AW30: 2 | AX30: 14 | AZ30: 14 | BB30: 0 | BC30: 2 | BG30: 2 | BH30: 0 | BL30: 0 | BM30: 2 | BQ30: 2 | BR30: 0 | BU30: -21764 | BV30: -21764 | BW30: 2 | CA30: 2 | CB30: -21764 | CF30: -21764 | CG30: 2 | CH30: -21763.96535 | CI30: 0 | CJ30: -0.03465 | CK30: 0 | CM30: -0.03465 | CN30: =IF(CD30=0,IF(SUM(CG30:CH30)=0,SUM(CI30:CL30),0),SUM(CI30:CL30)) -> 0 | CO30: -21761.6 | CP30: 0.4
C31: Disposition and Recovery/Refund of Regulatory Balances (2010)4 | D31: 1595 | I31: 0 | N31: 0 | O31: 0 | S31: 0 | T31: 0 | X31: 0 | Y31: 0 | AC31: 0 | AD31: 0 | AH31: 0 | AI31: 0 | AM31: 0 | AN31: 0 | AR31: 0 | AS31: 0 | AW31: 0 | AX31: 0 | BB31: 0 | BC31: 0 | BG31: 0 | BH31: 0 | BL31: 0 | BM31: 0 | BP31: 7318 | BQ31: 7318 | BR31: 0 | BU31: 153 | BV31: 153 | BW31: 7318 | CA31: 7318 | CB31: 153 | CC31: 87.9 | CF31: 240.9 | CG31: 7318 | CH31: 279.78435 | CI31: 0 | CJ31: -38.88435 | CK31: 0 | CM31: -38.88435 | CN31: 0 | CO31: 7559.05 | CP31: 0.15
C32: Disposition and Recovery/Refund of Regulatory Balances (2011)4 | D32: 1595 | I32: 0 | N32: 0 | O32: 0 | P32: 2233466.65 | S32: =O32+P32-Q32+SUM(R32:R32) -> 2233466.65 | T32: 0 | U32: -1943690 | X32: -1943690 | Y32: 2233466.65 | Z32: -680508 | AC32: 1552958.65 | AD32: -1943690 | AE32: 144693 | AH32: -1798997 | AI32: 1552958.65 | AJ32: =4236921-2661661 -> 1575260 | AM32: 3128218.65 | AN32: -1798997 | AO32: =-96444+105234 -> 8790 | AR32: -1790207 | AS32: 3128218.65 | AT32: 124 | AW32: 3128342.65 | AX32: -1790207 | AY32: 56768 | BB32: -1733439 | BC32: 3128342.65 | BD32: 10844 | BF32: -3273851 | BG32: -134664.35 | BH32: -1733439 | BI32: -23253 | BK32: 1717032 | BL32: -39660 | BM32: -134664.35 | BP32: 135000 | BQ32: 335.65 | BR32: -39660 | BS32: -1485 | BU32: 41188 | BV32: 43 | BW32: 335.65 | CA32: 335.65 | CB32: 43 | CC32: 4 | CF32: 47 | CG32: 335.65 | CH32: 48.81513625 | CI32: 0 | CJ32: -1.81513625 | CK32: 0 | CM32: -1.81513625 | CN32: 0 | CO32: 381.52 | CP32: -1.129999999
C33: Disposition and Recovery/Refund of Regulatory Balances (2012)4 | D33: 1595 | I33: 0 | N33: 0 | O33: 0 | S33: 0 | T33: 0 | X33: 0 | Y33: 0 | AA33: 8245690 | AC33: -8245690 | AD33: 0 | AF33: 86845 | AH33: -86845 | AI33: -8245690 | AJ33: 2661660.62 | AM33: -5584029.38 | AN33: -86845 | AO33: -105233.81 | AR33: -192078.81 | AS33: -5584029.38 | AT33: 4519005.63 | AW33: -1065023.75 | AX33: -192078.81 | AY33: -22367.46 | BB33: -214446.27 | BC33: -1065023.75 | BD33: 237163.89 | BF33: 981651 | BG33: 153791.14 | BH33: -214446.27 | BI33: 3120 | BK33: 368236 | BL33: 156909.73 | BM33: 153791.14 | BN33: 991 | BP33: -142316 | BQ33: 12466.14 | BR33: 156909.73 | BS33: 1695.54 | BU33: -5332 | BV33: 153273.27 | BW33: 12466.14 | CA33: 12466.14 | CB33: 153273.27 | CC33: 149.66 | CF33: 153422.93 | CG33: 12466.14 | CH33: 153489.2459 | CI33: 0 | CJ33: -66.3158755 | CK33: 0 | CM33: -66.3158755 | CN33: 0 | CO33: 165889.07 | CP33: 2.764863893e-09
C34: Disposition and Recovery/Refund of Regulatory Balances (2013)4 | D34: 1595 | I34: 0 | N34: 0 | O34: 0 | S34: 0 | T34: 0 | X34: 0 | Y34: 0 | AC34: 0 | AD34: 0 | AH34: 0 | AI34: 0 | AM34: 0 | AN34: 0 | AR34: 0 | AS34: 0 | AW34: 0 | AX34: 0 | BB34: 0 | BC34: 0 | BG34: 0 | BH34: 0 | BL34: 0 | BM34: 0 | BQ34: 0 | BR34: 0 | BV34: 0 | BW34: 0 | CA34: 0 | CB34: 0 | CF34: 0 | CG34: 0 | CH34: 0 | CI34: 0 | CJ34: 0 | CK34: 0 | CM34: 0 | CN34: 0 | CO34: 0 | CP34: 0
C35: Disposition and Recovery/Refund of Regulatory Balances (2014)4 | D35: 1595 | I35: 0 | N35: 0 | O35: 0 | S35: 0 | T35: 0 | X35: 0 | Y35: 0 | AC35: 0 | AD35: 0 | AH35: 0 | AI35: 0 | AM35: 0 | AN35: 0 | AR35: 0 | AS35: 0 | AT35: 4751091.54 | AU35: 10538166 | AW35: -5787074.46 | AX35: 0 | AY35: -90777.52 | AZ35: 277339 | BB35: -368116.52 | BC35: -5787074.46 | BD35: 5684237.45 | BF35: 173316 | BG35: 70478.99 | BH35: -368116.52 | BI35: -18488 | BK35: 33613 | BL35: -352991.52 | BM35: 70478.99 | BN35: 8671 | BP35: -79150 | BQ35: -0.009999998845 | BR35: -352991.52 | BS35: -2385.19 | BU35: 64903 | BV35: -290473.71 | BW35: -0.009999998845 | BX35: 1872.45 | BZ35: 33769.25217 | CA35: 35641.69217 | CB35: -290473.71 | CE35: 1416.030033 | CF35: -289057.68 | CG35: -0.009999998845 | CH35: -290473.7102 | CI35: 35641.70217 | CJ35: 1416.030207 | CK35: 638.8775113 | CM35: =CJ35+CK35+CL35 -> 2054.907718 | CN35: =IF(CD35=0,IF(SUM(CG35:CH35)=0,SUM(CI35:CL35),0),SUM(CI35:CL35)) -> 0 | CO35: -253416.4378 | CP35: =CO35-SUM(CA35,CF35) -> -0.450000001
C36: Disposition and Recovery/Refund of Regulatory Balances (2015)4 | D36: 1595 | I36: 0 | N36: 0 | O36: 0 | S36: 0 | T36: 0 | X36: 0 | Y36: 0 | AC36: 0 | AD36: 0 | AH36: 0 | AI36: 0 | AM36: 0 | AN36: 0 | AR36: 0 | AS36: 0 | AW36: 0 | AX36: 0 | BB36: 0 | BC36: 0 | BG36: 0 | BH36: 0 | BL36: 0 | BM36: 0 | BQ36: 0 | BR36: 0 | BV36: 0 | BW36: 0 | CA36: 0 | CB36: 0 | CF36: 0 | CG36: 0 | CH36: 0 | CI36: 0 | CJ36: 0 | CK36: 0 | CM36: 0 | CN36: =IF(CD36=0,IF(SUM(CG36:CH36)=0,SUM(CI36:CL36),0),SUM(CI36:CL36)) -> 0 | CP36: 0
C37: Disposition and Recovery/Refund of Regulatory Balances (2016)4 Not to be disposed of unless rate rider has expired and balance has been audited | D37: 1595 | I37: 0 | N37: 0 | O37: 0 | S37: 0 | T37: 0 | X37: 0 | Y37: 0 | AC37: 0 | AD37: 0 | AH37: 0 | AI37: 0 | AM37: 0 | AN37: 0 | AR37: 0 | AS37: 0 | AW37: 0 | AX37: 0 | BB37: 0 | BC37: 0 | BG37: 0 | BH37: 0 | BL37: 0 | BM37: 0 | BQ37: 0 | BR37: 0 | BV37: 0 | BW37: 0 | CA37: 0 | CB37: 0 | CF37: 0 | CG37: 0 | CH37: 0 | CI37: 0 | CJ37: 0 | CK37: 0 | CM37: 0 | CN37: 0 | CO37: 0 | CP37: 0
C39: =C29 -> RSVA - Global Adjustment | D39: 1589 | E39: =E29 -> 0 | F39: 0 | G39: 0 | H39: 0 | I39: 0 | J39: 0 | K39: 0 | L39: 0 | M39: 0 | N39: 0 | O39: 0 | P39: 17526364 | Q39: 0 | R39: 0 | S39: 17526364 | T39: 0 | U39: 668802 | V39: 0 | W39: 0 | X39: 668802 | Y39: 17526364 | Z39: -1664568 | AA39: 17526364 | AB39: 0 | AC39: -1664568 | AD39: 668802 | AE39: 259570 | AF39: 927145 | AG39: 0 | AH39: 1227 | AI39: -1664568 | AJ39: -3374332 | AK39: 0 | AL39: 0 | AM39: -5038900 | AN39: 1227 | AO39: 22026 | AP39: 0 | AQ39: 0 | AR39: 23253 | AS39: -5038900 | AT39: 13553905 | AU39: -1664568 | AV39: 0 | AW39: 10179573 | AX39: 23253 | AY39: 46383 | AZ39: -23242 | BA39: 0 | BB39: 92878 | BC39: 10179573 | BD39: 5736836.86 | BE39: 0 | BF39: 0 | BG39: 15916409.86 | BH39: 92878 | BI39: 141760.4 | BJ39: 0 | BK39: 0 | BL39: 234638.4 | BM39: 15916409.86 | BN39: -9817313.03 | BO39: 10179574 | BP39: 4970749 | BQ39: =BQ29 -> 890271.83 | BR39: 234638.4 | BS39: 157113.26 | BT39: 290529 | BU39: 0 | BV39: 101222.66 | BW39: 890271.83 | BX39: 4877432.07 | BY39: 0 | BZ39: -430860.8031 | CA39: =CA29 -> 5336843.097 | CB39: 101222.66 | CC39: 42793.17 | CD39: 0 | CE39: 0 | CF39: 144015.83 | CG39: 890271.83 | CH39: 116646.6195 | CI39: 4446571.267 | CJ39: 27369.21055 | CK39: =CK29 -> 79704.78996 | CL39: =CL29 -> 0 | CM39: =CM29 -> 107074.0005 | CN39: =CN29 -> 4553645.267 | CO39: =CO29 -> 940970.71 | CP39: =CO39-SUM(CA39,CF39) -> -4539888.217
C40: Total Group 1 Balance excluding Account 1589 - Global Adjustment | E40: =SUM(E21:E37)-E29 -> 0 | F40: =SUM(F21:F37)-F29 -> 0 | G40: 0 | H40: 0 | I40: 0 | J40: 0 | K40: 0 | L40: 0 | M40: 0 | N40: 0 | O40: 0 | P40: -19061376.35 | Q40: 0 | R40: -13 | S40: -19061389.35 | T40: 0 | U40: -2292640.362 | V40: 0 | W40: 0 | X40: -2292640.362 | Y40: -19061389.35 | Z40: -9554094 | AA40: -13049154 | AB40: 0 | AC40: -15566329.35 | AD40: -2292640.362 | AE40: -254371 | AF40: -575996 | AG40: 0 | AH40: -1971015.362 | AI40: -15566329.35 | AJ40: 3818803.62 | AK40: 0 | AL40: 0 | AM40: -11747525.73 | AN40: -1971015.362 | AO40: -211980.81 | AP40: 0 | AQ40: 0 | AR40: -2182996.172 | AS40: -11747525.73 | AT40: 9512314.17 | AU40: 1664568 | AV40: 0 | AW40: -3899779.56 | AX40: -2182996.172 | AY40: -29300.98 | AZ40: 61726 | BA40: 0 | BB40: -2274023.152 | BC40: -3899779.56 | BD40: -10418625.06 | BE40: 0 | BF40: -2118884 | BG40: -16437288.62 | BH40: -2274023.152 | BI40: -73605.18 | BJ40: 0 | BK40: 2118881 | BL40: -228747.3316 | BM40: -16437288.62 | BN40: =SUM(BN21:BN37)-BN29 -> -5365959.92 | BO40: -176029 | BP40: -890457 | BQ40: -22517676.54 | BR40: =SUM(BR21:BR37)-BR29 -> -228747.3316 | BS40: -216279.6819 | BT40: 38560 | BU40: 79148 | BV40: -404439.0135 | BW40: =SUM(BW21:BW37)-BW29 -> -22517676.54 | BX40: =SUM(BX21:BX37)-BX29 -> -12064659.54 | BY40: =SUM(BY21:BY37)-BY29 -> 0 | BZ40: 4446831.852 | CA40: -30135504.23 | CB40: =SUM(CB21:CB37)-CB29 -> -404439.0135 | CC40: -385205.84 | CD40: 0 | CE40: 1416.030033 | CF40: -788228.8235 | CG40: -22517676.54 | CH40: -794557.7595 | CI40: -7617827.688 | CJ40: 6328.936089 | CK40: -136549.5613 | CL40: 0 | CM40: -130220.6252 | CN40: -7785637.873 | CO40: =SUM(CO21:CO37)-CO29 -> -34525486.71 | CP40: =CO40-SUM(CA40,CF40) -> -3601753.657
C41: Total Group 1 Balance | E41: =SUM(E39,E40) -> 0 | F41: =SUM(F39,F40) -> 0 | G41: 0 | H41: 0 | I41: 0 | J41: 0 | K41: 0 | L41: 0 | M41: 0 | N41: 0 | O41: 0 | P41: =SUM(P39,P40) -> -1535012.35 | Q41: =SUM(Q39,Q40) -> 0 | R41: -13 | S41: -1535025.35 | T41: 0 | U41: -1623838.362 | V41: 0 | W41: 0 | X41: -1623838.362 | Y41: -1535025.35 | Z41: -11218662 | AA41: 4477210 | AB41: 0 | AC41: -17230897.35 | AD41: -1623838.362 | AE41: 5199 | AF41: 351149 | AG41: 0 | AH41: -1969788.362 | AI41: -17230897.35 | AJ41: 444471.62 | AK41: 0 | AL41: 0 | AM41: -16786425.73 | AN41: -1969788.362 | AO41: -189954.81 | AP41: 0 | AQ41: 0 | AR41: -2159743.172 | AS41: -16786425.73 | AT41: 23066219.17 | AU41: 0 | AV41: 0 | AW41: 6279793.44 | AX41: -2159743.172 | AY41: 17082.02 | AZ41: 38484 | BA41: 0 | BB41: -2181145.152 | BC41: 6279793.44 | BD41: -4681788.2 | BE41: 0 | BF41: -2118884 | BG41: -520878.76 | BH41: -2181145.152 | BI41: 68155.22 | BJ41: 0 | BK41: 2118881 | BL41: 5891.0684 | BM41: -520878.76 | BN41: -15183272.95 | BO41: 10003545 | BP41: 4080292 | BQ41: -21627404.71 | BR41: 5891.0684 | BS41: -59166.42189 | BT41: 329089 | BU41: 79148 | BV41: -303216.3535 | BW41: =SUM(BW39,BW40) -> -21627404.71 | BX41: -7187227.47 | BY41: 0 | BZ41: 4015971.049 | CA41: -24798661.13 | CB41: -303216.3535 | CC41: -342412.67 | CD41: 0 | CE41: 1416.030033 | CF41: -644212.9935 | CG41: -21627404.71 | CH41: -677911.1401 | CI41: -3171256.421 | CJ41: 33698.14663 | CK41: -56844.77135 | CL41: 0 | CM41: -23146.62471 | CN41: =SUM(CN39,CN40) -> -3231992.606 | CO41: =SUM(CO39,CO40) -> -33584516 | CP41: =CO41-SUM(CA41,CF41) -> -8141641.873
A43: 29 | C43: LRAM Variance Account (only input amounts if applying for disposition of this account) | D43: 1568 | S43: =O43+P43-Q43+SUM(R43:R43) -> 0 | X43: =T43+U43-V43+W43 -> 0 | Y43: =S43 -> 0 | Z43: 716910 | AC43: =Y43+Z43-AA43+SUM(AB43:AB43) -> 716910 | AD43: =X43 -> 0 | AH43: =AD43+AE43-AF43+AG43 -> 0 | AI43: =AC43 -> 716910 | AJ43: -513961 | AM43: =AI43+AJ43-AK43+SUM(AL43:AL43) -> 202949 | AN43: =AH43 -> 0 | AO43: 13029 | AR43: =AN43+AO43-AP43+AQ43 -> 13029 | AS43: =AM43 -> 202949 | AT43: 73996 | AW43: =AS43+AT43-AU43+SUM(AV43:AV43) -> 276945 | AX43: =AR43 -> 13029 | AY43: 3378 | BB43: =AX43+AY43-AZ43+BA43 -> 16407 | BC43: =AW43 -> 276945 | BD43: 296819 | BG43: =BC43+BD43-BE43+SUM(BF43:BF43) -> 573764 | BH43: =BB43 -> 16407 | BI43: 2310 | BL43: =BH43+BI43-BJ43+BK43 -> 18717 | BM43: =BG43 -> 573764 | BN43: 1581007 | BQ43: =BM43+BN43-BO43+SUM(BP43:BP43) -> 2154771 | BR43: =BL43 -> 18717 | BS43: 9806 | BV43: =BR43+BS43-BT43+BU43 -> 28523 | BW43: =BQ43 -> 2154771 | BX43: 3375748.33 | CA43: =BW43+BX43-BY43+SUM(BZ43:BZ43) -> 5530519.33 | CB43: =BV43 -> 28523 | CC43: 83241.2 | CF43: =CB43+CC43-CD43+CE43 -> 111764.2 | CG43: 2154771 | CH43: 65854.40757 | CI43: =CA43-CG43 -> 3375748.33 | CJ43: =CF43-CH43 -> 45909.79243 | CK43: =+CI43*((0.015*3/12)+(0.0189*9/12)) -> 60510.28882 | CM43: =CJ43+CK43+CL43 -> 106420.0812 | CN43: =SUM(CI43:CL43) -> 3482168.411 | CO43: 5642283.32 | CP43: =CO43-SUM(CA43,CF43) -> -0.21
C45: Total including Account 1568 | E45: =SUM(E41,E43) -> 0 | F45: =SUM(F41,F43) -> 0 | G45: 0 | H45: 0 | I45: 0 | J45: 0 | K45: 0 | L45: 0 | M45: 0 | N45: 0 | O45: 0 | P45: -1535012.35 | Q45: 0 | R45: -13 | S45: -1535025.35 | T45: 0 | U45: -1623838.362 | V45: 0 | W45: 0 | X45: -1623838.362 | Y45: -1535025.35 | Z45: -10501752 | AA45: 4477210 | AB45: 0 | AC45: -16513987.35 | AD45: -1623838.362 | AE45: 5199 | AF45: 351149 | AG45: 0 | AH45: -1969788.362 | AI45: -16513987.35 | AJ45: -69489.38 | AK45: 0 | AL45: 0 | AM45: -16583476.73 | AN45: -1969788.362 | AO45: -176925.81 | AP45: 0 | AQ45: 0 | AR45: -2146714.172 | AS45: -16583476.73 | AT45: 23140215.17 | AU45: 0 | AV45: 0 | AW45: 6556738.44 | AX45: -2146714.172 | AY45: 20460.02 | AZ45: 38484 | BA45: 0 | BB45: -2164738.152 | BC45: 6556738.44 | BD45: -4384969.2 | BE45: 0 | BF45: -2118884 | BG45: 52885.24 | BH45: -2164738.152 | BI45: 70465.22 | BJ45: 0 | BK45: 2118881 | BL45: 24608.0684 | BM45: 52885.24 | BN45: -13602265.95 | BO45: 10003545 | BP45: 4080292 | BQ45: -19472633.71 | BR45: 24608.0684 | BS45: -49360.42189 | BT45: 329089 | BU45: 79148 | BV45: -274693.3535 | BW45: =SUM(BW41,BW43) -> -19472633.71 | BX45: -3811479.14 | BY45: 0 | BZ45: 4015971.049 | CA45: -19268141.8 | CB45: -274693.3535 | CC45: -259171.47 | CD45: 0 | CE45: 1416.030033 | CF45: -532448.7935 | CG45: -19472633.71 | CH45: -612056.7325 | CI45: 204491.909 | CJ45: 79607.93906 | CK45: 3665.517469 | CL45: =SUM(CL41,CL43) -> 0 | CM45: =SUM(CM41,CM43) -> 83273.45653 | CN45: =SUM(CN41,CN43) -> 250175.8057 | CO45: =SUM(CO41,CO43) -> -27942232.68 | CP45: =SUM(CP41,CP43) -> -8141642.083
C48: For all OEB-Approved dispositions, please ensure that the disposition amount has the same sign (e.g: debit balances are to have a positive figure and credit balance are to have a negative figure) as per the related OEB decision.
B51: 1 | C51: Please provide explanations for the nature of the adjustments. If the adjustment relates to previously OEB-Approved disposed balances, please provide amounts for adjustments and include supporting documentations.
B52: 2 | C52: For RSVA accounts only, report the net variance to the account during the year. For all other accounts, record the transactions during the year.
B53: 3 | C53: If the LDC’s rate year begins on January 1, 2017, the projected interest is recorded from January 1, 2016 to December 31, 2016 on the December 31, 2015 balances adjusted for the disposed balances approved by the OEB in the 2016 rate decision. If the LDC’s rate year begins on May 1, 2017, the projected interest is recorded from January 1, 2016 to April 30, 2017 on the December 31, 2015 balances adjusted for the disposed interest balances approved by the OEB in the 2016 rate decision.
B54: 4 | C54: Include Account 1595 as part of Group 1 accounts (lines 30-36) for review and disposition if the recovery (or refund) period has been completed. If the recovery (or refund) period has not been completed, do not include the respective balance in Account 1595 for disposition at this time.
C56: Account 1595 - adjustments (2016):
C57: These were required due to a comprehensive review of all the dispositions during 2015 and 2016. It was determined that there were a number of reporting errors. Past recovery billings were applied to the wrong year or there was transposition errors whereby billings were applied to interest rather than principal or vice versa.

Sheet 4. Billing Det. for Def-Var
A1: Back to Index | K1: Yes | T1: =IF(D18="YES", "YES", "NO") -> NO
B2: =+'1. Information Sheet'!B2 -> INCENTIVE REGULATION MODEL FOR 2019 FILERS
B13: Information from the most recent RRR (2017 for 2019 IRM)
L14: Approved Recoveries (class allocation %)
D15: Total Metered kWh | E15: Total Metered kW | F15: Metered kWh for Non-RPP Customers | G15: Metered kW for Non-RPP Customers | H15: Metered kWh for Wholesale Market Participants (WMP) | I15: Metered kW for Wholesale Market Participants (WMP) | J15: Total Metered kWh less WMP consumption (if applicable) | K15: Total Metered kW less WMP consumption (if applicable) | L15: 1595 Recovery Proportion (2009) 1 | M15: 1595 Recovery Proportion (2010) 1 | N15: 1595 Recovery Proportion (2011) 1 | O15: 1595 Recovery Proportion (2012) 1 | P15: 1595 Recovery Proportion (2013) 1 | Q15: 1595 Recovery Proportion (2014) 1 | R15: 1595 Recovery Proportion (2015) 1 | S15: 1595 Recovery Proportion (2016) 1 | T15: 1568 LRAM Variance Account Class Allocation ($ amounts) | U15: Number of Customers for Residential and GS<50 classes3
B16: Rate Class | C16: Unit
B17: ='Model Specs'!C15 -> RESIDENTIAL SERVICE CLASSIFICATION | C17: kWh | D17: 2544715408 | E17: 0 | F17: 92138185.4 | G17: 0 | J17: =D17-H17 -> 2544715408 | K17: =E17-I17 -> 0 | L17: 0.0977 | M17: 0.0977 | N17: 0.0977 | O17: 0.0977 | P17: 0.0977 | Q17: 0.0977 | R17: 0.0977 | S17: 0.0977 | T17: 664505.781 | U17: 331461
B18: ='Model Specs'!C16 -> GENERAL SERVICE LESS THAN 50 kW SERVICE CLASSIFICATION | C18: kWh | D18: 1005968061 | E18: 0 | F18: 169943241.4 | G18: 0 | J18: =D18-H18 -> 1005968061 | K18: =E18-I18 -> 0 | L18: 0.054 | M18: 0.054 | N18: 0.054 | O18: 0.054 | P18: 0.054 | Q18: 0.054 | R18: 0.054 | S18: 0.054 | T18: 651272.2009 | U18: 32775
B19: ='Model Specs'!C17 -> GENERAL SERVICE 50 to 4,999 kW SERVICE CLASSIFICATION | C19: kW | D19: 4569203493 | E19: 11884201.15 | F19: 4198623578 | G19: 10721485.01 | H19: 28137506.36 | I19: 54146.33 | J19: =D19-H19 -> 4541065986 | K19: =E19-I19 -> 11830054.82 | L19: 0.8368 | M19: 0.8368 | N19: 0.8368 | O19: 0.8368 | P19: 0.8368 | Q19: 0.8368 | R19: 0.8368 | S19: 0.8368 | T19: 1052800.349
B20: ='Model Specs'!C18 -> LARGE USE SERVICE CLASSIFICATION | C20: kW | D20: 51786630.84 | E20: 78982.8 | F20: 51786630.84 | G20: 78982.8 | J20: 51786630.84 | K20: 78982.8 | L20: 0.0018 | M20: 0.0018 | N20: 0.0018 | O20: 0.0018 | P20: 0.0018 | Q20: 0.0018 | R20: 0.0018 | S20: 0.0018 | T20: -5566.842312
B21: ='Model Specs'!C19 -> UNMETERED SCATTERED LOAD SERVICE CLASSIFICATION | C21: kWh | D21: 13620175.23 | E21: 0 | F21: 116789.47 | G21: 0 | J21: 13620175.23 | K21: 0 | L21: 0.0004 | M21: 0.0004 | N21: 0.0004 | O21: 0.0004 | P21: 0.0004 | Q21: 0.0004 | R21: 0.0004 | S21: 0.0004 | T21: -3497.934358
B22: ='Model Specs'!C20 -> STANDBY POWER SERVICE CLASSIFICATION | C22: kW | D22: 0 | E22: 0 | F22: 0 | G22: 0 | J22: 0 | K22: 0 | L22: 0 | M22: 0 | N22: 0 | O22: 0 | P22: 0 | Q22: 0 | R22: 0 | S22: 0 | T22: 0
B23: ='Model Specs'!C21 -> SENTINEL LIGHTING SERVICE CLASSIFICATION | C23: kW | D23: 297132.34 | E23: 779.5 | F23: 19884.78 | G23: 35 | J23: 297132.34 | K23: 779.5 | L23: 0 | M23: 0 | N23: 0 | O23: 0 | P23: 0 | Q23: 0 | R23: 0 | S23: 0 | T23: -169.6289132
B24: ='Model Specs'!C22 -> STREET LIGHTING SERVICE CLASSIFICATION | C24: kW | D24: 50321392.53 | E24: 139970.66 | F24: 49662017.37 | G24: 138137 | J24: 50321392.53 | K24: 139970.66 | L24: 0.0093 | M24: 0.0093 | N24: 0.0093 | O24: 0.0093 | P24: 0.0093 | Q24: 0.0093 | R24: 0.0093 | S24: 0.0093 | T24: 176533.742
J25: 0 | K25: 0
J26: 0 | K26: 0
J27: 0 | K27: 0
J28: 0 | K28: 0
C29: Total | D29: =SUM(D17:D28) -> 8235912292 | E29: =SUM(E17:E28) -> 12103934.11 | F29: 4562290327 | G29: 10938639.81 | H29: 28137506.36 | I29: 54146.33 | J29: 8207774786 | K29: 12049787.78 | L29: 1 | M29: 1 | N29: 1 | O29: 1 | P29: 1 | Q29: 1 | R29: 1 | S29: 1 | T29: 2535877.668 | U29: 364236
B32: Threshold Test | R32: 1568 Account Balance from Continuity Schedule | U32: ='3. Continuity Schedule'!CN43 -> 3482168.411
B33: Total Claim (including Account 1568) | D33: ='3. Continuity Schedule'!CN45 -> 250175.8057 | R33: =IF(U32=T29,"Total Balance of Account 1568 in Column R matches the amount entered on the Continuity Schedule","Total Balance of Account 1568 in Column T DOES NOT MATCH the amount entered on the Continuity Schedule") -> Total Balance of Account 1568 in Column T DOES NOT MATCH the amount entered on the Continuity Schedule
B34: Total Claim for Threshold Test (All Group 1 Accounts) | D34: ='3. Continuity Schedule'!CN41 -> -3231992.606
B35: Threshold Test (Total claim per kWh) 2 | D35: =IFERROR(D34/D29,"") -> -0.0003924267878
B36: Exceeds Threshold? | D36: =IF(D35="","",IF(OR(D35>0.001,D35<-0.001),"Yes","No")) -> No
B37: ELECT TO DISPOSE of the Group 1 Account Balances? | D37: Yes
B40: As per Section 3.2.5 of the 2017 Filing Requirements for Electricity Distribution Rate Applications, an applicant may elect to dispose of the Group 1 account balances below the threshold.
B41: 1 Residual Account balance to be allocated to rate classes in proportion to the recovery share as established when rate riders were implemented.
B42: 2 The Threshold Test does not include the amount in 1568.
B43: 3 The proportion of customers for the Residential and GS<50 Classes will be used to allocate Account 1551.
B45: Information from the 2016 RRR
D47: Total Metered kWh | E47: Total Metered kW | F47: Metered kWh for Non-RPP Customers | G47: Metered kW for Non-RPP Customers | H47: Metered kWh for Wholesale Market Participants (WMP) | I47: Metered kW for Wholesale Market Participants (WMP) | J47: Total Metered kWh less WMP consumption (if applicable) | K47: Total Metered kW less WMP consumption (if applicable)
B48: Rate Class | C48: Unit
B49: =B17 -> RESIDENTIAL SERVICE CLASSIFICATION | C49: kWh | D49: 2770663827 | E49: 0 | F49: 119404036 | G49: 0 | J49: =D49-H49 -> 2770663827 | K49: =E49-I49 -> 0
B50: =B18 -> GENERAL SERVICE LESS THAN 50 kW SERVICE CLASSIFICATION | C50: kWh | D50: 1035123196 | E50: 0 | F50: 180696305.3 | G50: 0 | J50: =D50-H50 -> 1035123196 | K50: =E50-I50 -> 0
B51: GENERAL SERVICE 50 to 4,999 kW SERVICE CLASSIFICATION | C51: kW | D51: 4608279659 | E51: 12138626.27 | F51: 4190177249 | G51: 10153979.52 | H51: 30373390 | I51: 57038 | J51: 4577906269 | K51: =E51-I51 -> 12081588.27
B52: LARGE USE SERVICE CLASSIFICATION | C52: kW | D52: 67734070.28 | E52: 149959.48 | F52: 67734070.28 | G52: 149959.48 | J52: 67734070.28 | K52: =E52-I52 -> 149959.48
B53: UNMETERED SCATTERED LOAD SERVICE CLASSIFICATION | C53: kWh | D53: 13630753.27 | E53: 0 | F53: 132604.93 | G53: 0 | J53: 13630753.27 | K53: 0
B54: STANDBY POWER SERVICE CLASSIFICATION | C54: kW | D54: 0 | E54: 0 | F54: 0 | G54: 0 | J54: 0 | K54: 0
B55: SENTINEL LIGHTING SERVICE CLASSIFICATION | C55: kW | D55: 314901.3 | E55: 858 | F55: 15919.92 | G55: 820.36 | J55: 314901.3 | K55: 858
B56: STREET LIGHTING SERVICE CLASSIFICATION | C56: kW | D56: 52846039.32 | E56: 148246.61 | F56: 52181420.68 | G56: 146076.61 | J56: 52846039.32 | K56: 148246.61
B57: 0 | J57: 0 | K57: 0
J58: 0 | K58: 0
J59: 0 | K59: 0
J60: 0 | K60: 0
C61: Total | D61: =SUM(D49:D60) -> 8548592446 | E61: =SUM(E49:E60) -> 12437690.36 | F61: 4610341606 | G61: 10450835.97 | H61: 30373390 | I61: 57038 | J61: 8518219056 | K61: 12380652.36
B65: GS>50 Interval and non-Interval - 2017
D67: Total Metered kWh | E67: Total Metered kW | F67: Metered kWh for Non-RPP Customers | G67: Metered kW for Non-RPP Customers | H67: Metered kWh for Wholesale Market Participants (WMP) | I67: Metered kW for Wholesale Market Participants (WMP) | J67: Total Metered kWh less WMP consumption (if applicable) | K67: Total Metered kW less WMP consumption (if applicable)
B68: Rate Class | C68: Unit
B69: GS>50 Interval Accounts | C69: kWh | D69: 2116280141 | E69: 5504307.026 | F69: 1944641711 | G69: 4965781.421 | H69: 28137506.36 | I69: 54146.333 | J69: =D69-H69 -> 2088142635 | K69: =E69-I69 -> 5450160.693
B70: GS>50 The rest | C70: kWh | D70: 2452923351 | E70: 6379894.123 | F70: 2253981867 | G70: 5755703.588 | J70: =D70-H70 -> 2452923351 | K70: =E70-I70 -> 6379894.123
B71: GS>50 Total | C71: kW | D71: =SUM(D69:D70) -> 4569203493 | E71: =SUM(E69:E70) -> 11884201.15 | F71: 4198623578 | G71: 10721485.01 | H71: 28137506.36 | I71: 54146.333 | J71: 4541065986 | K71: 11830054.82
B72: control check to RRR | D72: =D71-D19 -> 0 | E72: =E71-E19 -> 0 | F72: -0.001973152161 | G72: 0 | H72: 0 | I72: 0.002999999997 | J72: 0 | K72: -0.002999998629
B75: GS>50 Interval and non-Interval - 2016
D77: Total Metered kWh | E77: Total Metered kW | F77: Metered kWh for Non-RPP Customers | G77: Metered kW for Non-RPP Customers | H77: Metered kWh for Wholesale Market Participants (WMP) | I77: Metered kW for Wholesale Market Participants (WMP) | J77: Total Metered kWh less WMP consumption (if applicable) | K77: Total Metered kW less WMP consumption (if applicable)
B78: Rate Class | C78: Unit
B79: GS>50 Interval Accounts | C79: kWh | D79: 2318951031 | E79: 5647087.148 | F79: 2184532398 | G79: 4698014.107 | H79: 30373390 | I79: 57038 | J79: =D79-H79 -> 2288577641 | K79: =E79-I79 -> 5590049.148
B80: GS>50 The rest | C80: kWh | D80: 2289505114 | E80: 6491539.069 | F80: 2005644851 | G80: 5455965.413 | J80: =D80-H80 -> 2289505114 | K80: =E80-I80 -> 6491539.069
B81: GS>50 Total | C81: kW | D81: =SUM(D79:D80) -> 4608456145 | E81: =SUM(E79:E80) -> 12138626.22 | F81: =SUM(F79:F80) -> 4190177249 | G81: =SUM(G79:G80) -> 10153979.52 | H81: =SUM(H79:H80) -> 30373390 | I81: =SUM(I79:I80) -> 57038 | J81: =SUM(J79:J80) -> 4578082755 | K81: =SUM(K79:K80) -> 12081588.22
B82: control check to RRR | D82: =D81-D51 -> 176485.6501 | E82: =E81-E51 -> -0.05314300023 | F82: -0.009934425354 | G82: 0 | H82: 0 | I82: 0 | J82: 176485.6501 | K82: -0.05314300023
B85: GS>50 Interval and non-Interval - 2017 CIR (based on Proposed 2018 Load Forecast - 2017 CIR EDVAR Model)
D87: Total Metered kWh | E87: Total Metered kW | F87: Metered kWh for Non-RPP Customers | G87: Metered kW for Non-RPP Customers | H87: Metered kWh for Wholesale Market Participants (WMP) | I87: Metered kW for Wholesale Market Participants (WMP) | J87: Total Metered kWh less WMP consumption (if applicable) | K87: Total Metered kW less WMP consumption (if applicable)
B88: Rate Class | C88: Unit
B89: GS>50 Interval Accounts (Allocated) | C89: kWh | D89: =D92*(D69/D71) -> 0 | E89: =E92*(E69/E71) -> 0 | F89: 0 | G89: 0 | H89: 0 | I89: 0 | J89: =D89-H89 -> 0 | K89: =E89-I89 -> 0
B90: GS>50 The rest (Allocated) | C90: kWh | D90: =D92-D89 -> 0 | E90: =E92-E89 -> 0 | F90: 0 | G90: 0 | H90: 0 | I90: 0 | J90: =D90-H90 -> 0 | K90: =E90-I90 -> 0
B91: GS>50 Total | C91: kW | D91: =SUM(D89:D90) -> 0 | E91: =SUM(E89:E90) -> 0 | F91: =SUM(F89:F90) -> 0 | G91: =SUM(G89:G90) -> 0 | H91: =SUM(H89:H90) -> 0 | I91: =SUM(I89:I90) -> 0 | J91: =SUM(J89:J90) -> 0 | K91: =SUM(K89:K90) -> 0
B92: 2018 EDVAR Model

Sheet 5. Allocating Def-Var Balances
A1: Back to Index
B2: =+'1. Information Sheet'!B2 -> INCENTIVE REGULATION MODEL FOR 2019 FILERS
B11: No input required. This workshseet allocates the deferral/variance account balances (Group 1 and 1568) to the appropriate classes as per EDDVAR dated July 31, 2009
B13: Allocation of Group 1 Accounts (including Account 1568)
C14: % of Total kWh | D14: % of Total non-RPP kWh | E14: % of Customer Numbers ** | F14: % of Total kWh adjusted for WMP | I14: allocated based on Total less WMP | N14: allocated based on Total less WMP | O14: 1595_(2009) | P14: 1595_(2010) | Q14: 1595_(2011) | R14: 1595_(2012) | S14: 1595_(2013) | T14: 1595_(2014) | U14: 1595_(2015) | V14: 1595_(2016) | W14: 1568
B15: Rate Class | G15: 1550 | H15: 1551 | I15: 1580 | J15: 1580 (Class A) | K15: 1580 (Class B) | L15: 1584 | M15: 1586 | N15: 1588
B16: ='4. Billing Det. for Def-Var'!B17 -> RESIDENTIAL SERVICE CLASSIFICATION | C16: =IFERROR('4. Billing Det. for Def-Var'!D17/'4. Billing Det. for Def-Var'!D$29,"") -> 0.3089779635 | D16: =IFERROR('4. Billing Det. for Def-Var'!F17/'4. Billing Det. for Def-Var'!F$29,"") -> 0.02019559888 | E16: =IFERROR('4. Billing Det. for Def-Var'!U17/'4. Billing Det. for Def-Var'!U$29,"") -> 0.9100171317 | F16: =IFERROR('4. Billing Det. for Def-Var'!J17/'4. Billing Det. for Def-Var'!J$29,"") -> 0.3100371872 | G16: =IFERROR(G$28*C16,"") -> 469201.2491 | H16: =IFERROR(H$28*E16,"") -> -360082.5816 | I16: =IFERROR(I$28*F16,"") -> -2490758.549 | L16: =IFERROR(L$28*$C16,"") -> -2099068.142 | M16: =IFERROR(M$28*$C16,"") -> -324397.992 | N16: =IFERROR(N$28*$F16,"") -> 2190587.617 | O16: ='4. Billing Det. for Def-Var'!$L17*O$28 -> 0 | P16: ='4. Billing Det. for Def-Var'!$L17*P$28 -> 0 | Q16: ='4. Billing Det. for Def-Var'!$L17*Q$28 -> 0 | R16: ='4. Billing Det. for Def-Var'!$L17*R$28 -> 0 | S16: ='4. Billing Det. for Def-Var'!$L17*S$28 -> 0 | T16: ='4. Billing Det. for Def-Var'!$L17*T$28 -> 0 | U16: ='4. Billing Det. for Def-Var'!$L17*U$28 -> 0 | V16: ='4. Billing Det. for Def-Var'!$L17*V$28 -> 0 | W16: ='4. Billing Det. for Def-Var'!T17 -> 664505.781
B17: ='4. Billing Det. for Def-Var'!B18 -> GENERAL SERVICE LESS THAN 50 kW SERVICE CLASSIFICATION | C17: =IFERROR('4. Billing Det. for Def-Var'!D18/'4. Billing Det. for Def-Var'!D$29,"") -> 0.1221440959 | D17: =IFERROR('4. Billing Det. for Def-Var'!F18/'4. Billing Det. for Def-Var'!F$29,"") -> 0.03724954556 | E17: =IFERROR('4. Billing Det. for Def-Var'!U18/'4. Billing Det. for Def-Var'!U$29,"") -> 0.08998286825 | F17: =IFERROR('4. Billing Det. for Def-Var'!J18/'4. Billing Det. for Def-Var'!J$29,"") -> 0.1225628245 | G17: =IFERROR(G$28*C17,"") -> 185483.0089 | H17: =IFERROR(H$28*E17,"") -> -35605.11376 | I17: =IFERROR(I$28*F17,"") -> -984638.0226 | L17: =IFERROR(L$28*$C17,"") -> -829796.3304 | M17: -128239.888 | N17: =IFERROR(N$28*$F17,"") -> 865975.4919 | O17: ='4. Billing Det. for Def-Var'!$L18*O$28 -> 0 | P17: ='4. Billing Det. for Def-Var'!$L18*P$28 -> 0 | Q17: ='4. Billing Det. for Def-Var'!$L18*Q$28 -> 0 | R17: ='4. Billing Det. for Def-Var'!$L18*R$28 -> 0 | S17: ='4. Billing Det. for Def-Var'!$L18*S$28 -> 0 | T17: ='4. Billing Det. for Def-Var'!$L18*T$28 -> 0 | U17: ='4. Billing Det. for Def-Var'!$L18*U$28 -> 0 | V17: ='4. Billing Det. for Def-Var'!$L18*V$28 -> 0 | W17: ='4. Billing Det. for Def-Var'!T18 -> 651272.2009
B18: ='4. Billing Det. for Def-Var'!B19 -> GENERAL SERVICE 50 to 4,999 kW SERVICE CLASSIFICATION | C18: =IFERROR('4. Billing Det. for Def-Var'!D19/'4. Billing Det. for Def-Var'!D$29,"") -> 0.5547902079 | D18: =IFERROR('4. Billing Det. for Def-Var'!F19/'4. Billing Det. for Def-Var'!F$29,"") -> 0.9202885561 | E18: =IFERROR('4. Billing Det. for Def-Var'!U19/'4. Billing Det. for Def-Var'!U$29,"") -> 0 | F18: =IFERROR('4. Billing Det. for Def-Var'!J19/'4. Billing Det. for Def-Var'!J$29,"") -> 0.5532639607 | G18: =IFERROR(G$28*C18,"") -> 842481.6305 | H18: =IFERROR(H$28*E18,"") -> 0 | I18: =IFERROR(I$28*F18,"") -> -4444779.519 | L18: -3769014.584 | M18: -582477.8808 | N18: =IFERROR(N$28*$F18,"") -> 3909121.974 | O18: ='4. Billing Det. for Def-Var'!$L19*O$28 -> 0 | P18: ='4. Billing Det. for Def-Var'!$L19*P$28 -> 0 | Q18: ='4. Billing Det. for Def-Var'!$L19*Q$28 -> 0 | R18: ='4. Billing Det. for Def-Var'!$L19*R$28 -> 0 | S18: ='4. Billing Det. for Def-Var'!$L19*S$28 -> 0 | T18: ='4. Billing Det. for Def-Var'!$L19*T$28 -> 0 | U18: ='4. Billing Det. for Def-Var'!$L19*U$28 -> 0 | V18: ='4. Billing Det. for Def-Var'!$L19*V$28 -> 0 | W18: ='4. Billing Det. for Def-Var'!T19 -> 1052800.349
B19: ='4. Billing Det. for Def-Var'!B20 -> LARGE USE SERVICE CLASSIFICATION | C19: =IFERROR('4. Billing Det. for Def-Var'!D20/'4. Billing Det. for Def-Var'!D$29,"") -> 0.006287904607 | D19: =IFERROR('4. Billing Det. for Def-Var'!F20/'4. Billing Det. for Def-Var'!F$29,"") -> 0.01135101607 | E19: =IFERROR('4. Billing Det. for Def-Var'!U20/'4. Billing Det. for Def-Var'!U$29,"") -> 0 | F19: =IFERROR('4. Billing Det. for Def-Var'!J20/'4. Billing Det. for Def-Var'!J$29,"") -> 0.006309460504 | G19: 9548.553759 | H19: 0 | I19: -50688.57331 | L19: -42717.41611 | M19: -6601.712319 | N19: 44579.89758 | O19: ='4. Billing Det. for Def-Var'!$L20*O$28 -> 0 | P19: ='4. Billing Det. for Def-Var'!$L20*P$28 -> 0 | Q19: ='4. Billing Det. for Def-Var'!$L20*Q$28 -> 0 | R19: ='4. Billing Det. for Def-Var'!$L20*R$28 -> 0 | S19: ='4. Billing Det. for Def-Var'!$L20*S$28 -> 0 | T19: ='4. Billing Det. for Def-Var'!$L20*T$28 -> 0 | U19: ='4. Billing Det. for Def-Var'!$L20*U$28 -> 0 | V19: ='4. Billing Det. for Def-Var'!$L20*V$28 -> 0 | W19: ='4. Billing Det. for Def-Var'!T20 -> -5566.842312
B20: ='4. Billing Det. for Def-Var'!B21 -> UNMETERED SCATTERED LOAD SERVICE CLASSIFICATION | C20: =IFERROR('4. Billing Det. for Def-Var'!D21/'4. Billing Det. for Def-Var'!D$29,"") -> 0.001653754283 | D20: =IFERROR('4. Billing Det. for Def-Var'!F21/'4. Billing Det. for Def-Var'!F$29,"") -> 2.559886847e-05 | E20: =IFERROR('4. Billing Det. for Def-Var'!U21/'4. Billing Det. for Def-Var'!U$29,"") -> 0 | F20: =IFERROR('4. Billing Det. for Def-Var'!J21/'4. Billing Det. for Def-Var'!J$29,"") -> 0.001659423606 | G20: 2511.323353 | H20: 0 | I20: -13331.37992 | L20: -11234.92074 | M20: -1736.287477 | N20: 11724.76384 | O20: ='4. Billing Det. for Def-Var'!$L21*O$28 -> 0 | P20: ='4. Billing Det. for Def-Var'!$L21*P$28 -> 0 | Q20: ='4. Billing Det. for Def-Var'!$L21*Q$28 -> 0 | R20: ='4. Billing Det. for Def-Var'!$L21*R$28 -> 0 | S20: ='4. Billing Det. for Def-Var'!$L21*S$28 -> 0 | T20: ='4. Billing Det. for Def-Var'!$L21*T$28 -> 0 | U20: ='4. Billing Det. for Def-Var'!$L21*U$28 -> 0 | V20: ='4. Billing Det. for Def-Var'!$L21*V$28 -> 0 | W20: ='4. Billing Det. for Def-Var'!T21 -> -3497.934358
B21: ='4. Billing Det. for Def-Var'!B22 -> STANDBY POWER SERVICE CLASSIFICATION | C21: =IFERROR('4. Billing Det. for Def-Var'!D22/'4. Billing Det. for Def-Var'!D$29,"") -> 0 | D21: =IFERROR('4. Billing Det. for Def-Var'!F22/'4. Billing Det. for Def-Var'!F$29,"") -> 0 | E21: =IFERROR('4. Billing Det. for Def-Var'!U22/'4. Billing Det. for Def-Var'!U$29,"") -> 0 | F21: =IFERROR('4. Billing Det. for Def-Var'!J22/'4. Billing Det. for Def-Var'!J$29,"") -> 0 | G21: 0 | H21: 0 | I21: 0 | L21: 0 | M21: 0 | N21: 0 | O21: ='4. Billing Det. for Def-Var'!$L22*O$28 -> 0 | P21: ='4. Billing Det. for Def-Var'!$L22*P$28 -> 0 | Q21: ='4. Billing Det. for Def-Var'!$L22*Q$28 -> 0 | R21: ='4. Billing Det. for Def-Var'!$L22*R$28 -> 0 | S21: ='4. Billing Det. for Def-Var'!$L22*S$28 -> 0 | T21: ='4. Billing Det. for Def-Var'!$L22*T$28 -> 0 | U21: ='4. Billing Det. for Def-Var'!$L22*U$28 -> 0 | V21: ='4. Billing Det. for Def-Var'!$L22*V$28 -> 0 | W21: ='4. Billing Det. for Def-Var'!T22 -> 0
B22: ='4. Billing Det. for Def-Var'!B23 -> SENTINEL LIGHTING SERVICE CLASSIFICATION | C22: =IFERROR('4. Billing Det. for Def-Var'!D23/'4. Billing Det. for Def-Var'!D$29,"") -> 3.607764744e-05 | D22: =IFERROR('4. Billing Det. for Def-Var'!F23/'4. Billing Det. for Def-Var'!F$29,"") -> 4.358508243e-06 | E22: =IFERROR('4. Billing Det. for Def-Var'!U23/'4. Billing Det. for Def-Var'!U$29,"") -> 0 | F22: =IFERROR('4. Billing Det. for Def-Var'!J23/'4. Billing Det. for Def-Var'!J$29,"") -> 3.620132713e-05 | G22: 54.78603408 | H22: 0 | I22: -290.8320961 | L22: -245.0965742 | M22: -37.87815885 | N22: 255.782797 | O22: ='4. Billing Det. for Def-Var'!$L23*O$28 -> 0 | P22: ='4. Billing Det. for Def-Var'!$L23*P$28 -> 0 | Q22: ='4. Billing Det. for Def-Var'!$L23*Q$28 -> 0 | R22: ='4. Billing Det. for Def-Var'!$L23*R$28 -> 0 | S22: ='4. Billing Det. for Def-Var'!$L23*S$28 -> 0 | T22: ='4. Billing Det. for Def-Var'!$L23*T$28 -> 0 | U22: ='4. Billing Det. for Def-Var'!$L23*U$28 -> 0 | V22: ='4. Billing Det. for Def-Var'!$L23*V$28 -> 0 | W22: ='4. Billing Det. for Def-Var'!T23 -> -169.6289132
B23: ='4. Billing Det. for Def-Var'!B24 -> STREET LIGHTING SERVICE CLASSIFICATION | C23: =IFERROR('4. Billing Det. for Def-Var'!D24/'4. Billing Det. for Def-Var'!D$29,"") -> 0.006109996166 | D23: =IFERROR('4. Billing Det. for Def-Var'!F24/'4. Billing Det. for Def-Var'!F$29,"") -> 0.01088532597 | E23: =IFERROR('4. Billing Det. for Def-Var'!U24/'4. Billing Det. for Def-Var'!U$29,"") -> 0 | F23: =IFERROR('4. Billing Det. for Def-Var'!J24/'4. Billing Det. for Def-Var'!J$29,"") -> 0.006130942167 | G23: 9278.389307 | H23: 0 | I23: -49254.40317 | L23: -41508.77995 | M23: -6414.92508 | N23: 43318.56483 | O23: ='4. Billing Det. for Def-Var'!$L24*O$28 -> 0 | P23: ='4. Billing Det. for Def-Var'!$L24*P$28 -> 0 | Q23: ='4. Billing Det. for Def-Var'!$L24*Q$28 -> 0 | R23: ='4. Billing Det. for Def-Var'!$L24*R$28 -> 0 | S23: ='4. Billing Det. for Def-Var'!$L24*S$28 -> 0 | T23: ='4. Billing Det. for Def-Var'!$L24*T$28 -> 0 | U23: ='4. Billing Det. for Def-Var'!$L24*U$28 -> 0 | V23: ='4. Billing Det. for Def-Var'!$L24*V$28 -> 0 | W23: ='4. Billing Det. for Def-Var'!T24 -> 176533.742
O24: ='4. Billing Det. for Def-Var'!$L25*O$28 -> 0 | P24: ='4. Billing Det. for Def-Var'!$L25*P$28 -> 0 | Q24: ='4. Billing Det. for Def-Var'!$L25*Q$28 -> 0 | R24: ='4. Billing Det. for Def-Var'!$L25*R$28 -> 0 | S24: ='4. Billing Det. for Def-Var'!$L25*S$28 -> 0 | T24: ='4. Billing Det. for Def-Var'!$L25*T$28 -> 0 | U24: ='4. Billing Det. for Def-Var'!$L25*U$28 -> 0 | V24: ='4. Billing Det. for Def-Var'!$L25*V$28 -> 0 | W24: ='4. Billing Det. for Def-Var'!T25 -> 0
C28: =SUM(C16:C27) -> 1 | D28: =SUM(D16:D27) -> 1 | E28: =SUM(E16:E27) -> 1 | F28: =SUM(F16:F27) -> 1 | G28: ='3. Continuity Schedule'!CN21 -> 1518558.941 | H28: ='3. Continuity Schedule'!CN22 -> -395687.6954 | I28: ='3. Continuity Schedule'!CN23 -> -8033741.28 | L28: ='3. Continuity Schedule'!CN26 -> -6793585.269 | M28: ='3. Continuity Schedule'!CN27 -> -1049906.564 | N28: ='3. Continuity Schedule'!CN28 -> 7065564.092 | O28: =TRANSPOSE('3. Continuity Schedule'!CN30:CN37) -> 0 | P28: 0 | Q28: 0 | R28: 0 | S28: 0 | T28: 0 | U28: 0 | V28: 0 | W28: =SUM(W16:W27) -> 2535877.668
G29: =SUM(G16:G27)-G28 -> 0 | H29: =SUM(H16:H27)-H28 -> 0 | I29: 0 | J29: 0 | K29: 0 | L29: 0 | M29: 0 | N29: 0 | O29: 0 | P29: 0 | Q29: 0 | R29: 0 | S29: 0 | T29: 0 | U29: 0 | V29: 0 | W29: 0
B32: ** Used to allocate Account 1551 as this account records the variances arising from the Smart Metering Entity Charges to Residential and GS<50 customers.
B34: TO DO:
B35: Hid columns

Sheet 6. GA Calculation
A1: Back to Index
B2: =+'1. Information Sheet'!B2 -> INCENTIVE REGULATION MODEL FOR 2019 FILERS
B13: The purpose of this tab is to calculate the GA rate riders for all current Class B customers of the distributor. Identify the total billed consumption for former Class B customers prior to becoming Class A customers in Column G. Identify the total interval metered accounts billed consumption, if billed on Actual GA rate. Effective January 2017, the billing determinant and all rate riders for the disposition of GA balances will be calculated on an energy basis (kWhs) regardless of the billing determinant used for distribution rates for the particular class (see Chapter 3, Filing Requirements, section 3.2.5.2)
C14: Total Metered Non-RPP consumption minus WMP | D14: Total Metered Class A Consumption in 2017 (partial and/or full year Class A customers)* | F14: Total Metered Consumption for New Class A customer(s) in the period prior to becoming Class A (i.e. Jan. 1 - June 30, 2017) | G14: Total Metered Consumption for New Class B customer(s) in the period after becoming Class B (i.e. Jul 1 - Dec 31, 2017) | H14: Total Interval-metered Consumption in 2017 for non-Class A customers | I14: Metered Consumption for Current Class B non-Interval Customers (Non-RPP consumption LESS WMP, Class A and new Class A's former Class B consumption if applicable) | K14: % of total kWh | L14: Total GA $ allocated to Current Class B Customers | M14: GA Rate Rider | O14: Revenue Reconciliation | P14: Variance
C15: kWh | D15: kWh | E15: kW | F15: kWh | G15: kWh | H15: kWh | I15: kWh | J15: kW
B17: ='4. Billing Det. for Def-Var'!B17 -> RESIDENTIAL SERVICE CLASSIFICATION | C17: ='4. Billing Det. for Def-Var'!F17-'4. Billing Det. for Def-Var'!H17 -> 92138185.4 | I17: =C17-D17-F17-G17-H17 -> 92138185.4 | K17: =IFERROR(I17/I$29,"") -> 0.03590925231 | L17: =IFERROR(L$29*K17,"") -> 163517.9968 | M17: =IFERROR(L17/I17,"") -> 0.001774703898 | N17: kwh | O17: =ROUND(M17,4)*I17 -> 165848.7337 | P17: =L17-O17 -> -2330.736901
B18: ='4. Billing Det. for Def-Var'!B18 -> GENERAL SERVICE LESS THAN 50 kW SERVICE CLASSIFICATION | C18: ='4. Billing Det. for Def-Var'!F18-'4. Billing Det. for Def-Var'!H18 -> 169943241.4 | I18: =C18-D18-F18-G18-H18 -> 169943241.4 | K18: =IFERROR(I18/I$29,"") -> 0.06623241717 | L18: =IFERROR(L$29*K18,"") -> 301598.933 | M18: =IFERROR(L18/I18,"") -> 0.001774703898 | N18: kwh | O18: =ROUND(M18,4)*I18 -> 305897.8345 | P18: =L18-O18 -> -4298.901504
B19: ='4. Billing Det. for Def-Var'!B19 -> GENERAL SERVICE 50 to 4,999 kW SERVICE CLASSIFICATION | C19: ='4. Billing Det. for Def-Var'!F19-'4. Billing Det. for Def-Var'!H19 -> 4170486072 | D19: 753292526 | F19: ='6A. GA Allocation_Class A'!E134-F20 -> 426790693.8 | H19: ='4. Billing Det. for Def-Var'!F69-'4. Billing Det. for Def-Var'!H69-D19-F19 -> 736420985.1 | I19: =C19-D19-F19-G19-H19 -> 2253981867 | K19: 0.8784501582 | L19: =IFERROR(L$29*K19,"") -> 4000150.405 | M19: =IFERROR(L19/I19,"") -> 0.001774703898 | N19: kwh (non-Intervals ONLY) | O19: 4057167.36 | P19: -57016.95435
B20: ='4. Billing Det. for Def-Var'!B20 -> LARGE USE SERVICE CLASSIFICATION | C20: ='4. Billing Det. for Def-Var'!F20-'4. Billing Det. for Def-Var'!H20 -> 51786630.84 | D20: 49680913.44 | F20: ='6A. GA Allocation_Class A'!E102 -> 2105717.389 | G20: ='6B. GA Allocation_new Class B'!E44 -> 0 | I20: 0.01004912937 | K20: 3.916473072e-12 | L20: 1.783422907e-05 | M20: 0 | N20: kwh | O20: 0 | P20: 1.783422907e-05
B21: ='4. Billing Det. for Def-Var'!B21 -> UNMETERED SCATTERED LOAD SERVICE CLASSIFICATION | C21: ='4. Billing Det. for Def-Var'!F21-'4. Billing Det. for Def-Var'!H21 -> 116789.47 | I21: 116789.47 | K21: =IFERROR(I21/I$29,"") -> 4.551666095e-05 | L21: 207.2667277 | M21: 0.001774703898 | N21: kwh | O21: 210.221046 | P21: -2.954318301
B22: ='4. Billing Det. for Def-Var'!B22 -> STANDBY POWER SERVICE CLASSIFICATION | C22: ='4. Billing Det. for Def-Var'!F22-'4. Billing Det. for Def-Var'!H22 -> 0 | I22: 0 | K22: 0 | L22: 0 | O22: 0 | P22: 0
B23: ='4. Billing Det. for Def-Var'!B23 -> SENTINEL LIGHTING SERVICE CLASSIFICATION | C23: ='4. Billing Det. for Def-Var'!F23-'4. Billing Det. for Def-Var'!H23 -> 19884.78 | I23: 19884.78 | K23: 7.749746524e-06 | L23: 35.28959658 | M23: 0.001774703898 | N23: kwh | O23: 35.792604 | P23: -0.5030074156
B24: ='4. Billing Det. for Def-Var'!B24 -> STREET LIGHTING SERVICE CLASSIFICATION | C24: ='4. Billing Det. for Def-Var'!F24-'4. Billing Det. for Def-Var'!H24 -> 49662017.37 | I24: 49662017.37 | K24: 0.01935490594 | L24: 88135.37583 | M24: 0.001774703898 | N24: kwh | O24: 89391.63127 | P24: -1256.255438
C29: =SUM(C17:C28) -> 4534152821 | D29: =SUM(D17:D28) -> 802973439.5 | E29: 0 | F29: 428896411.2 | G29: 0 | H29: 736420985.1 | I29: 2565861985 | J29: 0 | K29: 1 | L29: ='6B. GA Allocation_new Class B'!D28 -> 4553645.267 | O29: =SUM(O17:O28) -> 4618551.573 | P29: =SUM(P17:P28) -> -64906.3055
L30: from Sheet 6B
O31: NOTE: if rate rider is at 5 decimal places, then the balance dispostion is in full
B32: *For new Class A customers (who became Class A in 2016), add their consumption only related to July to December period.
B33: All Class A customers are interval-metered. They consumption is included in Column D.
B34: **PowerStream bills Class B non-RPP interval billed customers at the actual monthly GA rate (no GA variance) and non-interval customers at the first estimate rate.
B37: 2016 DATA | C37: Total Metered Non-RPP consumption minus WMP | D37: Total Metered Class A Consumption in 2016 (partial and/or full year Class A customers)* | F37: Total Metered Consumption for New Class A customer(s) in the period prior to becoming Class A (i.e. Jan. 1 - June 30, 2016)
C38: kWh | D38: kWh | E38: kW | F38: kWh
B40: =B17 -> RESIDENTIAL SERVICE CLASSIFICATION
B41: GENERAL SERVICE LESS THAN 50 kW SERVICE CLASSIFICATION
B42: GENERAL SERVICE 50 to 4,999 kW SERVICE CLASSIFICATION
B43: LARGE USE SERVICE CLASSIFICATION
B44: UNMETERED SCATTERED LOAD SERVICE CLASSIFICATION
B45: STANDBY POWER SERVICE CLASSIFICATION
B46: SENTINEL LIGHTING SERVICE CLASSIFICATION
B47: STREET LIGHTING SERVICE CLASSIFICATION
C52: =SUM(C40:C51) -> 0 | D52: =SUM(D40:D51) -> 0 | E52: 0 | F52: 0

Sheet 6A. GA Allocation_Class A
A1: Back to Index
B2: =+'1. Information Sheet'!B2 -> INCENTIVE REGULATION MODEL FOR 2019 FILERS
B12: This tab allocates the GA balance to former Class B non-interval customers who contributed to the current GA balance but are now Class A customers. The tables below calculate specific amounts for each customer who made the change. Consistent with both decisions for 2016 rates and EDDVAR, distributors are generally expected to settle the amount through 12 equal adjustments to bills. A one-time settlement is acceptable if the affected customer has expressed a clear preference for this approach. (see Filing Requirements section 3.2.5.2)
B14: Year of Group 1 Account Balance Last Disposed | C14: 2016 | D14: (e.g. If in the 2017 EDR process, you received approval to dispose the GA variance account balance as of December 31, 2014, please enter 2014 in cell C16.)
B16: Allocation of total Non-RPP consumption (kWh) between Class B and New Class A (Former Class B non-Interval) customers
D17: Total | E17: 2017 | F17: 2016 | G17: 2015 | H17: 2014 | I17: 2013
B18: Total Class B Consumption for Years Since Last Disposition (Non-RPP consumption LESS WMP and Class A) | C18: A | D18: =SUM(E18:I18) -> 3731179381 | E18: ='6. GA Calculation'!C29-'6. GA Calculation'!D29 -> 3731179381
B19: New Class A Customer(s)' Former Class B non-Interval Consumption | C19: B | D19: =SUM(E19:I19) -> 0 | E19: =E135 -> 0 | F19: =F135 -> 0 | G19: =G135 -> 0 | H19: =H135 -> 0 | I19: =I135 -> 0
B20: Portion of Consumption of Former Class B non-Interval Customers | C20: C=B/A | D20: =IFERROR(+D19/D18,0) -> 0
B23: Allocation of Total GA Balance $
B25: Total GA Balance | C25: D | D25: ='3. Continuity Schedule'!CN29 -> 4553645.267
B26: New Class A Customer(s)' Former Class B non-Intervals Portion of GA Balance | C26: E=C*D | D26: =+D20*D25 -> 0
B27: GA Balance to be disposed to Current Class B Customers (if no Class A to Class B Transition Customers) | C27: F=D-E | D27: =+D25-D26 -> 4553645.267 | P27: s
B29: Allocation of GA Balances to Former Class B non-Interval Customers
B31: # of Former Class B customer(s) | E31: 2 | F31: 9
B32: Customer | D32: Total Metered kWh Consumption for each new Class A customer for the period prior to becoming Class A | E32: Metered kWh Consumption for each new Class A customer for the period prior to becoming Class A in 2017 | F32: Metered kWh Consumption for each new Class A customer for the period prior to becoming Class A in 2016 | G32: Metered kWh Consumption for each new Class A customer for the period prior to becoming Class A in 2015 | H32: Metered kWh Consumption for each new Class A customer for the period prior to becoming Class A in 2014 | I32: Metered kWh Consumption for each new Class A customer for the period prior to becoming Class A in 2013 | J32: Interval-Billed* Customer? Yes/No | K32: % of kWh | L32: Customer specific GA allocation for the period prior to becoming Class A | M32: Monthly Equal Payments
B33: Customer 1 | D33: =SUM(E33:I33) -> 4861795.236 | E33: 4861795.236 | J33: Yes | K33: =IF(J33="No",IFERROR(+E33/$E$134,0),"") ->  | L33: =IFERROR(K33*$D$26,"") ->  | M33: =IFERROR(+L33/12,"") -> 
B34: Customer 2 | D34: 3930790.326 | E34: 3930790.326 | J34: Yes | K34: =IF(J34="No",IFERROR(+E34/$E$134,0),"") ->  | M34: =IFERROR(+L34/12,"") -> 
B35: Customer 3 | D35: 6047773.898 | E35: 6047773.898 | J35: Yes
B36: Customer 4 | D36: 6481811.955 | E36: 6481811.955 | J36: Yes
B37: Customer 5 | D37: 4803826.12 | E37: 4803826.12 | J37: Yes
B38: Customer 6 | D38: 2611330.433 | E38: 2611330.433 | J38: Yes
B39: Customer 7 | D39: 1595116.39 | E39: 1595116.39 | J39: Yes
B40: Customer 8 | D40: 2387755.949 | E40: 2387755.949 | J40: Yes
B41: Customer 9 | D41: 5720262.197 | E41: 5720262.197 | J41: Yes
B42: Customer 10 | D42: 3272370.257 | E42: 3272370.257 | J42: Yes
B43: Customer 11 | D43: 8441838.638 | E43: 8441838.638 | J43: Yes
B44: Customer 12 | D44: 2625837.866 | E44: 2625837.866 | J44: Yes
B45: Customer 13 | D45: 2653445.078 | E45: 2653445.078 | J45: Yes
B46: Customer 14 | D46: 3147859.336 | E46: 3147859.336 | J46: Yes
B47: Customer 15 | D47: 3332918.06 | E47: 3332918.06 | J47: Yes
B48: Customer 16 | D48: 4136640.247 | E48: 4136640.247 | J48: Yes
B49: Customer 17 | D49: 3245969.763 | E49: 3245969.763 | J49: Yes
B50: Customer 18 | D50: 3177048.922 | E50: 3177048.922 | J50: Yes
B51: Customer 19 | D51: 2809619.369 | E51: 2809619.369 | J51: Yes
B52: Customer 20 | D52: 6209492.274 | E52: 6209492.274 | J52: Yes
B53: Customer 21 | D53: 4527929.973 | E53: 4527929.973 | J53: Yes
B54: Customer 22 | D54: 3782020.794 | E54: 3782020.794 | J54: Yes
B55: Customer 23 | D55: 3742651.749 | E55: 3742651.749 | J55: Yes
B56: Customer 24 | D56: 2782849.131 | E56: 2782849.131 | J56: Yes
B57: Customer 25 | D57: 5097300.319 | E57: 5097300.319 | J57: Yes
B58: Customer 26 | D58: 3461135.815 | E58: 3461135.815 | J58: Yes
B59: Customer 27 | D59: 2918977.079 | E59: 2918977.079 | J59: Yes
B60: Customer 28 | D60: 5487949.954 | E60: 5487949.954 | J60: Yes
B61: Customer 29 | D61: 3639314.454 | E61: 3639314.454 | J61: Yes
B62: Customer 30 | D62: 4521495.735 | E62: 4521495.735 | J62: Yes
B63: Customer 31 | D63: 2048149.688 | E63: 2048149.688 | J63: Yes
B64: Customer 32 | D64: 3655013.696 | E64: 3655013.696 | J64: Yes
B65: Customer 33 | D65: 5198389.367 | E65: 5198389.367 | J65: Yes
B66: Customer 34 | D66: 2184895.243 | E66: 2184895.243 | J66: Yes
B67: Customer 35 | D67: 2607537.935 | E67: 2607537.935 | J67: Yes
B68: Customer 36 | D68: 2832057.8 | E68: 2832057.8 | J68: Yes
B69: Customer 37 | D69: 8843195.133 | E69: 8843195.133 | J69: Yes
B70: Customer 38 | D70: 4322960.735 | E70: 4322960.735 | J70: Yes
B71: Customer 39 | D71: 1753749.443 | E71: 1753749.443 | J71: Yes
B72: Customer 40 | D72: 3149976.62 | E72: 3149976.62 | J72: Yes
B73: Customer 41 | D73: 8778715.803 | E73: 8778715.803 | J73: Yes
B74: Customer 42 | D74: 1626269.042 | E74: 1626269.042 | J74: Yes
B75: Customer 43 | D75: 3030376.991 | E75: 3030376.991 | J75: Yes
B76: Customer 44 | D76: 5406285.777 | E76: 5406285.777 | J76: Yes
B77: Customer 45 | D77: 3313830.814 | E77: 3313830.814 | J77: Yes
B78: Customer 46 | D78: 6473884.177 | E78: 6473884.177 | J78: Yes
B79: Customer 47 | D79: 5059374.156 | E79: 5059374.156 | J79: Yes
B80: Customer 48 | D80: 8753052.053 | E80: 8753052.053 | J80: Yes
B81: Customer 49 | D81: 3500168.967 | E81: 3500168.967 | J81: Yes
B82: Customer 50 | D82: 699837.3582 | E82: 699837.3582 | J82: Yes
B83: Customer 51 | D83: 2342897.081 | E83: 2342897.081 | J83: Yes
B84: Customer 52 | D84: 6336351.099 | E84: 6336351.099 | J84: Yes
B85: Customer 53 | D85: 6716394.611 | E85: 6716394.611 | J85: Yes
B86: Customer 54 | D86: =SUM(E86:I86) -> 3540221.694 | E86: 3540221.694 | J86: Yes
B87: Customer 55 | D87: 2775088.743 | E87: 2775088.743 | J87: Yes
B88: Customer 56 | D88: 1147914.39 | E88: 1147914.39 | J88: Yes
B89: Customer 57 | D89: 10462652.31 | E89: 10462652.31 | J89: Yes
B90: Customer 58 | D90: 2036045.57 | E90: 2036045.57 | J90: Yes
B91: Customer 59 | D91: 3726869.807 | E91: 3726869.807 | J91: Yes
B92: Customer 60 | D92: 5799121.701 | E92: 5799121.701 | J92: Yes
B93: Customer 61 | D93: 4815070.697 | E93: 4815070.697 | J93: Yes
B94: Customer 62 | D94: 3714538.536 | E94: 3714538.536 | J94: Yes
B95: Customer 63 | D95: 5962741.443 | E95: 5962741.443 | J95: Yes
B96: Customer 64 | D96: 4518736.484 | E96: 4518736.484 | J96: Yes
B97: Customer 65 | D97: 3188033.002 | E97: 3188033.002 | J97: Yes | L97: =IFERROR(K97*$D$26,"") -> 
B98: Customer 66 | D98: 3295887.5 | E98: 3295887.5 | J98: Yes | K98: =IF(J98="No",IFERROR(+E98/$E$134,0),"") ->  | M98: =IFERROR(+L98/12,"") -> 
B99: Customer 67 | D99: 7598348.38 | E99: 7598348.38 | J99: Yes
B100: Customer 68 | D100: 6024553.026 | E100: 6024553.026 | J100: Yes
B101: Customer 69 | D101: 1677314.323 | E101: 1677314.323 | J101: Yes
B102: Customer 70 | D102: 2105717.389 | E102: 2105717.389 | J102: Yes
B103: Customer 71 | D103: 3309934.197 | E103: 3309934.197 | J103: Yes
B104: Customer 72 | D104: 4898822.066 | E104: 4898822.066 | J104: Yes
B105: Customer 73 | D105: 1991947.96 | E105: 1991947.96 | J105: Yes
B106: Customer 74 | D106: 1520700.749 | E106: 1520700.749 | J106: Yes
B107: Customer 75 | D107: 5058890.958 | E107: 5058890.958 | J107: Yes
B108: Customer 76 | D108: 3043405.645 | E108: 3043405.645 | J108: Yes
B109: Customer 77 | D109: 3055942.958 | E109: 3055942.958 | J109: Yes
B110: Customer 78 | D110: 3382700.708 | E110: 3382700.708 | J110: Yes
B111: Customer 79 | D111: 2254086.889 | E111: 2254086.889 | J111: Yes
B112: Customer 80 | D112: 3745242.134 | E112: 3745242.134 | J112: Yes
B113: Customer 81 | D113: 4064858.079 | E113: 4064858.079 | J113: Yes
B114: Customer 82 | D114: 1399447.191 | E114: 1399447.191 | J114: Yes
B115: Customer 83 | D115: 331219.6979 | E115: 331219.6979 | J115: Yes
B116: Customer 84 | D116: 1685010.584 | E116: 1685010.584 | J116: Yes
B117: Customer 85 | D117: 9112551.074 | E117: 9112551.074 | J117: Yes
B118: Customer 86 | D118: 6594937.638 | E118: 6594937.638 | J118: Yes
B119: Customer 87 | D119: 5737222.301 | E119: 5737222.301 | J119: Yes
B120: Customer 88 | D120: 1858005.224 | E120: 1858005.224 | J120: Yes
B121: Customer 89 | D121: 7131936.445 | E121: 7131936.445 | J121: Yes
B122: Customer 90 | D122: 7731100.723 | E122: 7731100.723 | J122: Yes
B123: Customer 91 | D123: 5414949.301 | E123: 5414949.301 | J123: Yes
B124: Customer 92 | D124: 2050036.691 | E124: 2050036.691 | J124: Yes
B125: Customer 93 | D125: 4803846.192 | E125: 4803846.192 | J125: Yes
B126: Customer 94 | D126: 7769211.515 | E126: 7769211.515 | J126: Yes
B127: Customer 95 | D127: 6473171.829 | E127: 6473171.829 | J127: Yes
B128: Customer 96 | D128: 12619139.81 | E128: 12619139.81 | J128: Yes
B129: Customer 97 | D129: 8228038.511 | E129: 8228038.511 | J129: Yes
B130: Customer 98 | D130: 1696287.532 | E130: 1696287.532 | J130: Yes
B131: Customer 99 | D131: 3470908.956 | E131: 3470908.956 | J131: Yes
B132: Customer 100 | D132: 3287355.532 | E132: 3287355.532 | J132: Yes
B133: Customer 101 | D133: 2698156.236 | E133: 2698156.236 | J133: Yes | L133: =IFERROR(K133*$D$26,"") -> 
B134: Total for all Customers | D134: =SUM(D33:D133) -> 428896411.2 | E134: 428896411.2 | F134: 0 | G134: 0 | H134: 0 | I134: 0
A135: No | B135: Total for non-Interval billed ONLY | D135: =SUMIF($J$32:$J$133,$A135,D32:D133) -> 0 | E135: 0 | F135: 0 | G135: 0 | H135: 0 | I135: 0 | K135: =SUM(K33:K133) -> 0 | L135: =SUMIF($J$32:$J$133,$A135,L32:L133) -> 0
B137: NOTES:
B138: *PowerStream bills non-RPP interval customers using the Actual rate of Global Adjustment provided by the Independent Electricity System Operator (the “IESO”).

Sheet 6B. GA Allocation_new Class B
A1: Back to Index
B2: =+'1. Information Sheet'!B2 -> INCENTIVE REGULATION MODEL FOR 2019 FILERS
B12: This tab allocates the GA balance to former Class A customers who contributed to the current Class B GA balance once switched to Class B non-interval customers. The tables below calculate specific amounts for each customer who made the transition. Consistent with both decisions for 2016 rates and EDDVAR, distributors are generally expected to settle the amount through 12 equal adjustments to bills. A one-time settlement is acceptable if the affected customer has expressed a clear preference for this approach. (see Filing Requirements section 3.2.5.2)
B14: Year of Group 1 Account Balance Last Disposed | C14: 2016 | D14: (e.g. If in the 2017 EDR process, you received approval to dispose the GA variance account balance as of December 31, 2014, please enter 2014 in cell C16.)
B16: Allocation of total Non-RPP consumption (kWh) between Class B and New Class B non-interval (Former Class A) customers
D17: Total | E17: 2017 | F17: 2016 | G17: 2015 | H17: 2014 | I17: 2013
B18: Total Class B Consumption for Years Since Last Disposition (Non-RPP consumption LESS WMP and Class A) | C18: A | D18: =SUM(E18:I18) -> 3731179381 | E18: ='6. GA Calculation'!C29-'6. GA Calculation'!D29 -> 3731179381
B19: New Class B non-Interval Customer(s)' Consumption | C19: B | D19: =SUM(E19:I19) -> 0 | E19: =E45 -> 0 | F19: =F45 -> 0 | G19: =G44 -> 0 | H19: =H44 -> 0 | I19: =I44 -> 0
B20: Portion of Consumption of New Class B non-Interval Customers | C20: C=B/A | D20: =IFERROR(+D19/D18,0) -> 0
B23: Allocation of Total GA Balance $
B25: Total GA Calss B Balance adjusted for Class A | C25: D | D25: ='6A. GA Allocation_Class A'!D25 -> 4553645.267
B26: New Class B non-Interval Customer(s)' Former Class A Portion of GA Balance attributable to Class B | C26: E=C*D | D26: =+D20*D25 -> 0
B27: New Class A Customer(s)' Former Class B non-Interval Portion of GA Balance | C27: F=Sheet 6A | D27: ='6A. GA Allocation_Class A'!D26 -> 0
B28: GA Balance to be disposed to Current Class B Customers | C28: G=D-E-F | D28: =+D25-D26-D27 -> 4553645.267 | E28: Input into Sheet 6. GA Calculation
B30: Allocation of GA Balances to Former Class A Customers
B31: # of Former Class B customer(s) | E31: 2
B32: Customer | D32: Total Metered kWh Consumption for each new Class B customer for the period after becoming Class B | E32: Metered kWh Consumption for each new Class B customer for the period after becoming Class B in 2017 | F32: Metered kWh Consumption for each new Class B customer for the period prior to becoming Class B in 2016 | G32: Metered kWh Consumption for each new Class B customer for the period prior to becoming Class B in 2015 | H32: Metered kWh Consumption for each new Class B customer for the period prior to becoming Class B in 2014 | I32: Metered kWh Consumption for each new Class B customer for the period prior to becoming Class B in 2013 | J32: Interval-Billed* Customer? Yes/No | K32: % of kWh | L32: Customer specific GA allocation for the period after becoming Class B | M32: Monthly Equal Payments
B33: Customer 1 | J33: Yes | K33: =IF(J33="No",IFERROR(+D33/$D$45,0),"") ->  | L33: =IFERROR(+K33*$D$26,"") ->  | M33: =IFERROR(+L33/12,"") -> 
K34: =IF(J34="No",IFERROR(+D34/$D$45,0),"") ->  | L34: =IFERROR(+K34*$D$26,"") ->  | M34: =IFERROR(+L34/12,"") -> 
B44: Total | D44: =SUM(D33:D43) -> 0 | E44: =SUM(E33:E43) -> 0 | F44: =SUM(F33:F43) -> 0 | G44: =SUM(G33:G39) -> 0 | H44: 0 | I44: 0
A45: No | B45: Total for non-Interval billed ONLY | D45: =SUMIF($J33:$J43,$A45,D33:D43) -> 0 | E45: =SUMIF($J33:$J43,$A45,E33:E43) -> 0 | F45: =SUMIF($J33:$J43,$A45,F33:F43) -> 0 | G45: 0 | H45: 0 | I45: 0 | K45: =SUM(K33:K43) -> 0 | L45: =SUM(L33:L43) -> 0

Sheet 7. CBR Calculation
A1: Back to Index
B2: =+'1. Information Sheet'!B2 -> INCENTIVE REGULATION MODEL FOR 2019 FILERS
B13: The purpose of this tab is to calculate the CBR rate riders for all current Class B customers of the distributor. Identify and input the total billed consumption for former Class B customers prior to becoming Class A customers in Column H. Identify and input the total billed consumption for former Class A customers after becoming Class B customers in Column H.
B15: Account 1580
B16: Variance WMS – Sub-account CBR Class A | C16: ='3. Continuity Schedule'!CN24 -> -0.13267675
B17: Variance WMS – Sub-account CBR Class B | C17: ='3. Continuity Schedule'!CN25 -> -96839.96558
C19: Total Metered LESS WMP | E19: Total Metered Class A Consumption/Demand in 2017 (partial and/or full year Class A customers)* | G19: Total Metered Consumption/Demand for New Class A customer(s) in the period prior to becoming Class A (i.e. Jan 1 - Jun 30, 2017) | I19: Total Metered Consumption for New Class B customer(s) in the period after becoming Class B (i.e. Jul 1 - Dec 31, 2017) | K19: Metered Consumption for Current Class B Customers (metered consumption/demand LESS WMP, Class A and new Class A's former Class B, if applicable) | M19: % of total kWh | N19: Total CBR $ allocated to Current Class B Customers | O19: CBR Rate Rider | Q19: Revenue Reconciliation | R19: Variance
C20: kWh | D20: kW | E20: kWh | F20: kW | G20: kWh | H20: kW | I20: kWh | J20: kW | K20: kWh | L20: kW
B22: ='4. Billing Det. for Def-Var'!B17 -> RESIDENTIAL SERVICE CLASSIFICATION | C22: ='4. Billing Det. for Def-Var'!D17-'4. Billing Det. for Def-Var'!H17 -> 2544715408 | D22: ='4. Billing Det. for Def-Var'!E17-'4. Billing Det. for Def-Var'!I17 -> 0 | E22: ='6. GA Calculation'!D17 -> 0 | G22: ='6. GA Calculation'!F17 -> 0 | K22: =C22-E22-G22-I22 -> 2544715408 | L22: =D22-F22-H22-J22 -> 0 | M22: =IFERROR(K22/K$34,"") -> 0.3647864229 | N22: =IFERROR(N$34*M22,"") -> -33279.77902 | O22: =IFERROR(IF(L22=0,N22/K22,N22/L22),"") -> -1.307799643e-05 | P22: kwh | Q22: =ROUND(O22,4)*L22 -> 0 | R22: =N22-Q22 -> -33279.77902
B23: ='4. Billing Det. for Def-Var'!B18 -> GENERAL SERVICE LESS THAN 50 kW SERVICE CLASSIFICATION | C23: ='4. Billing Det. for Def-Var'!D18-'4. Billing Det. for Def-Var'!H18 -> 1005968061 | D23: ='4. Billing Det. for Def-Var'!E18-'4. Billing Det. for Def-Var'!I18 -> 0 | E23: ='6. GA Calculation'!D18 -> 0 | G23: ='6. GA Calculation'!F18 -> 0 | K23: =C23-E23-G23-I23 -> 1005968061 | L23: =D23-F23-H23-J23 -> 0 | M23: =IFERROR(K23/K$34,"") -> 0.1442061023 | N23: =IFERROR(N$34*M23,"") -> -13156.04671 | O23: =IFERROR(IF(L23=0,N23/K23,N23/L23),"") -> -1.307799643e-05 | P23: kwh | Q23: 0 | R23: =N23-Q23 -> -13156.04671
B24: ='4. Billing Det. for Def-Var'!B19 -> GENERAL SERVICE 50 to 4,999 kW SERVICE CLASSIFICATION | C24: ='4. Billing Det. for Def-Var'!D19-'4. Billing Det. for Def-Var'!H19 -> 4541065986 | D24: ='4. Billing Det. for Def-Var'!E19-'4. Billing Det. for Def-Var'!I19 -> 11830054.82 | E24: ='6. GA Calculation'!D19 -> 753292526 | F24: 1459233.172 | G24: ='6. GA Calculation'!F19 -> 426790693.8 | H24: 893425.317 | K24: =C24-E24-G24-I24 -> 3360982766 | L24: 9477396.33 | M24: 0.48179882 | N24: -43954.92062 | O24: -0.004637868787 | P24: kW | Q24: -43596.02312 | R24: -358.8975045
B25: ='4. Billing Det. for Def-Var'!B20 -> LARGE USE SERVICE CLASSIFICATION | C25: ='4. Billing Det. for Def-Var'!D20-'4. Billing Det. for Def-Var'!H20 -> 51786630.84 | D25: ='4. Billing Det. for Def-Var'!E20-'4. Billing Det. for Def-Var'!I20 -> 78982.8 | E25: ='6. GA Calculation'!D20 -> 49680913.44 | F25: 74159.60133 | G25: ='6. GA Calculation'!F20 -> 2105717.389 | H25: 4823.198667 | I25: ='6B. GA Allocation_new Class B'!E44 -> 0 | J25: 0 | K25: 0.01004912937 | L25: 0 | M25: 1.440548497e-12 | N25: -1.31422478e-07 | O25: -1.307799643e-05 | P25: kW | Q25: 0 | R25: -1.31422478e-07
B26: ='4. Billing Det. for Def-Var'!B21 -> UNMETERED SCATTERED LOAD SERVICE CLASSIFICATION | C26: ='4. Billing Det. for Def-Var'!D21-'4. Billing Det. for Def-Var'!H21 -> 13620175.23 | D26: ='4. Billing Det. for Def-Var'!E21-'4. Billing Det. for Def-Var'!I21 -> 0 | E26: ='6. GA Calculation'!D21 -> 0 | G26: ='6. GA Calculation'!F21 -> 0 | K26: 13620175.23 | L26: 0 | M26: 0.001952459983 | N26: -178.1246031 | O26: -1.307799643e-05 | P26: kwh | Q26: 0 | R26: -178.1246031
B27: ='4. Billing Det. for Def-Var'!B22 -> STANDBY POWER SERVICE CLASSIFICATION | C27: ='4. Billing Det. for Def-Var'!D22-'4. Billing Det. for Def-Var'!H22 -> 0 | D27: ='4. Billing Det. for Def-Var'!E22-'4. Billing Det. for Def-Var'!I22 -> 0 | E27: ='6. GA Calculation'!D22 -> 0 | G27: ='6. GA Calculation'!F22 -> 0 | K27: 0 | L27: 0 | M27: 0 | N27: 0 | P27: kW
B28: ='4. Billing Det. for Def-Var'!B23 -> SENTINEL LIGHTING SERVICE CLASSIFICATION | C28: ='4. Billing Det. for Def-Var'!D23-'4. Billing Det. for Def-Var'!H23 -> 297132.34 | D28: ='4. Billing Det. for Def-Var'!E23-'4. Billing Det. for Def-Var'!I23 -> 779.5 | E28: ='6. GA Calculation'!D23 -> 0 | G28: ='6. GA Calculation'!F23 -> 0 | K28: 297132.34 | L28: 779.5 | M28: =IFERROR(K28/K$34,"") -> 4.259409249e-05 | N28: -3.885895682 | O28: -0.004985113127 | P28: kW | Q28: -3.8975 | R28: 0.01160431783
B29: ='4. Billing Det. for Def-Var'!B24 -> STREET LIGHTING SERVICE CLASSIFICATION | C29: ='4. Billing Det. for Def-Var'!D24-'4. Billing Det. for Def-Var'!H24 -> 50321392.53 | D29: ='4. Billing Det. for Def-Var'!E24-'4. Billing Det. for Def-Var'!I24 -> 139970.66 | E29: ='6. GA Calculation'!D24 -> 0 | G29: ='6. GA Calculation'!F24 -> 0 | K29: 50321392.53 | L29: 139970.66 | M29: 0.007213600672 | N29: -658.1029919 | O29: -0.004701721003 | P29: kW | Q29: -657.862102 | R29: -0.2408899297
C34: =SUM(C22:C33) -> 8207774786 | D34: =SUM(D22:D33) -> 12049787.78 | E34: 802973439.5 | F34: 1533392.773 | G34: 428896411.2 | H34: 898248.5157 | I34: 0 | J34: 0 | K34: 6975904935 | L34: 9618146.49 | M34: 1 | N34: ='7B. CBR Allocation_new Class B'!D28 -> -91230.85984 | Q34: =SUM(Q22:Q33) ->  | R34: =SUM(R22:R33) -> 
N35: from Sheet 7B
Q36: NOTE: if rate rider is at 5 decimal places, then the balance dispostion is in full
B37: *For new Class A customers (who became Class A in 2016), add their consumption only related to July to December period.

Sheet 7A. CBR Allocation_Class A
A1: Back to Index
B2: =+'1. Information Sheet'!B2 -> INCENTIVE REGULATION MODEL FOR 2019 FILERS
B12: This tab allocates the CBR balance to former Class B customers who contributed to the current CBR balance but are now Class A customers. The tables below calculate specific amounts for each customer who made the change. Consistent with both decisions for 2016 rates and EDDVAR, distributors are generally expected to settle the amount through 12 equal adjustments to bills. A one-time settlement is acceptable if the affected customer has expressed a clear preference for this approach. (see Filing Requirements section 3.2.5.2)
B14: Year of Group 1 Account Balance Last Disposed | C14: 2016
B16: Allocation of total Non-RPP consumption (kWh) between Class B and New Class A (Former Class B) customers
D17: Total | E17: 2017 | F17: 2016 | G17: 2015
B18: Total MeteredConsumption for Years Since Last Disposition (consumption LESS WMP and Class A) | C18: A | D18: =SUM(E18:I18) -> 7404801346 | E18: ='7. CBR Calculation'!C34-'7. CBR Calculation'!E34 -> 7404801346
B19: New Class A Customer(s)' Former Class B Consumption | C19: B | D19: =SUM(E19:I19) -> 428896411.2 | E19: =E134 -> 428896411.2 | F19: =F134 -> 0 | G19: =G134 -> 0
B20: Portion of Consumption of Former Class B Customers | C20: C=B/A | D20: =IFERROR(+D19/D18,0) -> 0.05792139332
B23: Allocation of Total CBR Class B Balance $
B25: Total CBR-Class B Balance | C25: D | D25: ='7. CBR Calculation'!C17 -> -96839.96558
B26: New Class A Customer(s)' Former Class B Portion of CBR-Class B Balance | C26: E=C*D | D26: =+D20*D25 -> -5609.105736
B27: CBR-Class B Balance to be disposed to Current Class B Customers (if no Class A to Class B Transition Customers) | C27: F=D-E | D27: =+D25-D26 -> -91230.85984 | O27: s
B29: Allocation of CBR Class B Balances to Former Class B Customers
B31: # of Former Class B customer(s) | E31: 2 | F31: 9
B32: Customer | D32: Total Metered kWh Consumption for each new Class A customer for the period prior to becoming Class A | E32: Metered kWh Consumption for each new Class A customer for the period prior to becoming Class A in 2017 | F32: Metered kWh Consumption for each new Class A customer for the period prior to becoming Class A in 2016 | G32: Metered kWh Consumption for each new Class A customer for the period prior to becoming Class A in 2015 | J32: % of kWh | K32: Customer specific CBR-Class B allocation for the period prior to becoming Class A | L32: Monthly Equal Payments
B33: Customer 1 | D33: =SUM(E33:I33) -> 4861795.236 | E33: 4861795.236 | J33: =IFERROR(+D33/$D$134,0) -> 0.01133559318 | K33: =+J33*$D$26 -> -63.58254074 | L33: =+K33/12 -> -5.298545062
B34: Customer 2 | D34: 3930790.326 | E34: 3930790.326 | J34: 0.00916489442 | K34: -51.40686186 | L34: -4.283905155
B35: Customer 3 | D35: 6047773.898 | E35: 6047773.898 | J35: 0.01410077991 | K35: -79.09276546 | L35: -6.591063788
B36: Customer 4 | D36: 6481811.955 | E36: 6481811.955 | J36: 0.01511276799 | K36: -84.76911361 | L36: -7.064092801
B37: Customer 5 | D37: 4803826.12 | E37: 4803826.12 | J37: 0.0112004344 | K37: -62.82442086 | L37: -5.235368405
B38: Customer 6 | D38: 2611330.433 | E38: 2611330.433 | J38: 0.006088487488 | K38: -34.15097009 | L38: -2.845914174
B39: Customer 7 | D39: 1595116.39 | E39: 1595116.39 | J39: 0.003719118063 | K39: -20.86092646 | L39: -1.738410538
B40: Customer 8 | D40: 2387755.949 | E40: 2387755.949 | J40: 0.005567208973 | K40: -31.22706378 | L40: -2.602255315
B41: Customer 9 | D41: 5720262.197 | E41: 5720262.197 | J41: 0.01333716498 | K41: -74.8095686 | L41: -6.234130717
B42: Customer 10 | D42: 3272370.257 | E42: 3272370.257 | J42: 0.007629745018 | K42: -42.79604654 | L42: -3.566337212
B43: Customer 11 | D43: 8441838.638 | E43: 8441838.638 | J43: 0.01968269824 | K43: -110.4023356 | L43: -9.200194632
B44: Customer 12 | D44: 2625837.866 | E44: 2625837.866 | J44: 0.006122312514 | K44: -34.34069824 | L44: -2.861724853
B45: Customer 13 | D45: 2653445.078 | E45: 2653445.078 | J45: 0.006186680532 | K45: -34.70174526 | L45: -2.891812105
B46: Customer 14 | D46: 3147859.336 | E46: 3147859.336 | J46: 0.007339439673 | K46: -41.16769317 | L46: -3.430641097
B47: Customer 15 | D47: 3332918.06 | E47: 3332918.06 | J47: 0.007770916175 | K47: -43.58789049 | L47: -3.632324207
B48: Customer 16 | D48: 4136640.247 | E48: 4136640.247 | J48: 0.009644846958 | K48: -54.09896639 | L48: -4.508247199
B49: Customer 17 | D49: 3245969.763 | E49: 3245969.763 | J49: 0.007568190542 | K49: -42.45078098 | L49: -3.537565081
B50: Customer 18 | D50: 3177048.922 | E50: 3177048.922 | J50: 0.007407497099 | K50: -41.54943446 | L50: -3.462452872
B51: Customer 19 | D51: 2809619.369 | E51: 2809619.369 | J51: 0.006550811094 | K51: -36.74419208 | L51: -3.062016007
B52: Customer 20 | D52: 6209492.274 | E52: 6209492.274 | J52: 0.01447783687 | K52: -81.20771781 | L52: -6.767309817
B53: Customer 21 | D53: 4527929.973 | E53: 4527929.973 | J53: 0.01055716452 | K53: -59.21625203 | L53: -4.934687669
B54: Customer 22 | D54: 3782020.794 | E54: 3782020.794 | J54: 0.008818028539 | K54: -49.46125445 | L54: -4.121771204
B55: Customer 23 | D55: 3742651.749 | E55: 3742651.749 | J55: 0.008726237037 | K55: -48.94638621 | L55: -4.078865518
B56: Customer 24 | D56: 2782849.131 | E56: 2782849.131 | J56: 0.006488394536 | K56: -36.394091 | L56: -3.032840917
B57: Customer 25 | D57: 5097300.319 | E57: 5097300.319 | J57: 0.01188468867 | K57: -66.66247538 | L57: -5.555206282
B58: Customer 26 | D58: 3461135.815 | E58: 3461135.815 | J58: 0.008069864248 | K58: -45.26472184 | L58: -3.772060153
B59: Customer 27 | D59: 2918977.079 | E59: 2918977.079 | J59: 0.00680578574 | K59: -38.17437183 | L59: -3.181197652
B60: Customer 28 | D60: 5487949.954 | E60: 5487949.954 | J60: 0.01279551381 | K60: -71.77138992 | L60: -5.98094916
B61: Customer 29 | D61: 3639314.454 | E61: 3639314.454 | J61: 0.008485299384 | K61: -47.59494144 | L61: -3.96624512
B62: Customer 30 | D62: 4521495.735 | E62: 4521495.735 | J62: 0.01054216267 | K62: -59.13210509 | L62: -4.927675424
B63: Customer 31 | D63: 2048149.688 | E63: 2048149.688 | J63: 0.00477539479 | K63: -26.78569431 | L63: -2.232141192
B64: Customer 32 | D64: 3655013.696 | E64: 3655013.696 | J64: 0.008521903191 | K64: -47.80025607 | L64: -3.983354672
B65: Customer 33 | D65: 5198389.367 | E65: 5198389.367 | J65: 0.01212038439 | K65: -67.98451759 | L65: -5.665376465
B66: Customer 34 | D66: 2184895.243 | E66: 2184895.243 | J66: 0.005094225985 | K66: -28.57405219 | L66: -2.381171016
B67: Customer 35 | D67: 2607537.935 | E67: 2607537.935 | J67: 0.006079645031 | K67: -34.10137181 | L67: -2.841780984
B68: Customer 36 | D68: 2832057.8 | E68: 2832057.8 | J68: 0.006603127763 | K68: -37.03764181 | L68: -3.086470151
B69: Customer 37 | D69: 8843195.133 | E69: 8843195.133 | J69: 0.02061848712 | K69: -115.6512744 | L69: -9.637606199
B70: Customer 38 | D70: 4322960.735 | E70: 4322960.735 | J70: 0.01007926535 | K70: -56.53566507 | L70: -4.711305422
B71: Customer 39 | D71: 1753749.443 | E71: 1753749.443 | J71: 0.004088981389 | K71: -22.93552896 | L71: -1.91129408
B72: Customer 40 | D72: 3149976.62 | E72: 3149976.62 | J72: 0.007344376258 | K72: -41.19538299 | L72: -3.432948583
B73: Customer 41 | D73: 8778715.803 | E73: 8778715.803 | J73: 0.02046814935 | K73: -114.8080139 | L73: -9.567334495
B74: Customer 42 | D74: 1626269.042 | E74: 1626269.042 | J74: 0.003791752506 | K74: -21.26834073 | L74: -1.772361728
B75: Customer 43 | D75: 3030376.991 | E75: 3030376.991 | J75: 0.007065521911 | K75: -39.63125948 | L75: -3.302604956
B76: Customer 44 | D76: 5406285.777 | E76: 5406285.777 | J76: 0.01260510845 | K76: -70.7033861 | L76: -5.891948842
B77: Customer 45 | D77: 3313830.814 | E77: 3313830.814 | J77: 0.007726413016 | K77: -43.33826756 | L77: -3.611522297
B78: Customer 46 | D78: 6473884.177 | E78: 6473884.177 | J78: 0.01509428386 | K78: -84.66543416 | L78: -7.055452847
B79: Customer 47 | D79: 5059374.156 | E79: 5059374.156 | J79: 0.01179626134 | K79: -66.16647716 | L79: -5.513873097
B80: Customer 48 | D80: 8753052.053 | E80: 8753052.053 | J80: 0.02040831265 | K80: -114.4723835 | L80: -9.539365293
B81: Customer 49 | D81: 3500168.967 | E81: 3500168.967 | J81: 0.008160872591 | K81: -45.77519726 | L81: -3.814599771
B82: Customer 50 | D82: 699837.3582 | E82: 699837.3582 | J82: 0.001631716517 | K82: -9.152470474 | L82: -0.7627058728
B83: Customer 51 | D83: 2342897.081 | E83: 2342897.081 | J83: 0.005462617591 | K83: -30.64039966 | L83: -2.553366639
B84: Customer 52 | D84: 6336351.099 | E84: 6336351.099 | J84: 0.0147736165 | K84: -82.86677706 | L84: -6.905564755
B85: Customer 53 | D85: 6716394.611 | E85: 6716394.611 | J85: 0.01565971278 | K85: -87.83698476 | L85: -7.31974873
B86: Customer 54 | D86: =SUM(E86:I86) -> 3540221.694 | E86: 3540221.694 | J86: =IFERROR(+D86/$D$134,0) -> 0.008254258141 | K86: -46.29900668 | L86: -3.858250557
B87: Customer 55 | D87: 2775088.743 | E87: 2775088.743 | J87: 0.006470300684 | K87: =+J87*$D$26 -> -36.29260068 | L87: =+K87/12 -> -3.02438339
B88: Customer 56 | D88: 1147914.39 | E88: 1147914.39 | J88: 0.002676437388 | K88: -15.0124203 | L88: -1.251035025
B89: Customer 57 | D89: 10462652.31 | E89: 10462652.31 | J89: 0.02439435732 | K89: -136.8305296 | L89: -11.40254413
B90: Customer 58 | D90: 2036045.57 | E90: 2036045.57 | J90: 0.00474717325 | K90: -26.6273967 | L90: -2.218949725
B91: Customer 59 | D91: 3726869.807 | E91: 3726869.807 | J91: 0.008689440409 | K91: -48.73999004 | L91: -4.061665837
B92: Customer 60 | D92: 5799121.701 | E92: 5799121.701 | J92: 0.01352103107 | K92: -75.84089291 | L92: -6.320074409
B93: Customer 61 | D93: 4815070.697 | E93: 4815070.697 | J93: 0.01122665187 | K93: -62.97147739 | L93: -5.247623116
B94: Customer 62 | D94: 3714538.536 | E94: 3714538.536 | J94: 0.008660689246 | K94: -48.57872172 | L94: -4.04822681
B95: Customer 63 | D95: 5962741.443 | E95: 5962741.443 | J95: 0.01390252118 | K95: -77.98071131 | L95: -6.49839261
B96: Customer 64 | D96: 4518736.484 | E96: 4518736.484 | J96: 0.01053572929 | K96: -59.09601961 | L96: -4.924668301
B97: Customer 65 | D97: 3188033.002 | E97: 3188033.002 | J97: 0.007433107199 | K97: -41.69308422 | L97: -3.474423685
B98: Customer 66 | D98: 3295887.5 | E98: 3295887.5 | J98: 0.007684577007 | K98: -43.10360496 | L98: -3.59196708
B99: Customer 67 | D99: 7598348.38 | E99: 7598348.38 | J99: 0.0177160456 | K99: -99.37117299 | L99: -8.280931083
B100: Customer 68 | D100: 6024553.026 | E100: 6024553.026 | J100: 0.01404663893 | K100: -78.78908297 | L100: -6.565756915
B101: Customer 69 | D101: 1677314.323 | E101: 1677314.323 | J101: 0.003910767913 | K101: -21.93591073 | L101: -1.827992561
B102: Customer 70 | D102: 2105717.389 | E102: 2105717.389 | J102: 0.004909617647 | K102: -27.5385645 | L102: -2.294880375
B103: Customer 71 | D103: 3309934.197 | E103: 3309934.197 | J103: 0.007717327798 | K103: -43.28730761 | L103: -3.607275635
B104: Customer 72 | D104: 4898822.066 | E104: 4898822.066 | J104: 0.01142192366 | K104: -64.06677749 | L104: -5.338898125
B105: Customer 73 | D105: 1991947.96 | E105: 1991947.96 | J105: 0.00464435679 | K105: -26.05068831 | L105: -2.170890692
B106: Customer 74 | D106: 1520700.749 | E106: 1520700.749 | J106: 0.003545613134 | K106: -19.88771896 | L106: -1.657309914
B107: Customer 75 | D107: 5058890.958 | E107: 5058890.958 | J107: 0.01179513473 | K107: -66.16015789 | L107: -5.513346491
B108: Customer 76 | D108: 3043405.645 | E108: 3043405.645 | J108: 0.007095899069 | K108: -39.80164817 | L108: -3.316804014
B109: Customer 77 | D109: 3055942.958 | E109: 3055942.958 | J109: 0.007125130632 | K109: -39.9656111 | L109: -3.330467591
B110: Customer 78 | D110: 3382700.708 | E110: 3382700.708 | J110: 0.007886987672 | K110: -44.23894779 | L110: -3.686578982
B111: Customer 79 | D111: 2254086.889 | E111: 2254086.889 | J111: 0.005255550828 | K111: -29.47894029 | L111: -2.456578357
B112: Customer 80 | D112: 3745242.134 | E112: 3745242.134 | J112: 0.008732276688 | K112: -48.98026326 | L112: -4.081688605
B113: Customer 81 | D113: 4064858.079 | E113: 4064858.079 | J113: 0.009477482145 | K113: -53.16019946 | L113: -4.430016621
B114: Customer 82 | D114: 1399447.191 | E114: 1399447.191 | J114: 0.003262902544 | K114: -18.30196537 | L114: -1.525163781
B115: Customer 83 | D115: 331219.6979 | E115: 331219.6979 | J115: 0.0007722603623 | K115: -4.331690028 | L115: -0.360974169
B116: Customer 84 | D116: 1685010.584 | E116: 1685010.584 | J116: 0.003928712248 | K116: -22.03656241 | L116: -1.8363802
B117: Customer 85 | D117: 9112551.074 | E117: 9112551.074 | J117: 0.0212465081 | K117: -119.1739104 | L117: -9.931159202
B118: Customer 86 | D118: 6594937.638 | E118: 6594937.638 | J118: 0.01537652791 | K118: -86.2485709 | L118: -7.187380908
B119: Customer 87 | D119: 5737222.301 | E119: 5737222.301 | J119: 0.01337670857 | K119: -75.03137278 | L119: -6.252614399
B120: Customer 88 | D120: 1858005.224 | E120: 1858005.224 | J120: 0.004332060552 | K120: -24.29898569 | L120: -2.024915474
B121: Customer 89 | D121: 7131936.445 | E121: 7131936.445 | J121: 0.01662857571 | K121: -93.27143937 | L121: -7.772619948
B122: Customer 90 | D122: 7731100.723 | E122: 7731100.723 | J122: 0.01802556636 | K122: -101.1073077 | L122: -8.425608972
B123: Customer 91 | D123: 5414949.301 | E123: 5414949.301 | J123: 0.01262530802 | K123: -70.81668764 | L123: -5.901390636
B124: Customer 92 | D124: 2050036.691 | E124: 2050036.691 | J124: 0.004779794461 | K124: -26.81037252 | L124: -2.23419771
B125: Customer 93 | D125: 4803846.192 | E125: 4803846.192 | J125: 0.0112004812 | K125: -62.82468335 | L125: -5.235390279
B126: Customer 94 | D126: 7769211.515 | E126: 7769211.515 | J126: 0.01811442416 | K126: -101.6057205 | L126: -8.467143372
B127: Customer 95 | D127: 6473171.829 | E127: 6473171.829 | J127: 0.01509262297 | K127: -84.65611808 | L127: -7.054676507
B128: Customer 96 | D128: 12619139.81 | E128: 12619139.81 | J128: 0.02942234879 | K128: -165.0330654 | L128: -13.75275545
B129: Customer 97 | D129: 8228038.511 | E129: 8228038.511 | J129: 0.01918420928 | K129: -107.6062583 | L129: -8.967188191
B130: Customer 98 | D130: 1696287.532 | E130: 1696287.532 | J130: 0.00395500519 | K130: -22.1840423 | L130: -1.848670191
B131: Customer 99 | D131: 3470908.956 | E131: 3470908.956 | J131: 0.008092650966 | K131: -45.39253495 | L131: -3.782711246
B132: Customer 100 | D132: 3287355.532 | E132: 3287355.532 | J132: 0.007664684166 | K132: -42.99202392 | L132: -3.58266866
B133: Customer 101 | D133: 2698156.236 | E133: 2698156.236 | J133: 0.006290927518 | K133: -35.28647763 | L133: -2.940539802
B134: Total | D134: =SUM(D33:D133) -> 428896411.2 | E134: 428896411.2 | F134: 0 | G134: 0 | H134: 0 | I134: 0 | J134: 1 | K134: -5609.105736 | L134: -467.425478

Sheet 7B. CBR Allocation_new Class B
A1: Back to Index
B2: =+'1. Information Sheet'!B2 -> INCENTIVE REGULATION MODEL FOR 2019 FILERS
B12: This tab allocates the CBR-Class B balance to former Class A customers who contributed to the current CBR-Class B balance once switched to Class B customers. The tables below calculate specific amounts for each customer who made the transition. Consistent with both decisions for 2016 rates and EDDVAR, distributors are generally expected to settle the amount through 12 equal adjustments to bills. A one-time settlement is acceptable if the affected customer has expressed a clear preference for this approach. (see Filing Requirements section 3.2.5.2)
B14: Year of Group 1 Account Balance Last Disposed | C14: 2016
B16: Allocation of total Non-RPP consumption (kWh) between Class B and New Class B (Former Class A) customers
D17: Total | E17: 2017 | F17: 2016 | G17: 2015 | H17: 2014 | I17: 2013
B18: Total Class B Consumption for Years Since Last Disposition (Non-RPP consumption LESS WMP and Class A) | C18: A | D18: =SUM(E18:I18) -> 7404801346 | E18: ='7A. CBR Allocation_Class A'!E18 -> 7404801346 | F18: ='7A. CBR Allocation_Class A'!F18 -> 0
B19: New Class B Customer(s)' Consumption | C19: B | D19: =SUM(E19:I19) -> 0 | E19: =E45 -> 0 | F19: =F45 -> 0 | G19: =G45 -> 0 | H19: =H45 -> 0 | I19: =I45 -> 0
B20: Portion of Consumption of New Class B Customers | C20: C=B/A | D20: =IFERROR(+D19/D18,0) -> 0
B23: Allocation of Total CBR-Class B Balance $
B25: Total CBR-Calss B Balance adjusted for Class A | C25: D | D25: ='7. CBR Calculation'!C17 -> -96839.96558
B26: New Class B Customer(s)' Former Class A Portion of CBR-Class B Balance attributable to Class B | C26: E=C*D | D26: =+D20*D25 -> 0
B27: New Class A Customer(s)' Former Class B Portion of CBR-Class B Balance | C27: F=Sheet 6A | D27: ='7A. CBR Allocation_Class A'!D26 -> -5609.105736
B28: CBR-Class B Balance to be disposed to Current Class B Customers | C28: G=D-E-F | D28: =+D25-D26-D27 -> -91230.85984 | E28: Input into Sheet 7. CBR Calculation | O28: s
B30: Allocation of CBR-Class B Balances to Former Class A Customers
B32: # of Former Class B customer(s) | E32: 1 | F32: 0
B33: Customer | D33: Total Metered kWh Consumption for each new Class B customer for the period after becoming Class B | E33: Metered kWh Consumption for each new Class B customer for the period after becoming Class B in 2017 | F33: Metered kWh Consumption for each new Class B customer for the period after becoming Class B in 2016 | J33: % of kWh | K33: Customer specific CBR-Class B allocation for the period after becoming Class B | L33: Monthly Equal Payments
B34: Customer 1
J35: =IFERROR(+D35/$D$45,0) -> 0 | K35: =+J35*$D$26 -> 0 | L35: =+K35/12 -> 0
J36: 0 | K36: 0 | L36: 0
J37: 0 | K37: 0 | L37: 0
J38: 0 | K38: 0 | L38: 0
J39: 0 | K39: 0 | L39: 0
J40: 0 | K40: 0 | L40: 0
J41: 0 | K41: 0 | L41: 0
J42: 0 | K42: 0 | L42: 0
J43: 0 | K43: 0 | L43: 0
J44: 0 | K44: 0 | L44: 0
B45: Total | D45: =SUM(D34:D44) -> 0 | E45: =SUM(E34:E44) -> 0 | F45: =SUM(F34:F44) -> 0 | G45: =SUM(G34:G40) -> 0 | H45: 0 | I45: 0 | J45: =SUM(J34:J44) -> 0 | K45: =SUM(K34:K44) -> 0

Sheet 8. Calculation of Def-Var RR
A1: Back to Index
B2: =+'1. Information Sheet'!B2 -> INCENTIVE REGULATION MODEL FOR 2019 FILERS
B11: Input required at cell D13 only. This workshseet calculates rate riders related to the Deferral/Variance Account Disposition (if applicable) and rate riders for Account 1568. Rate Riders will not be generated for the microFIT class.
B12: Default Rate Rider Recovery Period (in months) | D12: 12
B13: Proposed Rate Rider Recovery Period (in months) | D13: 12 | E13: =IF(D13>0, "Rate Rider Recovery to be used below", "If no rate rider recovery period is proposed then the default recovery period of 12 months will be used") -> Rate Rider Recovery to be used below
D15: Total Metered kWh | E15: Metered kW or kVA | F15: Total Metered kWh less WMP consumption | G15: Total Metered kW less WMP consumption | H15: Allocation of Group 1 Account Balances to All Classes 2 | I15: Allocation of Group 1 Account Balances to Non-WMP Classes Only (if Applicable) 2 | J15: Deferral/Variance Account Rate Rider 2 | K15: Deferral/Variance Account Rate Rider for Non-WMP (if applicable) 2 | L15: Account 1568 Rate Rider
B16: Rate Class | C16: Unit | M16: Revenue Reconciliation: | O16: Revenue Reconcilation 1
B17: ='4. Billing Det. for Def-Var'!B17 -> RESIDENTIAL SERVICE CLASSIFICATION | C17: ='4. Billing Det. for Def-Var'!C17 -> kWh | D17: ='4. Billing Det. for Def-Var'!D17 -> 2544715408 | E17: ='4. Billing Det. for Def-Var'!E17 -> 0 | F17: ='4. Billing Det. for Def-Var'!J17 -> 2544715408 | G17: ='4. Billing Det. for Def-Var'!K17 -> 0 | H17: =SUM('5. Allocating Def-Var Balances'!G16:V16)-I17 -> -2614518.398 | J17: =IF(ISERROR(H17/D17),0,IF(OR(ISBLANK(D$13), OR(D$13=0, D$13="")), H17/D17/(D$12/12), H17/D17/(D$13/12))) -> -0.001027430568 | K17: =IF(ISERROR(I17/F17),0,IF(OR(ISBLANK(D$13), OR(D$13=0, D$13="")), I17/F17/(D$12/12), I17/F17/(D$13/12))) -> 0 | L17: =ROUND(IF(ISERROR('4. Billing Det. for Def-Var'!T17/D17), 0, IF(OR(ISBLANK(D$13), OR(D$13=0, D$13="")), ('4. Billing Det. for Def-Var'!T17/D17)/(D$12/12), ('4. Billing Det. for Def-Var'!T17/D17)/(D$13/12))),4) -> 0.0003 | M17: =J17*D17 -> -2614518.398 | N17: =K17*F17 -> 0
B18: ='4. Billing Det. for Def-Var'!B18 -> GENERAL SERVICE LESS THAN 50 kW SERVICE CLASSIFICATION | C18: ='4. Billing Det. for Def-Var'!C18 -> kWh | D18: ='4. Billing Det. for Def-Var'!D18 -> 1005968061 | E18: ='4. Billing Det. for Def-Var'!E18 -> 0 | F18: ='4. Billing Det. for Def-Var'!J18 -> 1005968061 | G18: ='4. Billing Det. for Def-Var'!K18 -> 0 | H18: =SUM('5. Allocating Def-Var Balances'!G17:V17)-I18 -> -926820.854 | J18: =IF(ISERROR(H18/D18),0,IF(OR(ISBLANK(D$13), OR(D$13=0, D$13="")), H18/D18/(D$12/12), H18/D18/(D$13/12))) -> -0.0009213223464 | K18: =IF(ISERROR(I18/F18),0,IF(OR(ISBLANK(D$13), OR(D$13=0, D$13="")), I18/F18/(D$12/12), I18/F18/(D$13/12))) -> 0 | L18: =ROUND(IF(ISERROR('4. Billing Det. for Def-Var'!T18/D18), 0, IF(OR(ISBLANK(D$13), OR(D$13=0, D$13="")), ('4. Billing Det. for Def-Var'!T18/D18)/(D$12/12), ('4. Billing Det. for Def-Var'!T18/D18)/(D$13/12))),4) -> 0.0006 | M18: =J18*D18 -> -926820.854 | N18: =K18*F18 -> 0
B19: ='4. Billing Det. for Def-Var'!B19 -> GENERAL SERVICE 50 to 4,999 kW SERVICE CLASSIFICATION | C19: ='4. Billing Det. for Def-Var'!C19 -> kW | D19: ='4. Billing Det. for Def-Var'!D19 -> 4569203493 | E19: ='4. Billing Det. for Def-Var'!E19 -> 11884201.15 | F19: ='4. Billing Det. for Def-Var'!J19 -> 4541065986 | G19: ='4. Billing Det. for Def-Var'!K19 -> 11830054.82 | H19: =SUM('5. Allocating Def-Var Balances'!G18:V18)-I19 -> -3509010.834 | I19: ='5. Allocating Def-Var Balances'!I18+'5. Allocating Def-Var Balances'!N18 -> -535657.5453 | J19: =IF(ISERROR(H19/E19),0,IF(OR(ISBLANK(D$13), OR(D$13=0, D$13="")), H19/E19/(D$12/12), H19/E19/(D$13/12))) -> -0.2952668665 | K19: =IF(ISERROR(I19/G19),0,IF(OR(ISBLANK(D13), OR(D13=0, D13="")), I19/G19/(D12/12), I19/G19/(D13/12))) -> -0.04527937981 | L19: =ROUND(IF(ISERROR('4. Billing Det. for Def-Var'!T19/E19), 0, IF(OR(ISBLANK(D13), OR(D13=0, D13="")), ('4. Billing Det. for Def-Var'!T19/E19)/(D12/12), ('4. Billing Det. for Def-Var'!T19/E19)/(D13/12))),4) -> 0.0886 | M19: =J19*E19 -> -3509010.834 | N19: =K19*G19 -> -535657.5453
B20: ='4. Billing Det. for Def-Var'!B20 -> LARGE USE SERVICE CLASSIFICATION | C20: ='4. Billing Det. for Def-Var'!C20 -> kW | D20: ='4. Billing Det. for Def-Var'!D20 -> 51786630.84 | E20: ='4. Billing Det. for Def-Var'!E20 -> 78982.8 | F20: ='4. Billing Det. for Def-Var'!J20 -> 51786630.84 | G20: ='4. Billing Det. for Def-Var'!K20 -> 78982.8 | H20: =SUM('5. Allocating Def-Var Balances'!G19:V19)-I20 -> -45879.25039 | J20: =IF(ISERROR(H20/E20),0,IF(OR(ISBLANK(D$13), OR(D$13=0, D$13="")), H20/E20/(D$12/12), H20/E20/(D$13/12))) -> -0.5808764743 | K20: =IF(ISERROR(I20/G20),0,IF(OR(ISBLANK(D14), OR(D14=0, D14="")), I20/G20/(D13/12), I20/G20/(D14/12))) -> 0 | L20: =ROUND(IF(ISERROR('4. Billing Det. for Def-Var'!T20/E20), 0, IF(OR(ISBLANK(D13), OR(D13=0, D13="")), ('4. Billing Det. for Def-Var'!T20/E20)/(D12/12), ('4. Billing Det. for Def-Var'!T20/E20)/(D13/12))),4) -> -0.0705 | M20: =J20*E20 -> -45879.25039 | N20: =K20*G20 -> 0
B21: ='4. Billing Det. for Def-Var'!B21 -> UNMETERED SCATTERED LOAD SERVICE CLASSIFICATION | C21: ='4. Billing Det. for Def-Var'!C21 -> kWh | D21: ='4. Billing Det. for Def-Var'!D21 -> 13620175.23 | E21: ='4. Billing Det. for Def-Var'!E21 -> 0 | F21: ='4. Billing Det. for Def-Var'!J21 -> 13620175.23 | G21: ='4. Billing Det. for Def-Var'!K21 -> 0 | H21: =SUM('5. Allocating Def-Var Balances'!G20:V20)-I21 -> -12066.50094 | J21: =IF(ISERROR(H21/D21),0,IF(OR(ISBLANK(D$13), OR(D$13=0, D$13="")), H21/D21/(D$12/12), H21/D21/(D$13/12))) -> -0.0008859284655 | K21: =IF(ISERROR(I21/F21),0,IF(OR(ISBLANK(D$13), OR(D$13=0, D$13="")), I21/F21/(D$12/12), I21/F21/(D$13/12))) -> 0 | L21: =ROUND(IF(ISERROR('4. Billing Det. for Def-Var'!T21/D21), 0, IF(OR(ISBLANK(D$13), OR(D$13=0, D$13="")), ('4. Billing Det. for Def-Var'!T21/D21)/(D$12/12), ('4. Billing Det. for Def-Var'!T21/D21)/(D$13/12))),4) -> -0.0003 | M21: =J21*D21 -> -12066.50094 | N21: =K21*F21 -> 0
B22: ='4. Billing Det. for Def-Var'!B22 -> STANDBY POWER SERVICE CLASSIFICATION | C22: ='4. Billing Det. for Def-Var'!C22 -> kW | D22: ='4. Billing Det. for Def-Var'!D22 -> 0 | E22: ='4. Billing Det. for Def-Var'!E22 -> 0 | F22: ='4. Billing Det. for Def-Var'!J22 -> 0 | G22: ='4. Billing Det. for Def-Var'!K22 -> 0 | H22: =SUM('5. Allocating Def-Var Balances'!G21:V21)-I22 -> 0 | J22: =IF(ISERROR(H22/D22),0,IF(OR(ISBLANK(D18), OR(D18=0, D18="")), H22/D22/(D17/12), H22/D22/(D18/12))) -> 0 | K22: =IF(ISERROR(I22/F22),0,IF(OR(ISBLANK(D18), OR(D18=0, D18="")), I22/F22/(D17/12), I22/F22/(D18/12))) -> 0 | L22: =IF(ISERROR('4. Billing Det. for Def-Var'!T22/E22), 0, IF(OR(ISBLANK(D13), OR(D13=0, D13="")), ('4. Billing Det. for Def-Var'!T22/E22)/(D12/12), ('4. Billing Det. for Def-Var'!T22/E22)/(D13/12))) -> 0 | M22: =J22*E22 -> 0 | N22: =K22*G22 -> 0
B23: ='4. Billing Det. for Def-Var'!B23 -> SENTINEL LIGHTING SERVICE CLASSIFICATION | C23: ='4. Billing Det. for Def-Var'!C23 -> kW | D23: ='4. Billing Det. for Def-Var'!D23 -> 297132.34 | E23: ='4. Billing Det. for Def-Var'!E23 -> 779.5 | F23: ='4. Billing Det. for Def-Var'!J23 -> 297132.34 | G23: ='4. Billing Det. for Def-Var'!K23 -> 779.5 | H23: =SUM('5. Allocating Def-Var Balances'!G22:V22)-I23 -> -263.237998 | J23: =IF(ISERROR(H23/E23),0,IF(OR(ISBLANK(D$13), OR(D$13=0, D$13="")), H23/E23/(D$12/12), H23/E23/(D$13/12))) -> -0.3377010879 | K23: =IF(ISERROR(I23/G23),0,IF(OR(ISBLANK(D17), OR(D17=0, D17="")), I23/G23/(D16/12), I23/G23/(D17/12))) -> 0 | L23: =ROUND(IF(ISERROR('4. Billing Det. for Def-Var'!T23/E23), 0, IF(OR(ISBLANK(D13), OR(D13=0, D13="")), ('4. Billing Det. for Def-Var'!T23/E23)/(D12/12), ('4. Billing Det. for Def-Var'!T23/E23)/(D13/12))),4) -> -0.2176 | M23: =J23*E23 -> -263.237998 | N23: =K23*G23 -> 0
B24: ='4. Billing Det. for Def-Var'!B24 -> STREET LIGHTING SERVICE CLASSIFICATION | C24: ='4. Billing Det. for Def-Var'!C24 -> kW | D24: ='4. Billing Det. for Def-Var'!D24 -> 50321392.53 | E24: ='4. Billing Det. for Def-Var'!E24 -> 139970.66 | F24: ='4. Billing Det. for Def-Var'!J24 -> 50321392.53 | G24: ='4. Billing Det. for Def-Var'!K24 -> 139970.66 | H24: =SUM('5. Allocating Def-Var Balances'!G23:V23)-I24 -> -44581.15406 | J24: =IF(ISERROR(H24/E24),0,IF(OR(ISBLANK(D$13), OR(D$13=0, D$13="")), H24/E24/(D$12/12), H24/E24/(D$13/12))) -> -0.318503564 | K24: =IF(ISERROR(I24/G24),0,IF(OR(ISBLANK(D18), OR(D18=0, D18="")), I24/G24/(D17/12), I24/G24/(D18/12))) -> 0 | L24: =ROUND(IF(ISERROR('4. Billing Det. for Def-Var'!T24/E24), 0, IF(OR(ISBLANK(D13), OR(D13=0, D13="")), ('4. Billing Det. for Def-Var'!T24/E24)/(D12/12), ('4. Billing Det. for Def-Var'!T24/E24)/(D13/12))),4) -> 1.2612 | M24: =J24*E24 -> -44581.15406 | N24: =K24*G24 -> 0
M27: =SUM(M17:M26) -> -7153140.229 | N27: =SUM(N17:N26) -> -535657.5453 | O27: =SUM(M27:N27) -> -7688797.775
O28: =O27-'3. Continuity Schedule'!CN40+'7B. CBR Allocation_new Class B'!D25 -> 0.1326767511
B30: 1 When calculating the revenue reconciliation for distributors with Class A customers, the balances of sub-account 1580-CBR Class A and B will not be taken into consideration since the rate riders, if any, are calculated outside of the model.
B31: 2 Only for rate classes with WMP customers are the Deferral/Variance Account Rate Riders for Non-WMP (column H and J) calculated separately. For all rate classes without WMP customers, balances in account 1580 and 1588 are included in column H and disposed through a combined Deferral/Variance Account and Rate Rider.

Sheet 9. STS-Tax Change
A1: Back to Index | U1: Tax Rates | V1: Effective
B2: =+'1. Information Sheet'!B2 -> INCENTIVE REGULATION MODEL FOR 2019 FILERS | U2: Federal & Provincial | V2: 2016-01-01
U3: As of June 20, 2012
U5: Federal income tax | V5: 0.38
U6: General corporate rate | V6: -0.1
U7: Federal tax abatement | V7: =SUM(V5:V6) -> 0.28
U8: Adjusted federal rate | V8: -0.13
U9: Rate reduction | V9: =V7+V8 -> 0.15
U10: Ontario income tax | V10: 0.115
U12: Combined federal and Ontario | V12: =V9+V10 -> 0.265
B13: Summary - Sharing of Tax Change Forecast Amounts
U14: Federal & Ontario Small Business
B15: ="For the " & '1. Information Sheet'!G32 & " year, enter any Tax Credits from the Cost of Service Tax Calculation (Positive #)" -> For the 2017 year, enter any Tax Credits from the Cost of Service Tax Calculation (Positive #) | U15: Federal small business threshold | V15: 500000
U16: Ontario Small Business Threshold | V16: 500000
B18: 1. Tax Related Amounts Forecast from Capital Tax Rate Changes | M18: 2018 | O18: =M18+1 -> 2019 | U18: Federal small business rate | V18: 0.105
B19: Taxable Capital (if you are not claiming capital tax, please enter your OEB-Approved Rate Base) | O19: =M19 -> 0
U20: Ontario small business rate | V20: 0.045
B21: Deduction from taxable capital up to $15,000,000 | O21: =M21 -> 0
B23: Net Taxable Capital | M23: =M19-M21 -> 0 | O23: =O19-O21 -> 0
B25: Rate | O25: 0 | U25: Ontario Tax Rate (Maximum 11.5%)
U26: Federal tax rate (Maximum 15%)
B27: Ontario Capital Tax (Deductible, not grossed-up) | M27: =IF(M23>0, M23*M25, 0)*181/365 -> 0 | O27: 0 | U27: Combined tax rate (Maximum 26.5%)
B29: 2. Tax Related Amounts Forecast from lncome Tax Rate Changes
B30: Regulatory Taxable Income | O30: =M30 -> 0
B32: Corporate Tax Rate | O32: =IF(ratebase>15000000, 26.5%, IF(ratebase<10000000, 15%, 15%+11.5%*((ratebase-10000000)/5000000))) -> 0.15
B34: Tax Impact | M34: =M30*M32-M15 -> 0 | O34: =O30*O32-M15 -> 0
B36: Grossed-up Tax Amount | M36: =M34/(1-M32) -> 0 | O36: =O34/(1-O32) -> 0
B38: Tax Related Amounts Forecast from Capital Tax Rate Changes | M38: =M27 -> 0 | O38: =O27 -> 0
B40: Tax Related Amounts Forecast from lncome Tax Rate Changes | M40: =M36 -> 0 | O40: =O36 -> 0
B42: Total Tax Related Amounts | M42: =SUM(M40,M38) -> 0 | O42: =SUM(O40,O38) -> 0
B44: Incremental Tax Savings | O44: =O42-M42 -> 0
B46: Sharing of Tax Amount (50%) | O46: =0.5*O44 -> 0

Sheet 10. Shared Tax - RR
A1: Back to Index
B2: =+'1. Information Sheet'!B2 -> INCENTIVE REGULATION MODEL FOR 2019 FILERS
B12: Calculation of Rebased Revenue Requirement and Allocation of Tax Sharing Amount. Enter data from the last OEB-Approved Cost of Service application in columns D through I.
B13: As per Chapter 3 Filing Requirements, shared tax rate riders are based on a 1 year disposition.
B15: Rate Class | D15: Re-based Billed Customers or Connections | E15: Re-based Billed kWh | F15: Re-based Billed kW | G15: Re-based Service Charge | H15: Re-based Distribution Volumetric Rate kWh | I15: Re-based Distribution Volumetric Rate kW | J15: Service Charge Revenue | K15: Distribution Volumetric Rate Revenue kWh | L15: Distribution Volumetric Rate Revenue kW | M15: Revenue Requirement from Rates | N15: Service Charge % Revenue | O15: Distribution Volumetric Rate % Revenue kWh | P15: Distribution Volumetric Rate % Revenue kW | Q15: Total % Revenue
D16: A | E16: B | F16: C | G16: D | H16: E | I16: F | J16: G = A * D *12 | K16: H = B * E | L16: I = C * F | M16: J = G + H + I | N16: K = G / J | O16: L = H / J | P16: M = I / J | Q16: N = J / R
B17: ='4. Billing Det. for Def-Var'!B17 -> RESIDENTIAL SERVICE CLASSIFICATION | C17: ='4. Billing Det. for Def-Var'!C17 -> kWh | D17: 331460.9167 | E17: 2689802037 | F17: 0 | G17: 18.51 | H17: 0.013 | J17: =G17*D17*12 -> 73624098.81 | K17: =E17*H17 -> 34967426.48 | L17: =F17*I17 -> 0 | M17: =J17+K17+L17 -> 108591525.3 | N17: =IF(ISERROR(J17/M17),0,J17/M17) -> 0.6779912025 | O17: =IF(ISERROR(K17/M17),0,K17/M17) -> 0.3220087975 | P17: =IF(ISERROR(L17/M17),0,L17/M17) -> 0 | Q17: =IF(ISERROR(M17/M30),0,M17/M30) -> 0.5380729566
B18: ='4. Billing Det. for Def-Var'!B18 -> GENERAL SERVICE LESS THAN 50 kW SERVICE CLASSIFICATION | C18: ='4. Billing Det. for Def-Var'!C18 -> kWh | D18: 32775.08333 | E18: 1031991524 | F18: 0 | G18: 28.74 | H18: 0.0183 | J18: 11303470.74 | K18: 18885444.89 | L18: 0 | M18: 30188915.63 | N18: 0.3744245365 | O18: 0.6255754635 | P18: 0 | Q18: =IF(ISERROR(M18/M30),0,M18/M30) -> 0.1495866187
B19: ='4. Billing Det. for Def-Var'!B19 -> GENERAL SERVICE 50 to 4,999 kW SERVICE CLASSIFICATION | C19: ='4. Billing Det. for Def-Var'!C19 -> kW | D19: 5080.583333 | E19: 4566530904 | F19: 12192631.56 | G19: 140.97 | I19: 4.2037 | J19: 8594517.99 | K19: 0 | L19: 51254165.3 | M19: 59848683.29 | N19: 0.1436041282 | O19: 0 | P19: 0.8563958718 | Q19: =IF(ISERROR(M19/M30),0,M19/M30) -> 0.2965512997
B20: ='4. Billing Det. for Def-Var'!B20 -> LARGE USE SERVICE CLASSIFICATION | C20: ='4. Billing Det. for Def-Var'!C20 -> kW | D20: 2 | E20: 75964677.2 | F20: 149678.9801 | G20: 6073.68 | I20: 2.2421 | J20: 145768.32 | K20: 0 | L20: 335595.2413 | M20: 481363.5613 | N20: 0.3028237526 | O20: 0 | P20: 0.6971762474 | Q20: =IF(ISERROR(M20/M30),0,M20/M30) -> 0.002385165085
B21: ='4. Billing Det. for Def-Var'!B21 -> UNMETERED SCATTERED LOAD SERVICE CLASSIFICATION | C21: ='4. Billing Det. for Def-Var'!C21 -> kWh | D21: 3043.583333 | E21: 14542413.3 | G21: 8.6 | H21: 0.0195 | J21: 314097.8 | K21: 283577.0594 | L21: 0 | M21: 597674.8594 | N21: 0.5255328965 | O21: 0.4744671035 | P21: 0 | Q21: =IF(ISERROR(M21/M30),0,M21/M30) -> 0.002961489654
B22: ='4. Billing Det. for Def-Var'!B22 -> STANDBY POWER SERVICE CLASSIFICATION | C22: ='4. Billing Det. for Def-Var'!C22 -> kW | I22: 2.8081 | J22: 0 | K22: 0 | L22: 0 | M22: 0 | N22: 0 | O22: 0 | P22: 0 | Q22: =IF(ISERROR(M22/M30),0,M22/M30) -> 0
B23: ='4. Billing Det. for Def-Var'!B23 -> SENTINEL LIGHTING SERVICE CLASSIFICATION | C23: ='4. Billing Det. for Def-Var'!C23 -> kW | D23: 207 | E23: 377900.014 | F23: 974.7851233 | G23: 4.19 | I23: 9.8694 | J23: 10407.96 | K23: 0 | L23: 9620.544296 | M23: 20028.5043 | N23: 0.5196573766 | O23: 0 | P23: 0.4803426234 | Q23: =IF(ISERROR(M23/M30),0,M23/M30) -> 9.924159822e-05
B24: ='4. Billing Det. for Def-Var'!B24 -> STREET LIGHTING SERVICE CLASSIFICATION | C24: ='4. Billing Det. for Def-Var'!C24 -> kW | D24: 89728.75 | E24: 45603290.64 | F24: 127502.8492 | G24: 1.19 | I24: 6.3222 | J24: 1281326.55 | K24: 0 | L24: 806098.5135 | M24: 2087425.064 | N24: 0.6138311609 | O24: 0 | P24: 0.3861688391 | Q24: =IF(ISERROR(M24/M30),0,M24/M30) -> 0.01034322865
B25: ='4. Billing Det. for Def-Var'!B25 -> 0 | C25: ='4. Billing Det. for Def-Var'!C25 -> 0 | J25: 0 | K25: 0 | L25: 0 | M25: 0 | N25: 0 | O25: 0 | P25: 0 | Q25: =IF(ISERROR(M25/M30),0,M25/M30) -> 0
J26: =G26*D26*12 -> 0 | K26: =E26*H26 -> 0 | L26: =F26*I26 -> 0 | M26: =J26+K26+L26 -> 0 | N26: =IF(ISERROR(J26/M26),0,J26/M26) -> 0 | O26: =IF(ISERROR(K26/M26),0,K26/M26) -> 0 | P26: =IF(ISERROR(L26/M26),0,L26/M26) -> 0 | Q26: =IF(ISERROR(M26/M31),0,M26/M31) -> 0
J27: 0 | K27: 0 | L27: 0 | M27: 0 | N27: 0 | O27: 0 | P27: 0 | Q27: 0
J28: 0 | K28: 0 | L28: 0 | M28: 0 | N28: 0 | O28: 0 | P28: 0 | Q28: 0
J29: 0 | K29: 0 | L29: 0 | M29: 0 | N29: 0 | O29: 0 | P29: 0 | Q29: 0
B30: Total | D30: =SUM(D17:D29) -> 462297.9167 | E30: =SUM(E17:E29) -> 8424812745 | F30: 12470788.18 | J30: =SUM(J17:J29) -> 95273688.17 | K30: =SUM(K17:K29) -> 54136448.42 | L30: 52405479.59 | M30: 201815616.2 | Q30: =SUM(Q17:Q29) -> 1
B33: Rate Class | D33: Total kWh (most recent RRR filing) | E33: Total kW (most recent RRR filing) | F33: Allocation of Tax Savings by Rate Class | G33: Distribution Rate Rider
B34: =B17 -> RESIDENTIAL SERVICE CLASSIFICATION | C34: kWh | D34: ='4. Billing Det. for Def-Var'!D17 -> 2544715408 | E34: ='4. Billing Det. for Def-Var'!E17 -> 0 | F34: =F$48*Q17 -> 0 | G34: =ROUND(F34/'4. Billing Det. for Def-Var'!U17,2) -> 0 | H34: $/Customer | I34: If the allocated tax sharing amount does not produce a rate rider in one or more rate class (except for the Standby rate class), a distributor is required to transfer the entire OEB-approved tax sharing amount into account 1595 for disposition at a later date (see Filing Requirements, Appendix B)
B35: GENERAL SERVICE LESS THAN 50 kW SERVICE CLASSIFICATION | C35: kWh | D35: ='4. Billing Det. for Def-Var'!D18 -> 1005968061 | E35: ='4. Billing Det. for Def-Var'!E18 -> 0 | F35: =F$48*Q18 -> 0 | G35: =IFERROR(ROUND(IF(E35<>0,F35/E35,F35/D35),4),"") -> 0 | H35: $/kWh
B36: GENERAL SERVICE 50 to 4,999 kW SERVICE CLASSIFICATION | C36: kW | D36: ='4. Billing Det. for Def-Var'!D19 -> 4569203493 | E36: ='4. Billing Det. for Def-Var'!E19 -> 11884201.15 | F36: 0 | G36: =IFERROR(ROUND(IF(E36<>0,F36/E36,F36/D36),4),"") -> 0 | H36: $/kW
B37: LARGE USE SERVICE CLASSIFICATION | C37: kW | D37: ='4. Billing Det. for Def-Var'!D20 -> 51786630.84 | E37: ='4. Billing Det. for Def-Var'!E20 -> 78982.8 | F37: 0 | G37: 0 | H37: $/kW
B38: UNMETERED SCATTERED LOAD SERVICE CLASSIFICATION | C38: kWh | D38: ='4. Billing Det. for Def-Var'!D21 -> 13620175.23 | E38: ='4. Billing Det. for Def-Var'!E21 -> 0 | F38: 0 | G38: 0 | H38: $/kWh
B39: STANDBY POWER SERVICE CLASSIFICATION | C39: kW | D39: ='4. Billing Det. for Def-Var'!D22 -> 0 | E39: ='4. Billing Det. for Def-Var'!E22 -> 0 | F39: 0 | H39: $/kWh
B40: SENTINEL LIGHTING SERVICE CLASSIFICATION | C40: kW | D40: ='4. Billing Det. for Def-Var'!D23 -> 297132.34 | E40: ='4. Billing Det. for Def-Var'!E23 -> 779.5 | F40: 0 | G40: 0 | H40: $/kW
B41: STREET LIGHTING SERVICE CLASSIFICATION | C41: kW | D41: ='4. Billing Det. for Def-Var'!D24 -> 50321392.53 | E41: ='4. Billing Det. for Def-Var'!E24 -> 139970.66 | F41: 0 | G41: 0 | H41: $/kW
B42: 0 | C42: 0 | D42: ='4. Billing Det. for Def-Var'!D25 -> 0 | E42: ='4. Billing Det. for Def-Var'!E25 -> 0 | F42: 0 | G42: =IFERROR(ROUND(IF(E42<>"",F42/E42,F42/D42),4),"") -> 
F43: =F$48*Q30 -> 0
F44: =F$48*Q31 -> 0
F45: 0
F46: 0
D48: =SUM(D34:D47) -> 8235912292 | E48: =SUM(E34:E47) -> 12103934.11 | F48: =ROUND('9. STS-Tax Change'!O46,2) -> 0

Sheet 11. RTSR - Current Rates
A1: Back to Index | BA1: 1
B2: =+'1. Information Sheet'!B2 -> INCENTIVE REGULATION MODEL FOR 2019 FILERS
B13: Columns F and G must match the data from the most recent RRR filing. Rates have been imported from Tab 2. As well, the Loss Factor has been imported from "Model Specs" tab. If the data needs to be modified, please make the necessary adjustments and note the changes in your manager's summary.
B15: Rate Class | C15: Rate Description | D15: Unit | E15: Rate | F15: Non-Loss Adjusted Metered kWh | G15: Non-Loss Adjusted Metered kW | H15: Applicable Loss Factor | I15: Loss Adjusted Billed kWh
A16: R_TN | B16: Residential Service Classification | C16: Retail Transmission Rate – Network Service Rate | D16: $/kWh | E16: =VLOOKUP(A16,RATES,4,FALSE) -> 0.0075 | F16: ='4. Billing Det. for Def-Var'!D17 -> 2544715408 | G16: 0 | H16: =LLF -> 1.0369 | I16: =F16*H16 -> 2638615406
A17: R_TC | B17: Residential Service Classification | C17: Retail Transmission Rate – Line and Transformation Connection Service Rate | D17: $/kWh | E17: 0.004 | F17: =F16 -> 2544715408 | G17: 0 | H17: 1.0369 | I17: =F17*H17 -> 2638615406
A18: GSL_TN | B18: General Service Less Than 50 kW Service Classification | C18: Retail Transmission Rate – Network Service Rate | D18: $/kWh | E18: 0.0067 | F18: ='4. Billing Det. for Def-Var'!D18 -> 1005968061 | G18: 0 | H18: 1.0369 | I18: 1043088282
A19: GSL_TC | B19: General Service Less Than 50 kW Service Classification | C19: Retail Transmission Rate – Line and Transformation Connection Service Rate | D19: $/kWh | E19: 0.0035 | F19: =F18 -> 1005968061 | G19: 0 | H19: 1.0369 | I19: 1043088282
A20: GSG_TN | B20: General Service Greater Than 50 kW Service Classification | C20: Retail Transmission Rate – Network Service Rate | D20: $/kW | E20: 2.6739 | F20: ='4. Billing Det. for Def-Var'!D70 -> 2452923351 | G20: ='4. Billing Det. for Def-Var'!E70 -> 6379894.123 | H20: 1.0369 | I20: 2543436223
A21: GSGI_TN | B21: General Service Greater Than 50 kW Service Classification | C21: Retail Transmission Rate – Network Service Rate – Interval Metered | D21: $/kW | E21: 2.803 | F21: ='4. Billing Det. for Def-Var'!D69 -> 2116280141 | G21: ='4. Billing Det. for Def-Var'!E69 -> 5504307.026 | H21: 1.0369 | I21: 2194370879
A22: GSG_TC | B22: General Service Greater Than 50 kW Service Classification | C22: Retail Transmission Rate – Line and Transformation Connection Service Rate | D22: $/kW | E22: 1.342 | F22: =F20 -> 2452923351 | G22: =G20 -> 6379894.123 | H22: 1.0369 | I22: 2543436223
A23: GSGI_TC | B23: General Service Greater Than 50 kW Service Classification | C23: Retail Transmission Rate – Line and Transformation Connection Service Rate – Interval Metered | D23: $/kW | E23: 1.452 | F23: =F21 -> 2116280141 | G23: =G21 -> 5504307.026 | H23: 1.0369 | I23: 2194370879
A24: LU_TN | B24: Large Use Service Classification | C24: Retail Transmission Rate – Network Service Rate | D24: $/kW | E24: 3.2305 | F24: ='4. Billing Det. for Def-Var'!D20 -> 51786630.84 | G24: ='4. Billing Det. for Def-Var'!E20 -> 78982.8 | H24: 1.0145 | I24: 52537536.99
A25: LU_TC | B25: Large Use Service Classification | C25: Retail Transmission Rate – Line and Transformation Connection Service Rate | D25: $/kW | E25: 1.4016 | F25: =F24 -> 51786630.84 | G25: =G24 -> 78982.8 | H25: 1.0145 | I25: 52537536.99
A26: USL_TN | B26: Unmetered Scattered Load Service Classification | C26: Retail Transmission Rate – Network Service Rate | D26: $/kWh | E26: 0.0063 | F26: ='4. Billing Det. for Def-Var'!D21 -> 13620175.23 | G26: 0 | H26: 1.0369 | I26: 14122759.7
A27: USL_TC | B27: Unmetered Scattered Load Service Classification | C27: Retail Transmission Rate – Line and Transformation Connection Service Rate | D27: $/kWh | E27: 0.0037 | F27: =F26 -> 13620175.23 | G27: 0 | H27: 1.0369 | I27: 14122759.7
A28: SEN_TN | B28: Sentinel Lighting Service Classification | C28: Retail Transmission Rate – Network Service Rate | D28: $/kW | E28: 2.0778 | F28: ='4. Billing Det. for Def-Var'!D23 -> 297132.34 | G28: ='4. Billing Det. for Def-Var'!E23 -> 779.5 | H28: 1.0369 | I28: 308096.5233
A29: SEN_TC | B29: Sentinel Lighting Service Classification | C29: Retail Transmission Rate – Line and Transformation Connection Service Rate | D29: $/kW | E29: 0.9929 | F29: =F28 -> 297132.34 | G29: =G28 -> 779.5 | H29: 1.0369 | I29: 308096.5233
A30: SL_TN | B30: Street Lighting Service Classification | C30: Retail Transmission Rate – Network Service Rate | D30: $/kW | E30: 2.6888 | F30: ='4. Billing Det. for Def-Var'!D24 -> 50321392.53 | G30: ='4. Billing Det. for Def-Var'!E24 -> 139970.66 | H30: 1.0369 | I30: 52178251.91
A31: SL_TC | B31: Street Lighting Service Classification | C31: Retail Transmission Rate – Line and Transformation Connection Service Rate | D31: $/kW | E31: 1.4379 | F31: =F30 -> 50321392.53 | G31: =G30 -> 139970.66 | H31: 1.0369 | I31: 52178251.91

Sheet 12. RTSR-UTRs & Sub-Tx
A1: Back to Index
B2: =+'1. Information Sheet'!B2 -> INCENTIVE REGULATION MODEL FOR 2019 FILERS
B12: Uniform Transmission Rates | C12: Unit | E12: 2017 | H12: 2018 | J12: 2019
E13: Jan - Oct 2017 | F13: Nov - Dec 2017
B14: Rate Description | E14: Rate | F14: Rate | H14: Rate | J14: Rate
B16: Network Service Rate | C16: kW | E16: 3.66 | F16: 3.52 | H16: 3.61 | J16: =H16 -> 3.61
B18: Line Connection Service Rate | C18: kW | E18: 0.87 | F18: 0.88 | H18: 0.95 | J18: =H18 -> 0.95
B20: Transformation Connection Service Rate | C20: kW | E20: 2.02 | F20: 2.13 | H20: 2.34 | J20: =H20 -> 2.34
B23: Hydro One Sub-Transmission Rates | C23: Unit | E23: 2017 | H23: 2018 | J23: 2019
B27: Rate Description | E27: Rate | H27: Rate | J27: Rate
B29: Network Service Rate | C29: kW | E29: 3.1942 | H29: 3.1942 | J29: =H29 -> 3.1942
B31: Line Connection Service Rate | C31: kW | E31: 0.771 | H31: 0.771 | J31: =H31 -> 0.771
B33: Transformation Connection Service Rate | C33: kW | E33: 1.7493 | H33: 1.7493 | J33: =H33 -> 1.7493
B35: Both Line and Transformation Connection Service Rate | C35: kW | E35: =SUM(E33,E31) -> 2.5203 | H35: =SUM(H33,H31) -> 2.5203 | J35: =H35 -> 2.5203
B38: If needed, add extra host here. (I) | C38: Unit | E38: 2016 | H38: 2017 | J38: 2018
B42: Rate Description | E42: Rate | H42: Rate | J42: Rate
B44: Network Service Rate | C44: kW
B46: Line Connection Service Rate | C46: kW
B48: Transformation Connection Service Rate | C48: kW
B50: Both Line and Transformation Connection Service Rate | C50: kW | E50: =F48+F46 -> 0 | H50: =H48+H46 -> 0 | J50: =J48+J46 -> 0
B53: If needed, add extra host here. (II) | C53: Unit | E53: 2016 | H53: 2017 | J53: 2018
B57: Rate Description | E57: Rate | H57: Rate | J57: Rate
B59: Network Service Rate | C59: kW
B61: Line Connection Service Rate | C61: kW
B63: Transformation Connection Service Rate | C63: kW
B65: Both Line and Transformation Connection Service Rate | C65: kW | E65: =F63+F61 -> 0 | H65: =H63+H61 -> 0 | J65: =J63+J61 -> 0
E67: Historical 2016 | H67: Current 2017 | J67: Forecast 2018
B68: Low Voltage Switchgear Credit (if applicable, enter as a negative value) | C68: $

Sheet 13. RTSR-Historic Wholesale
A1: Back to Index
B2: =+'1. Information Sheet'!B2 -> INCENTIVE REGULATION MODEL FOR 2019 FILERS
B13: In the green shaded cells, enter billing detail for wholesale transmission for the same reporting period as the billing determinants on Tab 10. For Hydro One Sub-transmission Rates, if you are charged a combined Line and Transformer connection rate, please ensure that both the Line Connection and Transformation Connection columns are completed. If any of the Hydro One Sub-transmission rates (column E, I and M) are highlighted in orange, please double check the billing data entered in "Units Billed" and "Amount" columns. The highlighted rates do not match the Hydro One Sub-transmission rates approved for that time period. If data has been entered correctly, please provide explanation for the discrepancy in rates.
B16: IESO | D16: Network | H16: Line Connection | L16: Transformation Connection | P16: Total Line
B17: Month | D17: Units Billed | E17: Rate | F17: Amount | H17: Units Billed | I17: Rate | J17: Amount | L17: Units Billed | M17: Rate | N17: Amount | P17: Amount
B19: January | D19: 1066849 | E19: =IF(D19<>0,F19/D19,0) -> 3.66 | F19: 3904667.34 | H19: 1156551 | I19: =IF(H19<>0,J19/H19,0) -> 0.87 | J19: 1006199.37 | L19: 329702 | M19: =IF(L19<>0,N19/L19,0) -> 2.02 | N19: 665998.04 | P19: =J19+N19 -> 1672197.41
B20: February | D20: 1053838 | E20: 3.66 | F20: 3857047.08 | H20: 1129052 | I20: 0.87 | J20: 982275.24 | L20: 335529 | M20: 2.02 | N20: 677768.58 | P20: 1660043.82
B21: March | D21: 1010169 | E21: 3.66 | F21: 3697218.54 | H21: 1124819 | I21: 0.87 | J21: 978592.53 | L21: 331290 | M21: 2.02 | N21: 669205.8 | P21: 1647798.33
B22: April | D22: 962258 | E22: 3.66 | F22: 3521864.28 | H22: 1112109.701 | I22: 0.87 | J22: 967535.44 | L22: 310388 | M22: 2.02 | N22: 626983.76 | P22: 1594519.2
B23: May | D23: 1098637 | E23: 3.66 | F23: 4021011.42 | H23: 1184997 | I23: 0.87 | J23: 1030947.39 | L23: 313767 | M23: 2.02 | N23: 633809.34 | P23: 1664756.73
B24: June | D24: 1409080 | E24: 3.66 | F24: 5157232.8 | H24: 1476302 | I24: 0.87 | J24: 1284382.74 | L24: 399418 | M24: 2.02 | N24: 806824.36 | P24: 2091207.1
B25: July | D25: 1376230 | E25: 3.66 | F25: 5037001.8 | H25: 1480925 | I25: 0.87 | J25: 1288404.75 | L25: 428209 | M25: 2.02 | N25: 864982.18 | P25: 2153386.93
B26: August | D26: 1311641 | E26: 3.66 | F26: 4800606.06 | H26: 1384781 | I26: 0.87 | J26: 1204759.47 | L26: 378890 | M26: 2.02 | N26: 765357.8 | P26: 1970117.27
B27: September | D27: 1455726 | E27: 3.66 | F27: 5327957.16 | H27: 1572377 | I27: 0.87 | J27: 1367967.99 | L27: 438756 | M27: 2.02 | N27: 886287.12 | P27: 2254255.11
B28: October | D28: 995514 | E28: 3.66 | F28: 3643581.24 | H28: 1109430 | I28: 0.87 | J28: 965204.1 | L28: 320153 | M28: 2.02 | N28: 646709.06 | P28: 1611913.16
B29: November | D29: 552445.4886 | E29: 3.52 | F29: 1944608.12 | H29: 1256758.682 | I29: 0.88 | J29: 1105947.64 | L29: 491986.7559 | M29: 2.13 | N29: 1047931.79 | P29: 2153879.43
B30: December | D30: 1595611.511 | E30: 3.52 | F30: 5616552.52 | H30: 1076393.318 | I30: 0.88 | J30: 947226.12 | L30: 155119.2441 | M30: 2.13 | N30: 330403.99 | P30: 1277630.11
B32: Total | D32: =SUM(D19:D30) -> 13887999 | E32: =IF(D32<>0,F32/D32,0) -> 3.638346198 | F32: =SUM(F19:F30) -> 50529348.36 | H32: =SUM(H19:H30) -> 15064495.7 | I32: =IF(H32<>0,J32/H32,0) -> 0.8715487754 | J32: =SUM(J19:J30) -> 13129442.78 | L32: =SUM(L19:L30) -> 4233208 | M32: =IF(L32<>0,N32/L32,0) -> 2.036815063 | N32: =SUM(N19:N30) -> 8622261.82 | P32: =SUM(P19:P30) -> 21751704.6
B34: Hydro One | D34: Network | H34: Line Connection | L34: Transformation Connection | P34: Total Line
B36: Month | D36: Units Billed | E36: Rate | F36: Amount | H36: Units Billed | I36: Rate | J36: Amount | L36: Units Billed | M36: Rate | N36: Amount | P36: Amount
B38: January | D38: 196126.7234 | E38: =IF(D38<>0,F38/D38,0) -> 3.1942 | F38: 626467.98 | H38: 196968.0832 | I38: =IF(H38<>0,J38/H38,0) -> 0.771 | J38: 151862.3921 | L38: 196968.0832 | M38: =IF(L38<>0,N38/L38,0) -> 1.7493 | N38: 344556.2679 | P38: =J38+N38 -> 496418.66
B39: February | D39: 210599.0765 | E39: =IF(D39<>0,F39/D39,0) -> 3.1942 | F39: 672695.57 | H39: 210656.5726 | I39: 0.771 | J39: 162416.2175 | L39: 210656.5726 | M39: 1.7493 | N39: 368501.5425 | P39: =J39+N39 -> 530917.76
B40: March | D40: 203822.2434 | E40: 3.1942 | F40: 651049.01 | H40: 206790.2353 | I40: 0.771 | J40: 159435.2714 | L40: 206790.2353 | M40: 1.7493 | N40: 361738.1586 | P40: 521173.43
B41: April | D41: 177737.3646 | E41: 3.1942 | F41: 567728.69 | H41: 182339.3009 | I41: 0.771 | J41: 140583.601 | L41: 182339.3009 | M41: 1.7493 | N41: 318966.139 | P41: 459549.74
B42: May | D42: 201741.6661 | E42: 3.1942 | F42: 644403.23 | H42: 201741.6577 | I42: 0.771 | J42: 155542.8181 | L42: 201741.6577 | M42: 1.7493 | N42: 352906.6819 | P42: 508449.5
B43: June | D43: 244196.1587 | E43: 3.1942 | F43: 780011.37 | H43: 244209.4909 | I43: 0.771 | J43: 188285.5175 | L43: 244209.4909 | M43: 1.7493 | N43: 427195.6625 | P43: 615481.18
B44: July | D44: 265074.2252 | E44: 3.1942 | F44: 846700.09 | H44: 265074.2293 | I44: 0.771 | J44: 204372.2308 | L44: 265074.2293 | M44: 1.7493 | N44: 463694.3492 | P44: 668066.58
B45: August | D45: 256021.7237 | E45: 3.1942 | F45: 817784.59 | H45: 256021.7117 | I45: 0.771 | J45: 197392.7397 | L45: 256021.7117 | M45: 1.7493 | N45: 447858.7803 | P45: 645251.52
B46: September | D46: 260453.9822 | E46: 3.1942 | F46: 831942.11 | H46: 260592.735 | I46: 0.771 | J46: 200916.9987 | L46: 260592.735 | M46: 1.7493 | N46: 455854.8713 | P46: 656771.87
B47: October | D47: 202222.9604 | E47: 3.1942 | F47: 645940.58 | H47: 202345.0065 | I47: 0.771 | J47: 156008 | L47: 202345.0065 | M47: 1.7493 | N47: 353962.12 | P47: 509970.12
B48: November | D48: 210642.7869 | E48: 3.1942 | F48: 672835.19 | H48: 210781.0896 | I48: 0.771 | J48: 162512.22 | L48: 210781.0896 | M48: 1.7493 | N48: 368719.36 | P48: 531231.58
B49: December | D49: 227781.8953 | E49: 3.1942 | F49: 727580.93 | H49: 227884.2796 | I49: 0.771 | J49: 175698.7796 | L49: 227884.2796 | M49: 1.7493 | N49: 398637.9704 | P49: 574336.75
B51: Total | D51: =SUM(D38:D49) -> 2656420.806 | E51: =IF(D51<>0,F51/D51,0) -> 3.1942 | F51: =SUM(F38:F49) -> 8485139.34 | H51: =SUM(H38:H49) -> 2665404.392 | I51: =IF(H51<>0,J51/H51,0) -> 0.771 | J51: =SUM(J38:J49) -> 2055026.786 | L51: =SUM(L38:L49) -> 2665404.392 | M51: =IF(L51<>0,N51/L51,0) -> 1.7493 | N51: =SUM(N38:N49) -> 4662591.904 | P51: =SUM(P38:P49) -> 6717618.69
B53: Add Extra Host Here (I) | D53: Network | H53: Line Connection | L53: Transformation Connection | P53: Total Line
B54: (if needed)
B55: Month | D55: Units Billed | E55: Rate | F55: Amount | H55: Units Billed | I55: Rate | J55: Amount | L55: Units Billed | M55: Rate | N55: Amount | P55: Amount
B57: January | E57: =IF(D57<>0,F57/D57,0) -> 0 | I57: =IF(H57<>0,J57/H57,0) -> 0 | M57: =IF(L57<>0,N57/L57,0) -> 0 | P57: =J57+N57 -> 0
B58: February | E58: 0 | I58: 0 | M58: 0 | P58: 0
B59: March | E59: 0 | I59: 0 | M59: 0 | P59: 0
B60: April | E60: 0 | I60: 0 | M60: 0 | P60: 0
B61: May | E61: 0 | I61: 0 | M61: 0 | P61: 0
B62: June | E62: 0 | I62: 0 | M62: 0 | P62: 0
B63: July | E63: 0 | I63: 0 | M63: 0 | P63: 0
B64: August | E64: 0 | I64: 0 | M64: 0 | P64: 0
B65: September | E65: 0 | I65: 0 | M65: 0 | P65: 0
B66: October | E66: 0 | I66: 0 | M66: 0 | P66: 0
B67: November | E67: 0 | I67: 0 | M67: 0 | P67: 0
B68: December | E68: 0 | I68: 0 | M68: 0 | P68: 0
B70: Total | D70: =SUM(D57:D68) -> 0 | E70: =IF(D70<>0,F70/D70,0) -> 0 | F70: =SUM(F57:F68) -> 0 | H70: =SUM(H57:H68) -> 0 | I70: =IF(H70<>0,J70/H70,0) -> 0 | J70: =SUM(J57:J68) -> 0 | L70: =SUM(L57:L68) -> 0 | M70: =IF(L70<>0,N70/L70,0) -> 0 | N70: =SUM(N57:N68) -> 0 | P70: =SUM(P57:P68) -> 0
B72: Add Extra Host Here (II) | D72: Network | H72: Line Connection | L72: Transformation Connection | P72: Total Line
B73: (if needed)
B74: Month | D74: Units Billed | E74: Rate | F74: Amount | H74: Units Billed | I74: Rate | J74: Amount | L74: Units Billed | M74: Rate | N74: Amount | P74: Amount
B76: January | E76: =IF(D76<>0,F76/D76,0) -> 0 | I76: =IF(H76<>0,J76/H76,0) -> 0 | M76: =IF(L76<>0,N76/L76,0) -> 0 | P76: =J76+N76 -> 0
B77: February | E77: 0 | I77: 0 | M77: 0 | P77: 0
B78: March | E78: 0 | I78: 0 | M78: 0 | P78: 0
B79: April | E79: 0 | I79: 0 | M79: 0 | P79: 0
B80: May | E80: 0 | I80: 0 | M80: 0 | P80: 0
B81: June | E81: 0 | I81: 0 | M81: 0 | P81: 0
B82: July | E82: 0 | I82: 0 | M82: 0 | P82: 0
B83: August | E83: 0 | I83: 0 | M83: 0 | P83: 0
B84: September | E84: 0 | I84: 0 | M84: 0 | P84: 0
B85: October | E85: 0 | I85: 0 | M85: 0 | P85: 0
B86: November | E86: 0 | I86: 0 | M86: 0 | P86: 0
B87: December | E87: 0 | I87: 0 | M87: 0 | P87: 0
B89: Total | D89: =SUM(D76:D87) -> 0 | E89: =IF(D89<>0,F89/D89,0) -> 0 | F89: =SUM(F76:F87) -> 0 | H89: =SUM(H76:H87) -> 0 | I89: =IF(H89<>0,J89/H89,0) -> 0 | J89: =SUM(J76:J87) -> 0 | L89: =SUM(L76:L87) -> 0 | M89: =IF(L89<>0,N89/L89,0) -> 0 | N89: =SUM(N76:N87) -> 0 | P89: =SUM(P76:P87) -> 0
B91: Total | D91: Network | H91: Line Connection | L91: Transformation Connection | P91: Total Line
B93: Month | D93: Units Billed | E93: Rate | F93: Amount | H93: Units Billed | I93: Rate | J93: Amount | L93: Units Billed | M93: Rate | N93: Amount | P93: Amount
B95: January | D95: =D19+D38+D57+D76 -> 1262975.723 | E95: =IF(D95<>0,F95/D95,0) -> 3.587666204 | F95: =F19+F38+F57+F76 -> 4531135.32 | H95: =H19+H38+H57+H76 -> 1353519.083 | I95: =IF(H95<>0,J95/H95,0) -> 0.8555932284 | J95: =J19+J38+J57+J76 -> 1158061.762 | L95: =L19+L38+L57+L76 -> 526670.0832 | M95: =IF(L95<>0,N95/L95,0) -> 1.918761555 | N95: =N19+N38+N57+N76 -> 1010554.308 | P95: =J95+N95 -> 2168616.07
B96: February | D96: =D20+D39+D58+D77 -> 1264437.076 | E96: 3.582418401 | F96: =F20+F39+F58+F77 -> 4529742.65 | H96: =H20+H39+H58+H77 -> 1339708.573 | I96: 0.8544331811 | J96: =J20+J39+J58+J77 -> 1144691.457 | L96: =L20+L39+L58+L77 -> 546185.5726 | M96: 1.91559458 | N96: =N20+N39+N58+N77 -> 1046270.123 | P96: 2190961.58
B97: March | D97: 1213991.243 | E97: 3.581794822 | F97: 4348267.55 | H97: 1331609.235 | I97: 0.8546259452 | J97: 1138027.801 | L97: 538080.2353 | M97: 1.915966971 | N97: 1030943.959 | P97: 2168971.76
B98: April | D98: 1139995.365 | E98: 3.587376841 | F98: 4089592.97 | H98: 1294449.002 | I98: 0.8560546142 | J98: 1108119.041 | L98: 492727.3009 | M98: 1.919824409 | N98: 945949.899 | P98: 2054068.94
B99: May | D99: 1300378.666 | E99: 3.587735458 | F99: 4665414.65 | H99: 1386738.658 | I99: 0.8555975573 | J99: 1186490.208 | L99: 515508.6577 | M99: 1.914062949 | N99: 986716.0219 | P99: 2173206.23
B100: June | D100: 1653276.159 | E100: 3.591199292 | F100: 5937244.17 | H100: 1720511.491 | I100: 0.8559479348 | J100: 1472668.258 | L100: 643627.4909 | M100: 1.917289177 | N100: 1234020.022 | P100: 2706688.28
B101: July | D101: 1641304.225 | E101: 3.58477228 | F101: 5883701.89 | H101: 1745999.229 | I101: 0.8549700113 | J101: 1492776.981 | L101: 693283.2293 | M101: 1.916498875 | N101: 1328676.529 | P101: 2821453.51
B102: August | D102: 1567662.724 | E102: 3.583928204 | F102: 5618390.65 | H102: 1640802.712 | I102: 0.8545525917 | J102: 1402152.21 | L102: 634911.7117 | M102: 1.910842969 | N102: 1213216.58 | P102: 2615368.79
B103: September | D103: 1716179.982 | E103: 3.589308426 | F103: 6159899.27 | H103: 1832969.735 | I103: 0.8559252009 | J103: 1568884.989 | L103: 699348.735 | M103: 1.91913122 | N103: 1342141.991 | P103: 2911026.98
B104: October | D104: 1197736.96 | E104: 3.581355474 | F104: 4289521.82 | H104: 1311775.007 | I104: 0.8547289699 | J104: 1121212.1 | L104: 522498.0065 | M104: 1.91516746 | N104: 1000671.18 | P104: 2121883.28
B105: November | D105: 763088.2756 | E105: 3.430066211 | F105: 2617443.31 | H105: 1467539.771 | I105: 0.8643444524 | J105: 1268459.86 | L105: 702767.8454 | M105: 2.015816687 | N105: 1416651.15 | P105: 2685111.01
B106: December | D106: 1823393.407 | E106: 3.479300422 | F106: 6344133.45 | H106: 1304277.598 | I106: 0.860955445 | J106: 1122924.9 | L106: 383003.5238 | M106: 1.9034863 | N106: 729041.9604 | P106: 1851966.86
B108: Total | D108: =SUM(D95:D106) -> 16544419.81 | E108: =IF(D108<>0,F108/D108,0) -> 3.567032775 | F108: =SUM(F95:F106) -> 59014487.7 | H108: =SUM(H95:H106) -> 17729900.09 | I108: =IF(H108<>0,J108/H108,0) -> 0.8564328894 | J108: =SUM(J95:J106) -> 15184469.57 | L108: =SUM(L95:L106) -> 6898612.392 | M108: =IF(L108<>0,N108/L108,0) -> 1.925728388 | N108: =SUM(N95:N106) -> 13284853.72 | P108: =SUM(P95:P106) -> 28469323.29
N110: Low Voltage Switchgear Credit (if applicable) | P110: ='12. RTSR-UTRs & Sub-Tx'!F68 -> 0
N112: Total including deduction for Low Voltage Switchgear Credit | P112: =P108+P110 -> 28469323.29

Sheet 14. RTSR-Current Wholesale
A1: Back to Index
B2: =+'1. Information Sheet'!B2 -> INCENTIVE REGULATION MODEL FOR 2019 FILERS
B13: The purpose of this sheet is to calculate the expected billing when current 2018 Uniform Transmission Rates are applied against historical 2017 transmission units.
B16: IESO | D16: Network | H16: Line Connection | L16: Transformation Connection | P16: Total Line
B18: Month | D18: Units Billed | E18: Rate | F18: Amount | H18: Units Billed | I18: Rate | J18: Amount | L18: Units Billed | M18: Rate | N18: Amount | P18: Amount
B20: January | D20: ='13. RTSR-Historic Wholesale'!D19 -> 1066849 | E20: ='12. RTSR-UTRs & Sub-Tx'!H16 -> 3.61 | F20: =D20*E20 -> 3851324.89 | H20: ='13. RTSR-Historic Wholesale'!H19 -> 1156551 | I20: ='12. RTSR-UTRs & Sub-Tx'!H18 -> 0.95 | J20: =H20*I20 -> 1098723.45 | L20: ='13. RTSR-Historic Wholesale'!L19 -> 329702 | M20: ='12. RTSR-UTRs & Sub-Tx'!H20 -> 2.34 | N20: =L20*M20 -> 771502.68 | P20: =J20+N20 -> 1870226.13
B21: February | D21: ='13. RTSR-Historic Wholesale'!D20 -> 1053838 | E21: =E20 -> 3.61 | F21: =D21*E21 -> 3804355.18 | H21: ='13. RTSR-Historic Wholesale'!H20 -> 1129052 | I21: =I20 -> 0.95 | J21: =H21*I21 -> 1072599.4 | L21: ='13. RTSR-Historic Wholesale'!L20 -> 335529 | M21: =M20 -> 2.34 | N21: =L21*M21 -> 785137.86 | P21: 1857737.26
B22: March | D22: ='13. RTSR-Historic Wholesale'!D21 -> 1010169 | E22: =E21 -> 3.61 | F22: 3646710.09 | H22: ='13. RTSR-Historic Wholesale'!H21 -> 1124819 | I22: =I21 -> 0.95 | J22: 1068578.05 | L22: ='13. RTSR-Historic Wholesale'!L21 -> 331290 | M22: =M21 -> 2.34 | N22: 775218.6 | P22: 1843796.65
B23: April | D23: ='13. RTSR-Historic Wholesale'!D22 -> 962258 | E23: 3.61 | F23: 3473751.38 | H23: ='13. RTSR-Historic Wholesale'!H22 -> 1112109.701 | I23: 0.95 | J23: 1056504.216 | L23: ='13. RTSR-Historic Wholesale'!L22 -> 310388 | M23: 2.34 | N23: 726307.92 | P23: 1782812.136
B24: May | D24: ='13. RTSR-Historic Wholesale'!D23 -> 1098637 | E24: 3.61 | F24: 3966079.57 | H24: ='13. RTSR-Historic Wholesale'!H23 -> 1184997 | I24: 0.95 | J24: 1125747.15 | L24: ='13. RTSR-Historic Wholesale'!L23 -> 313767 | M24: 2.34 | N24: 734214.78 | P24: 1859961.93
B25: June | D25: ='13. RTSR-Historic Wholesale'!D24 -> 1409080 | E25: 3.61 | F25: 5086778.8 | H25: ='13. RTSR-Historic Wholesale'!H24 -> 1476302 | I25: 0.95 | J25: 1402486.9 | L25: ='13. RTSR-Historic Wholesale'!L24 -> 399418 | M25: 2.34 | N25: 934638.12 | P25: 2337125.02
B26: July | D26: ='13. RTSR-Historic Wholesale'!D25 -> 1376230 | E26: 3.61 | F26: 4968190.3 | H26: ='13. RTSR-Historic Wholesale'!H25 -> 1480925 | I26: 0.95 | J26: 1406878.75 | L26: ='13. RTSR-Historic Wholesale'!L25 -> 428209 | M26: 2.34 | N26: 1002009.06 | P26: 2408887.81
B27: August | D27: ='13. RTSR-Historic Wholesale'!D26 -> 1311641 | E27: 3.61 | F27: 4735024.01 | H27: ='13. RTSR-Historic Wholesale'!H26 -> 1384781 | I27: 0.95 | J27: 1315541.95 | L27: ='13. RTSR-Historic Wholesale'!L26 -> 378890 | M27: 2.34 | N27: 886602.6 | P27: 2202144.55
B28: September | D28: ='13. RTSR-Historic Wholesale'!D27 -> 1455726 | E28: 3.61 | F28: 5255170.86 | H28: ='13. RTSR-Historic Wholesale'!H27 -> 1572377 | I28: 0.95 | J28: 1493758.15 | L28: ='13. RTSR-Historic Wholesale'!L27 -> 438756 | M28: 2.34 | N28: 1026689.04 | P28: 2520447.19
B29: October | D29: ='13. RTSR-Historic Wholesale'!D28 -> 995514 | E29: 3.61 | F29: 3593805.54 | H29: ='13. RTSR-Historic Wholesale'!H28 -> 1109430 | I29: 0.95 | J29: 1053958.5 | L29: ='13. RTSR-Historic Wholesale'!L28 -> 320153 | M29: 2.34 | N29: 749158.02 | P29: 1803116.52
B30: November | D30: ='13. RTSR-Historic Wholesale'!D29 -> 552445.4886 | E30: 3.61 | F30: 1994328.214 | H30: ='13. RTSR-Historic Wholesale'!H29 -> 1256758.682 | I30: 0.95 | J30: 1193920.748 | L30: ='13. RTSR-Historic Wholesale'!L29 -> 491986.7559 | M30: 2.34 | N30: 1151249.009 | P30: 2345169.756
B31: December | D31: ='13. RTSR-Historic Wholesale'!D30 -> 1595611.511 | E31: 3.61 | F31: 5760157.556 | H31: ='13. RTSR-Historic Wholesale'!H30 -> 1076393.318 | I31: 0.95 | J31: 1022573.652 | L31: ='13. RTSR-Historic Wholesale'!L30 -> 155119.2441 | M31: 2.34 | N31: 362979.0313 | P31: 1385552.684
B33: Total | D33: =SUM(D20:D31) -> 13887999 | E33: =IF(D33<>0,F33/D33,0) -> 3.61 | F33: =SUM(F20:F31) -> 50135676.39 | H33: =SUM(H20:H31) -> 15064495.7 | I33: =IF(H33<>0,J33/H33,0) -> 0.95 | J33: =SUM(J20:J31) -> 14311270.92 | L33: =SUM(L20:L31) -> 4233208 | M33: =IF(L33<>0,N33/L33,0) -> 2.34 | N33: =SUM(N20:N31) -> 9905706.72 | P33: =SUM(P20:P31) -> 24216977.64
B35: Hydro One | D35: Network | H35: Line Connection | L35: Transformation Connection | P35: Total Line
B37: Month | D37: Units Billed | E37: Rate | F37: Amount | H37: Units Billed | I37: Rate | J37: Amount | L37: Units Billed | M37: Rate | N37: Amount | P37: Amount
B39: January | D39: ='13. RTSR-Historic Wholesale'!D38 -> 196126.7234 | E39: ='12. RTSR-UTRs & Sub-Tx'!H29 -> 3.1942 | F39: =D39*E39 -> 626467.98 | H39: ='13. RTSR-Historic Wholesale'!H38 -> 196968.0832 | I39: ='12. RTSR-UTRs & Sub-Tx'!H31 -> 0.771 | J39: =H39*I39 -> 151862.3921 | L39: ='13. RTSR-Historic Wholesale'!L38 -> 196968.0832 | M39: ='12. RTSR-UTRs & Sub-Tx'!H33 -> 1.7493 | N39: =L39*M39 -> 344556.2679 | P39: =J39+N39 -> 496418.66
B40: February | D40: ='13. RTSR-Historic Wholesale'!D39 -> 210599.0765 | E40: =E39 -> 3.1942 | F40: =D40*E40 -> 672695.57 | H40: ='13. RTSR-Historic Wholesale'!H39 -> 210656.5726 | I40: =I39 -> 0.771 | J40: =H40*I40 -> 162416.2175 | L40: ='13. RTSR-Historic Wholesale'!L39 -> 210656.5726 | M40: =M39 -> 1.7493 | N40: =L40*M40 -> 368501.5425 | P40: 530917.76
B41: March | D41: ='13. RTSR-Historic Wholesale'!D40 -> 203822.2434 | E41: =E40 -> 3.1942 | F41: 651049.01 | H41: ='13. RTSR-Historic Wholesale'!H40 -> 206790.2353 | I41: =I40 -> 0.771 | J41: 159435.2714 | L41: ='13. RTSR-Historic Wholesale'!L40 -> 206790.2353 | M41: =M40 -> 1.7493 | N41: 361738.1586 | P41: 521173.43
B42: April | D42: ='13. RTSR-Historic Wholesale'!D41 -> 177737.3646 | E42: 3.1942 | F42: 567728.69 | H42: ='13. RTSR-Historic Wholesale'!H41 -> 182339.3009 | I42: 0.771 | J42: 140583.601 | L42: ='13. RTSR-Historic Wholesale'!L41 -> 182339.3009 | M42: =M41 -> 1.7493 | N42: 318966.139 | P42: 459549.74
B43: May | D43: ='13. RTSR-Historic Wholesale'!D42 -> 201741.6661 | E43: 3.1942 | F43: 644403.23 | H43: ='13. RTSR-Historic Wholesale'!H42 -> 201741.6577 | I43: 0.771 | J43: 155542.8181 | L43: ='13. RTSR-Historic Wholesale'!L42 -> 201741.6577 | M43: 1.7493 | N43: 352906.6819 | P43: 508449.5
B44: June | D44: ='13. RTSR-Historic Wholesale'!D43 -> 244196.1587 | E44: 3.1942 | F44: 780011.37 | H44: ='13. RTSR-Historic Wholesale'!H43 -> 244209.4909 | I44: 0.771 | J44: 188285.5175 | L44: ='13. RTSR-Historic Wholesale'!L43 -> 244209.4909 | M44: 1.7493 | N44: 427195.6625 | P44: 615481.18
B45: July | D45: ='13. RTSR-Historic Wholesale'!D44 -> 265074.2252 | E45: 3.1942 | F45: 846700.09 | H45: ='13. RTSR-Historic Wholesale'!H44 -> 265074.2293 | I45: 0.771 | J45: 204372.2308 | L45: ='13. RTSR-Historic Wholesale'!L44 -> 265074.2293 | M45: 1.7493 | N45: 463694.3492 | P45: 668066.58
B46: August | D46: ='13. RTSR-Historic Wholesale'!D45 -> 256021.7237 | E46: 3.1942 | F46: 817784.59 | H46: ='13. RTSR-Historic Wholesale'!H45 -> 256021.7117 | I46: 0.771 | J46: 197392.7397 | L46: ='13. RTSR-Historic Wholesale'!L45 -> 256021.7117 | M46: 1.7493 | N46: 447858.7803 | P46: 645251.52
B47: September | D47: ='13. RTSR-Historic Wholesale'!D46 -> 260453.9822 | E47: 3.1942 | F47: 831942.11 | H47: ='13. RTSR-Historic Wholesale'!H46 -> 260592.735 | I47: 0.771 | J47: 200916.9987 | L47: ='13. RTSR-Historic Wholesale'!L46 -> 260592.735 | M47: 1.7493 | N47: 455854.8713 | P47: 656771.87
B48: October | D48: ='13. RTSR-Historic Wholesale'!D47 -> 202222.9604 | E48: 3.1942 | F48: 645940.58 | H48: ='13. RTSR-Historic Wholesale'!H47 -> 202345.0065 | I48: 0.771 | J48: 156008 | L48: ='13. RTSR-Historic Wholesale'!L47 -> 202345.0065 | M48: 1.7493 | N48: 353962.12 | P48: 509970.12
B49: November | D49: ='13. RTSR-Historic Wholesale'!D48 -> 210642.7869 | E49: 3.1942 | F49: 672835.19 | H49: ='13. RTSR-Historic Wholesale'!H48 -> 210781.0896 | I49: 0.771 | J49: 162512.22 | L49: ='13. RTSR-Historic Wholesale'!L48 -> 210781.0896 | M49: 1.7493 | N49: 368719.36 | P49: 531231.58
B50: December | D50: ='13. RTSR-Historic Wholesale'!D49 -> 227781.8953 | E50: 3.1942 | F50: 727580.93 | H50: ='13. RTSR-Historic Wholesale'!H49 -> 227884.2796 | I50: 0.771 | J50: 175698.7796 | L50: ='13. RTSR-Historic Wholesale'!L49 -> 227884.2796 | M50: 1.7493 | N50: 398637.9704 | P50: 574336.75
B52: Total | D52: =SUM(D39:D50) -> 2656420.806 | E52: =IF(D52<>0,F52/D52,0) -> 3.1942 | F52: =SUM(F39:F50) -> 8485139.34 | H52: =SUM(H39:H50) -> 2665404.392 | I52: =IF(H52<>0,J52/H52,0) -> 0.771 | J52: =SUM(J39:J50) -> 2055026.786 | L52: =SUM(L39:L50) -> 2665404.392 | M52: =IF(L52<>0,N52/L52,0) -> 1.7493 | N52: =SUM(N39:N50) -> 4662591.904 | P52: =SUM(P39:P50) -> 6717618.69
B54: Add Extra Host Here (I) | D54: Network | H54: Line Connection | L54: Transformation Connection | P54: Total Line
B56: Month | D56: Units Billed | E56: Rate | F56: Amount | H56: Units Billed | I56: Rate | J56: Amount | L56: Units Billed | M56: Rate | N56: Amount | P56: Amount
B58: January | D58: ='13. RTSR-Historic Wholesale'!D57 -> 0 | E58: ='12. RTSR-UTRs & Sub-Tx'!H44 -> 0 | F58: =D58*E58 -> 0 | H58: ='13. RTSR-Historic Wholesale'!H57 -> 0 | I58: ='12. RTSR-UTRs & Sub-Tx'!H46 -> 0 | J58: =H58*I58 -> 0 | L58: ='13. RTSR-Historic Wholesale'!L57 -> 0 | M58: ='12. RTSR-UTRs & Sub-Tx'!H48 -> 0 | N58: =L58*M58 -> 0 | P58: =J58+N58 -> 0
B59: February | D59: ='13. RTSR-Historic Wholesale'!D58 -> 0 | E59: =E58 -> 0 | F59: =D59*E59 -> 0 | H59: ='13. RTSR-Historic Wholesale'!H58 -> 0 | I59: =I58 -> 0 | J59: =H59*I59 -> 0 | L59: ='13. RTSR-Historic Wholesale'!L58 -> 0 | M59: =M58 -> 0 | N59: =L59*M59 -> 0 | P59: 0
B60: March | D60: ='13. RTSR-Historic Wholesale'!D59 -> 0 | E60: =E59 -> 0 | F60: 0 | H60: ='13. RTSR-Historic Wholesale'!H59 -> 0 | I60: =I59 -> 0 | J60: 0 | L60: ='13. RTSR-Historic Wholesale'!L59 -> 0 | M60: =M59 -> 0 | N60: 0 | P60: 0
B61: April | D61: ='13. RTSR-Historic Wholesale'!D60 -> 0 | E61: 0 | F61: 0 | H61: ='13. RTSR-Historic Wholesale'!H60 -> 0 | I61: 0 | J61: 0 | L61: ='13. RTSR-Historic Wholesale'!L60 -> 0 | M61: 0 | N61: 0 | P61: 0
B62: May | D62: ='13. RTSR-Historic Wholesale'!D61 -> 0 | E62: 0 | F62: 0 | H62: ='13. RTSR-Historic Wholesale'!H61 -> 0 | I62: 0 | J62: 0 | L62: ='13. RTSR-Historic Wholesale'!L61 -> 0 | M62: 0 | N62: 0 | P62: 0
B63: June | D63: ='13. RTSR-Historic Wholesale'!D62 -> 0 | E63: 0 | F63: 0 | H63: ='13. RTSR-Historic Wholesale'!H62 -> 0 | I63: 0 | J63: 0 | L63: ='13. RTSR-Historic Wholesale'!L62 -> 0 | M63: 0 | N63: 0 | P63: 0
B64: July | D64: ='13. RTSR-Historic Wholesale'!D63 -> 0 | E64: 0 | F64: 0 | H64: ='13. RTSR-Historic Wholesale'!H63 -> 0 | I64: 0 | J64: 0 | L64: ='13. RTSR-Historic Wholesale'!L63 -> 0 | M64: 0 | N64: 0 | P64: 0
B65: August | D65: ='13. RTSR-Historic Wholesale'!D64 -> 0 | E65: 0 | F65: 0 | H65: ='13. RTSR-Historic Wholesale'!H64 -> 0 | I65: 0 | J65: 0 | L65: ='13. RTSR-Historic Wholesale'!L64 -> 0 | M65: 0 | N65: 0 | P65: 0
B66: September | D66: ='13. RTSR-Historic Wholesale'!D65 -> 0 | E66: 0 | F66: 0 | H66: ='13. RTSR-Historic Wholesale'!H65 -> 0 | I66: 0 | J66: 0 | L66: ='13. RTSR-Historic Wholesale'!L65 -> 0 | M66: 0 | N66: 0 | P66: 0
B67: October | D67: ='13. RTSR-Historic Wholesale'!D66 -> 0 | E67: 0 | F67: 0 | H67: ='13. RTSR-Historic Wholesale'!H66 -> 0 | I67: 0 | J67: 0 | L67: ='13. RTSR-Historic Wholesale'!L66 -> 0 | M67: 0 | N67: 0 | P67: 0
B68: November | D68: ='13. RTSR-Historic Wholesale'!D67 -> 0 | E68: 0 | F68: 0 | H68: ='13. RTSR-Historic Wholesale'!H67 -> 0 | I68: 0 | J68: 0 | L68: ='13. RTSR-Historic Wholesale'!L67 -> 0 | M68: 0 | N68: 0 | P68: 0
B69: December | D69: ='13. RTSR-Historic Wholesale'!D68 -> 0 | E69: 0 | F69: 0 | H69: ='13. RTSR-Historic Wholesale'!H68 -> 0 | I69: 0 | J69: 0 | L69: ='13. RTSR-Historic Wholesale'!L68 -> 0 | M69: 0 | N69: 0 | P69: 0
B71: Total | D71: =SUM(D58:D69) -> 0 | E71: =IF(D71<>0,F71/D71,0) -> 0 | F71: =SUM(F58:F69) -> 0 | H71: =SUM(H58:H69) -> 0 | I71: =IF(H71<>0,J71/H71,0) -> 0 | J71: =SUM(J58:J69) -> 0 | L71: =SUM(L58:L69) -> 0 | M71: =IF(L71<>0,N71/L71,0) -> 0 | N71: =SUM(N58:N69) -> 0 | P71: =SUM(P58:P69) -> 0
B73: Add Extra Host Here (II) | D73: Network | H73: Line Connection | L73: Transformation Connection | P73: Total Line
B75: Month | D75: Units Billed | E75: Rate | F75: Amount | H75: Units Billed | I75: Rate | J75: Amount | L75: Units Billed | M75: Rate | N75: Amount | P75: Amount
B77: January | D77: ='13. RTSR-Historic Wholesale'!D76 -> 0 | E77: ='12. RTSR-UTRs & Sub-Tx'!H59 -> 0 | F77: =D77*E77 -> 0 | H77: ='13. RTSR-Historic Wholesale'!H76 -> 0 | I77: ='12. RTSR-UTRs & Sub-Tx'!H61 -> 0 | J77: =H77*I77 -> 0 | L77: ='13. RTSR-Historic Wholesale'!L76 -> 0 | M77: ='12. RTSR-UTRs & Sub-Tx'!H63 -> 0 | N77: =L77*M77 -> 0 | P77: =J77+N77 -> 0
B78: February | D78: ='13. RTSR-Historic Wholesale'!D77 -> 0 | E78: =E77 -> 0 | F78: =D78*E78 -> 0 | H78: ='13. RTSR-Historic Wholesale'!H77 -> 0 | I78: =I77 -> 0 | J78: =H78*I78 -> 0 | L78: ='13. RTSR-Historic Wholesale'!L77 -> 0 | M78: =M77 -> 0 | N78: =L78*M78 -> 0 | P78: 0
B79: March | D79: ='13. RTSR-Historic Wholesale'!D78 -> 0 | E79: =E78 -> 0 | F79: 0 | H79: ='13. RTSR-Historic Wholesale'!H78 -> 0 | I79: =I78 -> 0 | J79: 0 | L79: ='13. RTSR-Historic Wholesale'!L78 -> 0 | M79: =M78 -> 0 | N79: 0 | P79: 0
B80: April | D80: ='13. RTSR-Historic Wholesale'!D79 -> 0 | E80: 0 | F80: 0 | H80: ='13. RTSR-Historic Wholesale'!H79 -> 0 | I80: 0 | J80: 0 | L80: ='13. RTSR-Historic Wholesale'!L79 -> 0 | M80: =M79 -> 0 | N80: 0 | P80: 0
B81: May | D81: ='13. RTSR-Historic Wholesale'!D80 -> 0 | E81: 0 | F81: 0 | H81: ='13. RTSR-Historic Wholesale'!H80 -> 0 | I81: 0 | J81: 0 | L81: ='13. RTSR-Historic Wholesale'!L80 -> 0 | M81: 0 | N81: 0 | P81: 0
B82: June | D82: ='13. RTSR-Historic Wholesale'!D81 -> 0 | E82: 0 | F82: 0 | H82: ='13. RTSR-Historic Wholesale'!H81 -> 0 | I82: 0 | J82: 0 | L82: ='13. RTSR-Historic Wholesale'!L81 -> 0 | M82: 0 | N82: 0 | P82: 0
B83: July | D83: ='13. RTSR-Historic Wholesale'!D82 -> 0 | E83: 0 | F83: 0 | H83: ='13. RTSR-Historic Wholesale'!H82 -> 0 | I83: 0 | J83: 0 | L83: ='13. RTSR-Historic Wholesale'!L82 -> 0 | M83: 0 | N83: 0 | P83: 0
B84: August | D84: ='13. RTSR-Historic Wholesale'!D83 -> 0 | E84: 0 | F84: 0 | H84: ='13. RTSR-Historic Wholesale'!H83 -> 0 | I84: 0 | J84: 0 | L84: ='13. RTSR-Historic Wholesale'!L83 -> 0 | M84: 0 | N84: 0 | P84: 0
B85: September | D85: ='13. RTSR-Historic Wholesale'!D84 -> 0 | E85: 0 | F85: 0 | H85: ='13. RTSR-Historic Wholesale'!H84 -> 0 | I85: 0 | J85: 0 | L85: ='13. RTSR-Historic Wholesale'!L84 -> 0 | M85: 0 | N85: 0 | P85: 0
B86: October | D86: ='13. RTSR-Historic Wholesale'!D85 -> 0 | E86: 0 | F86: 0 | H86: ='13. RTSR-Historic Wholesale'!H85 -> 0 | I86: 0 | J86: 0 | L86: ='13. RTSR-Historic Wholesale'!L85 -> 0 | M86: 0 | N86: 0 | P86: 0
B87: November | D87: ='13. RTSR-Historic Wholesale'!D86 -> 0 | E87: 0 | F87: 0 | H87: ='13. RTSR-Historic Wholesale'!H86 -> 0 | I87: 0 | J87: 0 | L87: ='13. RTSR-Historic Wholesale'!L86 -> 0 | M87: 0 | N87: 0 | P87: 0
B88: December | D88: ='13. RTSR-Historic Wholesale'!D87 -> 0 | E88: 0 | F88: 0 | H88: ='13. RTSR-Historic Wholesale'!H87 -> 0 | I88: 0 | J88: 0 | L88: ='13. RTSR-Historic Wholesale'!L87 -> 0 | M88: 0 | N88: 0 | P88: 0
B90: Total | D90: =SUM(D77:D88) -> 0 | E90: =IF(D90<>0,F90/D90,0) -> 0 | F90: =SUM(F77:F88) -> 0 | H90: =SUM(H77:H88) -> 0 | I90: =IF(H90<>0,J90/H90,0) -> 0 | J90: =SUM(J77:J88) -> 0 | L90: =SUM(L77:L88) -> 0 | M90: =IF(L90<>0,N90/L90,0) -> 0 | N90: =SUM(N77:N88) -> 0 | P90: =SUM(P77:P88) -> 0
B92: Total | D92: Network | H92: Line Connection | L92: Transformation Connection | P92: Total Line
B94: Month | D94: Units Billed | E94: Rate | F94: Amount | H94: Units Billed | I94: Rate | J94: Amount | L94: Units Billed | M94: Rate | N94: Amount | P94: Amount
B96: January | D96: =D20+D39+D58+D77 -> 1262975.723 | E96: =IF(D96<>0,F96/D96,0) -> 3.545430674 | F96: =F20+F39+F58+F77 -> 4477792.87 | H96: =H20+H39+H58+H77 -> 1353519.083 | I96: =IF(H96<>0,J96/H96,0) -> 0.9239513928 | J96: =J20+J39+J58+J77 -> 1250585.842 | L96: =L20+L39+L58+L77 -> 526670.0832 | M96: =IF(L96<>0,N96/L96,0) -> 2.119085522 | N96: =N20+N39+N58+N77 -> 1116058.948 | P96: =J96+N96 -> 2366644.79
B97: February | D97: =D21+D40+D59+D78 -> 1264437.076 | E97: 3.540746181 | F97: =F21+F40+F59+F78 -> 4477050.75 | H97: =H21+H40+H59+H78 -> 1339708.573 | I97: 0.9218539336 | J97: =J21+J40+J59+J78 -> 1235015.617 | L97: =L21+L40+L59+L78 -> 546185.5726 | M97: 2.1121748 | N97: =N21+N40+N59+N78 -> 1153639.403 | P97: 2388655.02
B98: March | D98: 1213991.243 | E98: 3.540189539 | F98: 4297759.1 | H98: 1331609.235 | I98: 0.9222024667 | J98: 1228013.321 | L98: 538080.2353 | M98: 2.112987402 | N98: 1136956.759 | P98: 2364970.08
B99: April | D99: 1139995.365 | E99: 3.545172371 | F99: 4041480.07 | H99: 1294449.002 | I99: 0.9247856155 | J99: 1197087.817 | L99: 492727.3009 | M99: 2.121404796 | N99: 1045274.059 | P99: 2242361.876
B100: May | D100: 1300378.666 | E100: 3.545492494 | F100: 4610482.8 | H100: 1386738.658 | I100: 0.9239592197 | J100: 1281289.968 | L100: 515508.6577 | M100: 2.108832598 | N100: 1087121.462 | P100: 2368411.43
B101: June | D101: 1653276.159 | E101: 3.548584512 | F101: 5866790.17 | H101: 1720511.491 | I101: 0.9245927306 | J101: 1590772.418 | L101: 643627.4909 | M101: 2.115872615 | N101: 1361833.782 | P101: 2952606.2
B102: July | D102: 1641304.225 | E102: 3.54284739 | F102: 5814890.39 | H102: 1745999.229 | I102: 0.9228245659 | J102: 1611250.981 | L102: 693283.2293 | M102: 2.114148082 | N102: 1465703.409 | P102: 3076954.39
B103: August | D103: 1567662.724 | E103: 3.542093918 | F103: 5552808.6 | H103: 1640802.712 | I103: 0.9220698375 | J103: 1512934.69 | L103: 634911.7117 | M103: 2.101806213 | N103: 1334461.38 | P103: 2847396.07
B104: September | D104: 1716179.982 | E104: 3.546896615 | F104: 6087112.97 | H104: 1832969.735 | I104: 0.9245516259 | J104: 1694675.149 | L104: 699348.735 | M104: 2.119892176 | N104: 1482543.911 | P104: 3177219.06
B105: October | D105: 1197736.96 | E105: 3.539797351 | F105: 4239746.12 | H105: 1311775.007 | I105: 0.9223887435 | J105: 1209966.5 | L105: 522498.0065 | M105: 2.111242772 | N105: 1103120.14 | P105: 2313086.64
B106: November | D106: 763088.2756 | E106: 3.495222623 | F106: 2667163.404 | H106: 1467539.771 | I106: 0.924290431 | J106: 1356432.968 | L106: 702767.8454 | M106: 2.162831408 | N106: 1519968.369 | P106: 2876401.336
B107: December | D107: 1823393.407 | E107: 3.558057445 | F107: 6487738.486 | H107: 1304277.598 | I107: 0.9187249968 | J107: 1198272.432 | L107: 383003.5238 | M107: 1.988537845 | N107: 761617.0017 | P107: 1959889.434
B109: Total | D109: =SUM(D96:D107) -> 16544419.81 | E109: =IF(D109<>0,F109/D109,0) -> 3.543237926 | F109: =SUM(F96:F107) -> 58620815.73 | H109: =SUM(H96:H107) -> 17729900.09 | I109: =IF(H109<>0,J109/H109,0) -> 0.9230902383 | J109: =SUM(J96:J107) -> 16366297.7 | L109: =SUM(L96:L107) -> 6898612.392 | M109: =IF(L109<>0,N109/L109,0) -> 2.111772309 | N109: =SUM(N96:N107) -> 14568298.62 | P109: =SUM(P96:P107) -> 30934596.33
N111: Low Voltage Switchgear Credit (if applicable) | P111: ='12. RTSR-UTRs & Sub-Tx'!F68 -> 0
N113: Total including deduction for Low Voltage Switchgear Credit | P113: =P109+P111 -> 30934596.33

Sheet 15. RTSR-Forecast Wholesale
A1: Back to Index
B2: =+'1. Information Sheet'!B2 -> INCENTIVE REGULATION MODEL FOR 2019 FILERS
B13: The purpose of this sheet is to calculate the expected billing when forecasted 2019 Uniform Transmission Rates are applied against historical 2017 transmission units.
B16: IESO | D16: Network | H16: Line Connection | L16: Transformation Connection | P16: Total Line
B18: Month | D18: Units Billed | E18: Rate | F18: Amount | H18: Units Billed | I18: Rate | J18: Amount | L18: Units Billed | M18: Rate | N18: Amount | P18: Amount
B20: January | D20: ='13. RTSR-Historic Wholesale'!D19 -> 1066849 | E20: ='12. RTSR-UTRs & Sub-Tx'!J16 -> 3.61 | F20: =D20*E20 -> 3851324.89 | H20: ='13. RTSR-Historic Wholesale'!H19 -> 1156551 | I20: ='12. RTSR-UTRs & Sub-Tx'!J18 -> 0.95 | J20: =H20*I20 -> 1098723.45 | L20: ='13. RTSR-Historic Wholesale'!L19 -> 329702 | M20: ='12. RTSR-UTRs & Sub-Tx'!J20 -> 2.34 | N20: =L20*M20 -> 771502.68 | P20: =J20+N20 -> 1870226.13
B21: February | D21: ='13. RTSR-Historic Wholesale'!D20 -> 1053838 | E21: =E20 -> 3.61 | F21: 3804355.18 | H21: ='13. RTSR-Historic Wholesale'!H20 -> 1129052 | I21: =I20 -> 0.95 | J21: 1072599.4 | L21: ='13. RTSR-Historic Wholesale'!L20 -> 335529 | M21: =M20 -> 2.34 | N21: 785137.86 | P21: 1857737.26
B22: March | D22: ='13. RTSR-Historic Wholesale'!D21 -> 1010169 | E22: 3.61 | F22: 3646710.09 | H22: ='13. RTSR-Historic Wholesale'!H21 -> 1124819 | I22: 0.95 | J22: 1068578.05 | L22: ='13. RTSR-Historic Wholesale'!L21 -> 331290 | M22: 2.34 | N22: 775218.6 | P22: 1843796.65
B23: April | D23: ='13. RTSR-Historic Wholesale'!D22 -> 962258 | E23: 3.61 | F23: 3473751.38 | H23: ='13. RTSR-Historic Wholesale'!H22 -> 1112109.701 | I23: 0.95 | J23: 1056504.216 | L23: ='13. RTSR-Historic Wholesale'!L22 -> 310388 | M23: 2.34 | N23: 726307.92 | P23: 1782812.136
B24: May | D24: ='13. RTSR-Historic Wholesale'!D23 -> 1098637 | E24: 3.61 | F24: 3966079.57 | H24: ='13. RTSR-Historic Wholesale'!H23 -> 1184997 | I24: 0.95 | J24: 1125747.15 | L24: ='13. RTSR-Historic Wholesale'!L23 -> 313767 | M24: 2.34 | N24: 734214.78 | P24: 1859961.93
B25: June | D25: ='13. RTSR-Historic Wholesale'!D24 -> 1409080 | E25: 3.61 | F25: 5086778.8 | H25: ='13. RTSR-Historic Wholesale'!H24 -> 1476302 | I25: 0.95 | J25: 1402486.9 | L25: ='13. RTSR-Historic Wholesale'!L24 -> 399418 | M25: 2.34 | N25: 934638.12 | P25: 2337125.02
B26: July | D26: ='13. RTSR-Historic Wholesale'!D25 -> 1376230 | E26: 3.61 | F26: 4968190.3 | H26: ='13. RTSR-Historic Wholesale'!H25 -> 1480925 | I26: 0.95 | J26: 1406878.75 | L26: ='13. RTSR-Historic Wholesale'!L25 -> 428209 | M26: 2.34 | N26: 1002009.06 | P26: 2408887.81
B27: August | D27: ='13. RTSR-Historic Wholesale'!D26 -> 1311641 | E27: 3.61 | F27: 4735024.01 | H27: ='13. RTSR-Historic Wholesale'!H26 -> 1384781 | I27: 0.95 | J27: 1315541.95 | L27: ='13. RTSR-Historic Wholesale'!L26 -> 378890 | M27: 2.34 | N27: 886602.6 | P27: 2202144.55
B28: September | D28: ='13. RTSR-Historic Wholesale'!D27 -> 1455726 | E28: 3.61 | F28: 5255170.86 | H28: ='13. RTSR-Historic Wholesale'!H27 -> 1572377 | I28: 0.95 | J28: 1493758.15 | L28: ='13. RTSR-Historic Wholesale'!L27 -> 438756 | M28: 2.34 | N28: 1026689.04 | P28: 2520447.19
B29: October | D29: ='13. RTSR-Historic Wholesale'!D28 -> 995514 | E29: 3.61 | F29: 3593805.54 | H29: ='13. RTSR-Historic Wholesale'!H28 -> 1109430 | I29: 0.95 | J29: 1053958.5 | L29: ='13. RTSR-Historic Wholesale'!L28 -> 320153 | M29: 2.34 | N29: 749158.02 | P29: 1803116.52
B30: November | D30: ='13. RTSR-Historic Wholesale'!D29 -> 552445.4886 | E30: 3.61 | F30: 1994328.214 | H30: ='13. RTSR-Historic Wholesale'!H29 -> 1256758.682 | I30: 0.95 | J30: 1193920.748 | L30: ='13. RTSR-Historic Wholesale'!L29 -> 491986.7559 | M30: 2.34 | N30: 1151249.009 | P30: 2345169.756
B31: December | D31: ='13. RTSR-Historic Wholesale'!D30 -> 1595611.511 | E31: 3.61 | F31: 5760157.556 | H31: ='13. RTSR-Historic Wholesale'!H30 -> 1076393.318 | I31: 0.95 | J31: 1022573.652 | L31: ='13. RTSR-Historic Wholesale'!L30 -> 155119.2441 | M31: 2.34 | N31: 362979.0313 | P31: 1385552.684
B33: Total | D33: =SUM(D20:D31) -> 13887999 | E33: =IF(D33<>0,F33/D33,0) -> 3.61 | F33: =SUM(F20:F31) -> 50135676.39 | H33: =SUM(H20:H31) -> 15064495.7 | I33: =IF(H33<>0,J33/H33,0) -> 0.95 | J33: =SUM(J20:J31) -> 14311270.92 | L33: =SUM(L20:L31) -> 4233208 | M33: =IF(L33<>0,N33/L33,0) -> 2.34 | N33: =SUM(N20:N31) -> 9905706.72 | P33: =SUM(P20:P31) -> 24216977.64
B35: Hydro One | D35: Network | H35: Line Connection | L35: Transformation Connection | P35: Total Line
B37: Month | D37: Units Billed | E37: Rate | F37: Amount | H37: Units Billed | I37: Rate | J37: Amount | L37: Units Billed | M37: Rate | N37: Amount | P37: Amount
B39: January | D39: ='13. RTSR-Historic Wholesale'!D38 -> 196126.7234 | E39: ='12. RTSR-UTRs & Sub-Tx'!J29 -> 3.1942 | F39: =D39*E39 -> 626467.98 | H39: ='13. RTSR-Historic Wholesale'!H38 -> 196968.0832 | I39: ='12. RTSR-UTRs & Sub-Tx'!J31 -> 0.771 | J39: =H39*I39 -> 151862.3921 | L39: ='13. RTSR-Historic Wholesale'!L38 -> 196968.0832 | M39: ='12. RTSR-UTRs & Sub-Tx'!J33 -> 1.7493 | N39: =L39*M39 -> 344556.2679 | P39: =J39+N39 -> 496418.66
B40: February | D40: ='13. RTSR-Historic Wholesale'!D39 -> 210599.0765 | E40: =E39 -> 3.1942 | F40: 672695.57 | H40: ='13. RTSR-Historic Wholesale'!H39 -> 210656.5726 | I40: =I39 -> 0.771 | J40: 162416.2175 | L40: ='13. RTSR-Historic Wholesale'!L39 -> 210656.5726 | M40: =M39 -> 1.7493 | N40: 368501.5425 | P40: 530917.76
B41: March | D41: ='13. RTSR-Historic Wholesale'!D40 -> 203822.2434 | E41: 3.1942 | F41: 651049.01 | H41: ='13. RTSR-Historic Wholesale'!H40 -> 206790.2353 | I41: 0.771 | J41: 159435.2714 | L41: ='13. RTSR-Historic Wholesale'!L40 -> 206790.2353 | M41: 1.7493 | N41: 361738.1586 | P41: 521173.43
B42: April | D42: ='13. RTSR-Historic Wholesale'!D41 -> 177737.3646 | E42: 3.1942 | F42: 567728.69 | H42: ='13. RTSR-Historic Wholesale'!H41 -> 182339.3009 | I42: 0.771 | J42: 140583.601 | L42: ='13. RTSR-Historic Wholesale'!L41 -> 182339.3009 | M42: 1.7493 | N42: 318966.139 | P42: 459549.74
B43: May | D43: ='13. RTSR-Historic Wholesale'!D42 -> 201741.6661 | E43: 3.1942 | F43: 644403.23 | H43: ='13. RTSR-Historic Wholesale'!H42 -> 201741.6577 | I43: 0.771 | J43: 155542.8181 | L43: ='13. RTSR-Historic Wholesale'!L42 -> 201741.6577 | M43: 1.7493 | N43: 352906.6819 | P43: 508449.5
B44: June | D44: ='13. RTSR-Historic Wholesale'!D43 -> 244196.1587 | E44: 3.1942 | F44: 780011.37 | H44: ='13. RTSR-Historic Wholesale'!H43 -> 244209.4909 | I44: 0.771 | J44: 188285.5175 | L44: ='13. RTSR-Historic Wholesale'!L43 -> 244209.4909 | M44: 1.7493 | N44: 427195.6625 | P44: 615481.18
B45: July | D45: ='13. RTSR-Historic Wholesale'!D44 -> 265074.2252 | E45: 3.1942 | F45: 846700.09 | H45: ='13. RTSR-Historic Wholesale'!H44 -> 265074.2293 | I45: 0.771 | J45: 204372.2308 | L45: ='13. RTSR-Historic Wholesale'!L44 -> 265074.2293 | M45: 1.7493 | N45: 463694.3492 | P45: 668066.58
B46: August | D46: ='13. RTSR-Historic Wholesale'!D45 -> 256021.7237 | E46: 3.1942 | F46: 817784.59 | H46: ='13. RTSR-Historic Wholesale'!H45 -> 256021.7117 | I46: 0.771 | J46: 197392.7397 | L46: ='13. RTSR-Historic Wholesale'!L45 -> 256021.7117 | M46: 1.7493 | N46: 447858.7803 | P46: 645251.52
B47: September | D47: ='13. RTSR-Historic Wholesale'!D46 -> 260453.9822 | E47: 3.1942 | F47: 831942.11 | H47: ='13. RTSR-Historic Wholesale'!H46 -> 260592.735 | I47: 0.771 | J47: 200916.9987 | L47: ='13. RTSR-Historic Wholesale'!L46 -> 260592.735 | M47: 1.7493 | N47: 455854.8713 | P47: 656771.87
B48: October | D48: ='13. RTSR-Historic Wholesale'!D47 -> 202222.9604 | E48: 3.1942 | F48: 645940.58 | H48: ='13. RTSR-Historic Wholesale'!H47 -> 202345.0065 | I48: 0.771 | J48: 156008 | L48: ='13. RTSR-Historic Wholesale'!L47 -> 202345.0065 | M48: 1.7493 | N48: 353962.12 | P48: 509970.12
B49: November | D49: ='13. RTSR-Historic Wholesale'!D48 -> 210642.7869 | E49: 3.1942 | F49: 672835.19 | H49: ='13. RTSR-Historic Wholesale'!H48 -> 210781.0896 | I49: 0.771 | J49: 162512.22 | L49: ='13. RTSR-Historic Wholesale'!L48 -> 210781.0896 | M49: 1.7493 | N49: 368719.36 | P49: 531231.58
B50: December | D50: ='13. RTSR-Historic Wholesale'!D49 -> 227781.8953 | E50: 3.1942 | F50: 727580.93 | H50: ='13. RTSR-Historic Wholesale'!H49 -> 227884.2796 | I50: 0.771 | J50: 175698.7796 | L50: ='13. RTSR-Historic Wholesale'!L49 -> 227884.2796 | M50: 1.7493 | N50: 398637.9704 | P50: 574336.75
B52: Total | D52: =SUM(D39:D50) -> 2656420.806 | E52: =IF(D52<>0,F52/D52,0) -> 3.1942 | F52: =SUM(F39:F50) -> 8485139.34 | H52: =SUM(H39:H50) -> 2665404.392 | I52: =IF(H52<>0,J52/H52,0) -> 0.771 | J52: =SUM(J39:J50) -> 2055026.786 | L52: =SUM(L39:L50) -> 2665404.392 | M52: =IF(L52<>0,N52/L52,0) -> 1.7493 | N52: =SUM(N39:N50) -> 4662591.904 | P52: =SUM(P39:P50) -> 6717618.69
B54: Add Extra Host Here (I) | D54: Network | H54: Line Connection | L54: Transformation Connection | P54: Total Line
B56: Month | D56: Units Billed | E56: Rate | F56: Amount | H56: Units Billed | I56: Rate | J56: Amount | L56: Units Billed | M56: Rate | N56: Amount | P56: Amount
B58: January | D58: ='13. RTSR-Historic Wholesale'!D57 -> 0 | E58: ='12. RTSR-UTRs & Sub-Tx'!J44 -> 0 | F58: =D58*E58 -> 0 | H58: ='13. RTSR-Historic Wholesale'!H57 -> 0 | I58: ='12. RTSR-UTRs & Sub-Tx'!J46 -> 0 | J58: =H58*I58 -> 0 | L58: ='13. RTSR-Historic Wholesale'!L57 -> 0 | M58: ='12. RTSR-UTRs & Sub-Tx'!J48 -> 0 | N58: =L58*M58 -> 0 | P58: =J58+N58 -> 0
B59: February | D59: ='13. RTSR-Historic Wholesale'!D58 -> 0 | E59: =E58 -> 0 | F59: 0 | H59: ='13. RTSR-Historic Wholesale'!H58 -> 0 | I59: =I58 -> 0 | J59: 0 | L59: ='13. RTSR-Historic Wholesale'!L58 -> 0 | M59: =M58 -> 0 | N59: 0 | P59: 0
B60: March | D60: ='13. RTSR-Historic Wholesale'!D59 -> 0 | E60: 0 | F60: 0 | H60: ='13. RTSR-Historic Wholesale'!H59 -> 0 | I60: 0 | J60: 0 | L60: ='13. RTSR-Historic Wholesale'!L59 -> 0 | M60: 0 | N60: 0 | P60: 0
B61: April | D61: ='13. RTSR-Historic Wholesale'!D60 -> 0 | E61: 0 | F61: 0 | H61: ='13. RTSR-Historic Wholesale'!H60 -> 0 | I61: 0 | J61: 0 | L61: ='13. RTSR-Historic Wholesale'!L60 -> 0 | M61: 0 | N61: 0 | P61: 0
B62: May | D62: ='13. RTSR-Historic Wholesale'!D61 -> 0 | E62: 0 | F62: 0 | H62: ='13. RTSR-Historic Wholesale'!H61 -> 0 | I62: 0 | J62: 0 | L62: ='13. RTSR-Historic Wholesale'!L61 -> 0 | M62: 0 | N62: 0 | P62: 0
B63: June | D63: ='13. RTSR-Historic Wholesale'!D62 -> 0 | E63: 0 | F63: 0 | H63: ='13. RTSR-Historic Wholesale'!H62 -> 0 | I63: 0 | J63: 0 | L63: ='13. RTSR-Historic Wholesale'!L62 -> 0 | M63: 0 | N63: 0 | P63: 0
B64: July | D64: ='13. RTSR-Historic Wholesale'!D63 -> 0 | E64: 0 | F64: 0 | H64: ='13. RTSR-Historic Wholesale'!H63 -> 0 | I64: 0 | J64: 0 | L64: ='13. RTSR-Historic Wholesale'!L63 -> 0 | M64: 0 | N64: 0 | P64: 0
B65: August | D65: ='13. RTSR-Historic Wholesale'!D64 -> 0 | E65: 0 | F65: 0 | H65: ='13. RTSR-Historic Wholesale'!H64 -> 0 | I65: 0 | J65: 0 | L65: ='13. RTSR-Historic Wholesale'!L64 -> 0 | M65: 0 | N65: 0 | P65: 0
B66: September | D66: ='13. RTSR-Historic Wholesale'!D65 -> 0 | E66: 0 | F66: 0 | H66: ='13. RTSR-Historic Wholesale'!H65 -> 0 | I66: 0 | J66: 0 | L66: ='13. RTSR-Historic Wholesale'!L65 -> 0 | M66: 0 | N66: 0 | P66: 0
B67: October | D67: ='13. RTSR-Historic Wholesale'!D66 -> 0 | E67: 0 | F67: 0 | H67: ='13. RTSR-Historic Wholesale'!H66 -> 0 | I67: 0 | J67: 0 | L67: ='13. RTSR-Historic Wholesale'!L66 -> 0 | M67: 0 | N67: 0 | P67: 0
B68: November | D68: ='13. RTSR-Historic Wholesale'!D67 -> 0 | E68: 0 | F68: 0 | H68: ='13. RTSR-Historic Wholesale'!H67 -> 0 | I68: 0 | J68: 0 | L68: ='13. RTSR-Historic Wholesale'!L67 -> 0 | M68: 0 | N68: 0 | P68: 0
B69: December | D69: ='13. RTSR-Historic Wholesale'!D68 -> 0 | E69: 0 | F69: 0 | H69: ='13. RTSR-Historic Wholesale'!H68 -> 0 | I69: 0 | J69: 0 | L69: ='13. RTSR-Historic Wholesale'!L68 -> 0 | M69: 0 | N69: 0 | P69: 0
B71: Total | D71: =SUM(D58:D69) -> 0 | E71: =IF(D71<>0,F71/D71,0) -> 0 | F71: =SUM(F58:F69) -> 0 | H71: =SUM(H58:H69) -> 0 | I71: =IF(H71<>0,J71/H71,0) -> 0 | J71: =SUM(J58:J69) -> 0 | L71: =SUM(L58:L69) -> 0 | M71: =IF(L71<>0,N71/L71,0) -> 0 | N71: =SUM(N58:N69) -> 0 | P71: =SUM(P58:P69) -> 0
B73: Add Extra Host Here (II) | D73: Network | H73: Line Connection | L73: Transformation Connection | P73: Total Line
B75: Month | D75: Units Billed | E75: Rate | F75: Amount | H75: Units Billed | I75: Rate | J75: Amount | L75: Units Billed | M75: Rate | N75: Amount | P75: Amount
B77: January | D77: ='13. RTSR-Historic Wholesale'!D76 -> 0 | E77: ='12. RTSR-UTRs & Sub-Tx'!J59 -> 0 | F77: =D77*E77 -> 0 | H77: ='13. RTSR-Historic Wholesale'!H76 -> 0 | I77: ='12. RTSR-UTRs & Sub-Tx'!J61 -> 0 | J77: =H77*I77 -> 0 | L77: ='13. RTSR-Historic Wholesale'!L76 -> 0 | M77: ='12. RTSR-UTRs & Sub-Tx'!J63 -> 0 | N77: =L77*M77 -> 0 | P77: =J77+N77 -> 0
B78: February | D78: ='13. RTSR-Historic Wholesale'!D77 -> 0 | E78: =E77 -> 0 | F78: 0 | H78: ='13. RTSR-Historic Wholesale'!H77 -> 0 | I78: =I77 -> 0 | J78: 0 | L78: ='13. RTSR-Historic Wholesale'!L77 -> 0 | M78: =M77 -> 0 | N78: 0 | P78: 0
B79: March | D79: ='13. RTSR-Historic Wholesale'!D78 -> 0 | E79: 0 | F79: 0 | H79: ='13. RTSR-Historic Wholesale'!H78 -> 0 | I79: 0 | J79: 0 | L79: ='13. RTSR-Historic Wholesale'!L78 -> 0 | M79: 0 | N79: 0 | P79: 0
B80: April | D80: ='13. RTSR-Historic Wholesale'!D79 -> 0 | E80: 0 | F80: 0 | H80: ='13. RTSR-Historic Wholesale'!H79 -> 0 | I80: 0 | J80: 0 | L80: ='13. RTSR-Historic Wholesale'!L79 -> 0 | M80: 0 | N80: 0 | P80: 0
B81: May | D81: ='13. RTSR-Historic Wholesale'!D80 -> 0 | E81: 0 | F81: 0 | H81: ='13. RTSR-Historic Wholesale'!H80 -> 0 | I81: 0 | J81: 0 | L81: ='13. RTSR-Historic Wholesale'!L80 -> 0 | M81: 0 | N81: 0 | P81: 0
B82: June | D82: ='13. RTSR-Historic Wholesale'!D81 -> 0 | E82: 0 | F82: 0 | H82: ='13. RTSR-Historic Wholesale'!H81 -> 0 | I82: 0 | J82: 0 | L82: ='13. RTSR-Historic Wholesale'!L81 -> 0 | M82: 0 | N82: 0 | P82: 0
B83: July | D83: ='13. RTSR-Historic Wholesale'!D82 -> 0 | E83: 0 | F83: 0 | H83: ='13. RTSR-Historic Wholesale'!H82 -> 0 | I83: 0 | J83: 0 | L83: ='13. RTSR-Historic Wholesale'!L82 -> 0 | M83: 0 | N83: 0 | P83: 0
B84: August | D84: ='13. RTSR-Historic Wholesale'!D83 -> 0 | E84: 0 | F84: 0 | H84: ='13. RTSR-Historic Wholesale'!H83 -> 0 | I84: 0 | J84: 0 | L84: ='13. RTSR-Historic Wholesale'!L83 -> 0 | M84: 0 | N84: 0 | P84: 0
B85: September | D85: ='13. RTSR-Historic Wholesale'!D84 -> 0 | E85: 0 | F85: 0 | H85: ='13. RTSR-Historic Wholesale'!H84 -> 0 | I85: 0 | J85: 0 | L85: ='13. RTSR-Historic Wholesale'!L84 -> 0 | M85: 0 | N85: 0 | P85: 0
B86: October | D86: ='13. RTSR-Historic Wholesale'!D85 -> 0 | E86: 0 | F86: 0 | H86: ='13. RTSR-Historic Wholesale'!H85 -> 0 | I86: 0 | J86: 0 | L86: ='13. RTSR-Historic Wholesale'!L85 -> 0 | M86: 0 | N86: 0 | P86: 0
B87: November | D87: ='13. RTSR-Historic Wholesale'!D86 -> 0 | E87: 0 | F87: 0 | H87: ='13. RTSR-Historic Wholesale'!H86 -> 0 | I87: 0 | J87: 0 | L87: ='13. RTSR-Historic Wholesale'!L86 -> 0 | M87: 0 | N87: 0 | P87: 0
B88: December | D88: ='13. RTSR-Historic Wholesale'!D87 -> 0 | E88: 0 | F88: 0 | H88: ='13. RTSR-Historic Wholesale'!H87 -> 0 | I88: 0 | J88: 0 | L88: ='13. RTSR-Historic Wholesale'!L87 -> 0 | M88: 0 | N88: 0 | P88: 0
L89: ='13. RTSR-Historic Wholesale'!L88 -> 0
B90: Total | D90: =SUM(D77:D88) -> 0 | E90: =IF(D90<>0,F90/D90,0) -> 0 | F90: =SUM(F77:F88) -> 0 | H90: =SUM(H77:H88) -> 0 | I90: =IF(H90<>0,J90/H90,0) -> 0 | J90: =SUM(J77:J88) -> 0 | L90: =SUM(L77:L88) -> 0 | M90: =IF(L90<>0,N90/L90,0) -> 0 | N90: =SUM(N77:N88) -> 0 | P90: =SUM(P77:P88) -> 0
B92: Total | D92: Network | H92: Line Connection | L92: Transformation Connection | P92: Total Line
B94: Month | D94: Units Billed | E94: Rate | F94: Amount | H94: Units Billed | I94: Rate | J94: Amount | L94: Units Billed | M94: Rate | N94: Amount | P94: Amount
B96: January | D96: =D20+D39+D58+D77 -> 1262975.723 | E96: =IF(D96<>0,F96/D96,0) -> 3.545430674 | F96: =F20+F39+F58+F77 -> 4477792.87 | H96: =H20+H39+H58+H77 -> 1353519.083 | I96: =IF(H96<>0,J96/H96,0) -> 0.9239513928 | J96: =J20+J39+J58+J77 -> 1250585.842 | L96: =L20+L39+L58+L77 -> 526670.0832 | M96: =IF(L96<>0,N96/L96,0) -> 2.119085522 | N96: =N20+N39+N58+N77 -> 1116058.948 | P96: =J96+N96 -> 2366644.79
B97: February | D97: =D21+D40+D59+D78 -> 1264437.076 | E97: 3.540746181 | F97: =F21+F40+F59+F78 -> 4477050.75 | H97: =H21+H40+H59+H78 -> 1339708.573 | I97: 0.9218539336 | J97: =J21+J40+J59+J78 -> 1235015.617 | L97: =L21+L40+L59+L78 -> 546185.5726 | M97: 2.1121748 | N97: =N21+N40+N59+N78 -> 1153639.403 | P97: 2388655.02
B98: March | D98: 1213991.243 | E98: 3.540189539 | F98: 4297759.1 | H98: 1331609.235 | I98: 0.9222024667 | J98: 1228013.321 | L98: 538080.2353 | M98: 2.112987402 | N98: 1136956.759 | P98: 2364970.08
B99: April | D99: 1139995.365 | E99: 3.545172371 | F99: 4041480.07 | H99: 1294449.002 | I99: 0.9247856155 | J99: 1197087.817 | L99: 492727.3009 | M99: 2.121404796 | N99: 1045274.059 | P99: 2242361.876
B100: May | D100: 1300378.666 | E100: 3.545492494 | F100: 4610482.8 | H100: 1386738.658 | I100: 0.9239592197 | J100: 1281289.968 | L100: 515508.6577 | M100: 2.108832598 | N100: 1087121.462 | P100: 2368411.43
B101: June | D101: 1653276.159 | E101: 3.548584512 | F101: 5866790.17 | H101: 1720511.491 | I101: 0.9245927306 | J101: 1590772.418 | L101: 643627.4909 | M101: 2.115872615 | N101: 1361833.782 | P101: 2952606.2
B102: July | D102: 1641304.225 | E102: 3.54284739 | F102: 5814890.39 | H102: 1745999.229 | I102: 0.9228245659 | J102: 1611250.981 | L102: 693283.2293 | M102: 2.114148082 | N102: 1465703.409 | P102: 3076954.39
B103: August | D103: 1567662.724 | E103: 3.542093918 | F103: 5552808.6 | H103: 1640802.712 | I103: 0.9220698375 | J103: 1512934.69 | L103: 634911.7117 | M103: 2.101806213 | N103: 1334461.38 | P103: 2847396.07
B104: September | D104: 1716179.982 | E104: 3.546896615 | F104: 6087112.97 | H104: 1832969.735 | I104: 0.9245516259 | J104: 1694675.149 | L104: 699348.735 | M104: 2.119892176 | N104: 1482543.911 | P104: 3177219.06
B105: October | D105: 1197736.96 | E105: 3.539797351 | F105: 4239746.12 | H105: 1311775.007 | I105: 0.9223887435 | J105: 1209966.5 | L105: 522498.0065 | M105: 2.111242772 | N105: 1103120.14 | P105: 2313086.64
B106: November | D106: 763088.2756 | E106: 3.495222623 | F106: 2667163.404 | H106: 1467539.771 | I106: 0.924290431 | J106: 1356432.968 | L106: 702767.8454 | M106: 2.162831408 | N106: 1519968.369 | P106: 2876401.336
B107: December | D107: 1823393.407 | E107: 3.558057445 | F107: 6487738.486 | H107: 1304277.598 | I107: 0.9187249968 | J107: 1198272.432 | L107: 383003.5238 | M107: 1.988537845 | N107: 761617.0017 | P107: 1959889.434
B109: Total | D109: =SUM(D96:D107) -> 16544419.81 | E109: =IF(D109<>0,F109/D109,0) -> 3.543237926 | F109: =SUM(F96:F107) -> 58620815.73 | H109: =SUM(H96:H107) -> 17729900.09 | I109: =IF(H109<>0,J109/H109,0) -> 0.9230902383 | J109: =SUM(J96:J107) -> 16366297.7 | L109: =SUM(L96:L107) -> 6898612.392 | M109: =IF(L109<>0,N109/L109,0) -> 2.111772309 | N109: =SUM(N96:N107) -> 14568298.62 | P109: =SUM(P96:P107) -> 30934596.33
N111: Low Voltage Switchgear Credit (if applicable) | P111: ='12. RTSR-UTRs & Sub-Tx'!J68 -> 0
N113: Total including deduction for Low Voltage Switchgear Credit | P113: =P109+P111 -> 30934596.33

Sheet 16. RTSR-Rates to Forecast
A1: Back to Index
B2: =+'1. Information Sheet'!B2 -> INCENTIVE REGULATION MODEL FOR 2019 FILERS
B13: The purpose of this table is to re-align the current RTS Network Rates to recover current wholesale network costs.
B15: Rate Class | C15: Rate Description | D15: Unit | E15: Current RTSR-Network | F15: Loss Adjusted Billed kWh | G15: Billed kW | H15: Billed Amount | I15: Billed Amount % | J15: Current Wholesale Billing | K15: Adjusted RTSR Network
A17: R_TN | B17: ='4. Billing Det. for Def-Var'!B17 -> RESIDENTIAL SERVICE CLASSIFICATION | C17: =VLOOKUP(A17,RTSR,3,FALSE) -> Retail Transmission Rate – Network Service Rate | D17: =VLOOKUP(A17,RTSR,4,FALSE) -> $/kWh | E17: =VLOOKUP(A17,RATES,4,FALSE) -> 0.0075 | F17: =VLOOKUP(A17,RTSR,9,FALSE) -> 2638615406 | G17: =VLOOKUP(A17,RTSR,7,FALSE) -> 0 | H17: =IF(ISERROR(E17*F17), 0, ROUND(E17*F17, 2)) -> 19789615.55 | I17: =H17/SUM(H$17:H$24) -> 0.3298919222 | J17: =I17*total_wholesale_TN -> 19338533.58 | K17: =IF(ISERROR(J17/F17), 0, J17/F17) -> 0.007329045959
A18: GSL_TN | B18: ='4. Billing Det. for Def-Var'!B18 -> GENERAL SERVICE LESS THAN 50 kW SERVICE CLASSIFICATION | C18: Retail Transmission Rate – Network Service Rate | D18: $/kWh | E18: 0.0067 | F18: 1043088282 | G18: 0 | H18: =IF(ISERROR(E18*F18), 0, ROUND(E18*F18, 2)) -> 6988691.49 | I18: =H18/SUM(H$17:H$24) -> 0.1165011449 | J18: 6829392.149 | K18: =IF(ISERROR(J18/F18), 0, J18/F18) -> 0.006547281056
A19: GSG_TN | B19: GENERAL SERVICE GREATER THAN 50 kW SERVICE CLASSIFICATION | C19: Retail Transmission Rate – Network Service Rate | D19: $/kW | E19: 2.6739 | F19: 2543436223 | G19: 6379894.123 | H19: =IF(ISERROR(E19*G19), 0, ROUND(E19*G19, 2)) -> 17059198.89 | I19: 0.2843760102 | J19: =I19*total_wholesale_TN -> 16670353.69 | K19: =IF(ISERROR(J19/G19), 0, J19/G19) -> 2.612951464
A20: GSGI_TN | B20: ='4. Billing Det. for Def-Var'!B19 -> GENERAL SERVICE 50 to 4,999 kW SERVICE CLASSIFICATION | C20: Retail Transmission Rate – Network Service Rate – Interval Metered | D20: $/kW | E20: 2.803 | F20: 2194370879 | G20: 5504307.026 | H20: =IF(ISERROR(E20*G20), 0, ROUND(E20*G20, 2)) -> 15428572.59 | I20: 0.2571935496 | J20: 15076895.68 | K20: =IF(ISERROR(J20/G20), 0, J20/G20) -> 2.739108775
A21: LU_TN | B21: ='4. Billing Det. for Def-Var'!B20 -> LARGE USE SERVICE CLASSIFICATION | C21: Retail Transmission Rate – Network Service Rate | D21: $/kW | E21: 3.2305 | F21: 52537536.99 | G21: 78982.8 | H21: =IF(ISERROR(E21*G21), 0, ROUND(E21*G21, 2)) -> 255153.94 | I21: 0.004253403686 | J21: 249337.9937 | K21: =IF(ISERROR(J21/G21), 0, J21/G21) -> 3.156864453
A22: USL_TN | B22: ='4. Billing Det. for Def-Var'!B21 -> UNMETERED SCATTERED LOAD SERVICE CLASSIFICATION | C22: Retail Transmission Rate – Network Service Rate | D22: $/kWh | E22: 0.0063 | F22: 14122759.7 | G22: 0 | H22: =IF(ISERROR(E22*F22), 0, ROUND(E22*F22, 2)) -> 88973.39 | I22: 0.001483182055 | J22: 86945.34191 | K22: 0.006156398876
A23: SEN_TN | B23: ='4. Billing Det. for Def-Var'!B23 -> SENTINEL LIGHTING SERVICE CLASSIFICATION | C23: Retail Transmission Rate – Network Service Rate | D23: $/kW | E23: 2.0778 | F23: 308096.5233 | G23: 779.5 | H23: =IF(ISERROR(E23*G23), 0, ROUND(E23*G23, 2)) -> 1619.65 | I23: 2.699948619e-05 | J23: 1582.731905 | K23: =IF(ISERROR(J23/G23), 0, J23/G23) -> 2.030445035
A24: SL_TN | B24: ='4. Billing Det. for Def-Var'!B24 -> STREET LIGHTING SERVICE CLASSIFICATION | C24: Retail Transmission Rate – Network Service Rate | D24: $/kW | E24: 2.6888 | F24: 52178251.91 | G24: 139970.66 | H24: =IF(ISERROR(E24*G24), 0, ROUND(E24*G24, 2)) -> 376353.11 | I24: 0.006273787915 | J24: 367774.5653 | K24: 2.627511832
B27: The purpose of this table is to re-align the current RTS Connection Rates to recover current wholesale connection costs.
B28: Rate Class | C28: Rate Description | D28: Unit | E28: Current RTSR-Connection | F28: Loss Adjusted Billed kWh | G28: Billed kW | H28: Billed Amount | I28: Billed Amount % | J28: Current Wholesale Billing | K28: Adjusted RTSR-Connection
A30: R_TC | B30: =B17 -> RESIDENTIAL SERVICE CLASSIFICATION | C30: =VLOOKUP(A30,RTSR,3,FALSE) -> Retail Transmission Rate – Line and Transformation Connection Service Rate | D30: =VLOOKUP(A30,RTSR,4,FALSE) -> $/kWh | E30: =VLOOKUP(A30,RATES,4,FALSE) -> 0.004 | F30: =VLOOKUP(A30,RTSR,9,FALSE) -> 2638615406 | G30: =VLOOKUP(A30,RTSR,7,FALSE) -> 0 | H30: =IF(ISERROR(E30*F30), 0, ROUND(E30*F30, 2)) -> 10554461.63 | I30: =H30/SUM(H$30:H$37) -> 0.3391063965 | J30: =I30*total_wholesale_LinePlus -> 10490119.49 | K30: =IF(ISERROR(J30/F30), 0, J30/F30) -> 0.003975615188
A31: GSL_TC | B31: =B18 -> GENERAL SERVICE LESS THAN 50 kW SERVICE CLASSIFICATION | C31: Retail Transmission Rate – Line and Transformation Connection Service Rate | D31: $/kWh | E31: 0.0035 | F31: 1043088282 | G31: 0 | H31: =IF(ISERROR(E31*F31), 0, ROUND(E31*F31, 2)) -> 3650808.99 | I31: =H31/SUM(H$30:H$37) -> 0.117297568 | J31: 3628552.916 | K31: =IF(ISERROR(J31/F31), 0, J31/F31) -> 0.003478663291
A32: GSG_TC | B32: GENERAL SERVICE GREATER THAN 50 kW SERVICE CLASSIFICATION | C32: Retail Transmission Rate – Line and Transformation Connection Service Rate | D32: $/kW | E32: 1.342 | F32: 2543436223 | G32: 6379894.123 | H32: =IF(ISERROR(E32*G32), 0, ROUND(E32*G32, 2)) -> 8561817.91 | I32: 0.2750843501 | J32: 8509623.327 | K32: =IF(ISERROR(J32/G32), 0, J32/G32) -> 1.333818895
A33: GSGI_TC | B33: GENERAL SERVICE 50 to 4,999 kW SERVICE CLASSIFICATION | C33: Retail Transmission Rate – Line and Transformation Connection Service Rate – Interval Metered | D33: $/kW | E33: 1.452 | F33: 2194370879 | G33: 5504307.026 | H33: =IF(ISERROR(E33*G33), 0, ROUND(E33*G33, 2)) -> 7992253.8 | I33: 0.2567847116 | J33: 7943531.396 | K33: =IF(ISERROR(J33/G33), 0, J33/G33) -> 1.443148312
A34: LU_TC | B34: LARGE USE SERVICE CLASSIFICATION | C34: Retail Transmission Rate – Line and Transformation Connection Service Rate | D34: $/kW | E34: 1.4016 | F34: 52537536.99 | G34: 78982.8 | H34: =IF(ISERROR(E34*G34), 0, ROUND(E34*G34, 2)) -> 110702.29 | I34: 0.003556775888 | J34: 110027.4263 | K34: =IF(ISERROR(J34/G34), 0, J34/G34) -> 1.39305553
A35: USL_TC | B35: UNMETERED SCATTERED LOAD SERVICE CLASSIFICATION | C35: Retail Transmission Rate – Line and Transformation Connection Service Rate | D35: $/kWh | E35: 0.0037 | F35: 14122759.7 | G35: 0 | H35: =IF(ISERROR(E35*F35), 0, ROUND(E35*F35, 2)) -> 52254.21 | I35: 0.001678885904 | J35: 51935.65771 | K35: 0.003677443986
A36: SEN_TC | B36: SENTINEL LIGHTING SERVICE CLASSIFICATION | C36: Retail Transmission Rate – Line and Transformation Connection Service Rate | D36: $/kW | E36: 0.9929 | F36: 308096.5233 | G36: 779.5 | H36: =IF(ISERROR(E36*G36), 0, ROUND(E36*G36, 2)) -> 773.97 | I36: 2.486703603e-05 | J36: 769.2517215 | K36: =IF(ISERROR(J36/G36), 0, J36/G36) -> 0.9868527537
A37: SL_TC | B37: STREET LIGHTING SERVICE CLASSIFICATION | C37: Retail Transmission Rate – Line and Transformation Connection Service Rate | D37: $/kW | E37: 1.4379 | F37: 52178251.91 | G37: 139970.66 | H37: =IF(ISERROR(E37*G37), 0, ROUND(E37*G37, 2)) -> 201263.81 | I37: 0.006466444973 | J37: 200036.8649 | K37: 1.429134255
B40: The purpose of this table is to update the re-aligned RTS Network Rates to recover future wholesale network costs.
B41: Rate Class | C41: Rate Description | D41: Unit | E41: Adjusted RTSR-Network | F41: Loss Adjusted Billed kWh | G41: Billed kW | H41: Billed Amount | I41: Billed Amount % | J41: Current Wholesale Billing | K41: Proposed RTSR-Network
A43: R_TN | B43: =B17 -> RESIDENTIAL SERVICE CLASSIFICATION | C43: =VLOOKUP(A43,RTSR,3,FALSE) -> Retail Transmission Rate – Network Service Rate | D43: =VLOOKUP(A43,RTSR,4,FALSE) -> $/kWh | E43: =K17 -> 0.007329045959 | F43: =VLOOKUP(A43,RTSR,9,FALSE) -> 2638615406 | G43: =VLOOKUP(A43,RTSR,7,FALSE) -> 0 | H43: =IF(ISERROR(E43*F43), 0, ROUND(E43*F43, 2)) -> 19338533.58 | I43: =H43/SUM(H$43:H$50) -> 0.3298919222 | J43: =I43*forecast_wholesale_TN -> 19338533.58 | K43: =IF(ISERROR(J43/F43), 0, J43/F43) -> 0.007329045958
A44: GSL_TN | B44: =B18 -> GENERAL SERVICE LESS THAN 50 kW SERVICE CLASSIFICATION | C44: Retail Transmission Rate – Network Service Rate | D44: $/kWh | E44: =K18 -> 0.006547281056 | F44: 1043088282 | G44: 0 | H44: =IF(ISERROR(E44*F44), 0, ROUND(E44*F44, 2)) -> 6829392.15 | I44: =H44/SUM(H$43:H$50) -> 0.1165011449 | J44: 6829392.15 | K44: =IF(ISERROR(J44/F44), 0, J44/F44) -> 0.006547281057
A45: GSG_TN | B45: GENERAL SERVICE GREATER THAN 50 kW SERVICE CLASSIFICATION | C45: Retail Transmission Rate – Network Service Rate | D45: $/kW | E45: 2.612951464 | F45: 2543436223 | G45: 6379894.123 | H45: =IF(ISERROR(E45*G45), 0, ROUND(E45*G45, 2)) -> 16670353.69 | I45: 0.2843760102 | J45: 16670353.69 | K45: =IF(ISERROR(J45/G45), 0, J45/G45) -> 2.612951464
A46: GSGI_TN | B46: GENERAL SERVICE 50 to 4,999 kW SERVICE CLASSIFICATION | C46: Retail Transmission Rate – Network Service Rate – Interval Metered | D46: $/kW | E46: 2.739108775 | F46: 2194370879 | G46: 5504307.026 | H46: =IF(ISERROR(E46*G46), 0, ROUND(E46*G46, 2)) -> 15076895.68 | I46: 0.2571935496 | J46: 15076895.68 | K46: =IF(ISERROR(J46/G46), 0, J46/G46) -> 2.739108776
A47: LU_TN | B47: LARGE USE SERVICE CLASSIFICATION | C47: Retail Transmission Rate – Network Service Rate | D47: $/kW | E47: 3.156864453 | F47: 52537536.99 | G47: 78982.8 | H47: =IF(ISERROR(E47*G47), 0, ROUND(E47*G47, 2)) -> 249337.99 | I47: 0.004253403623 | J47: 249337.99 | K47: =IF(ISERROR(J47/G47), 0, J47/G47) -> 3.156864406
A48: USL_TN | B48: UNMETERED SCATTERED LOAD SERVICE CLASSIFICATION | C48: Retail Transmission Rate – Network Service Rate | D48: $/kWh | E48: 0.006156398876 | F48: 14122759.7 | G48: 0 | H48: =IF(ISERROR(E48*F48), 0, ROUND(E48*F48, 2)) -> 86945.34 | I48: 0.001483182022 | J48: 86945.34 | K48: 0.00615639874
A49: SEN_TN | B49: SENTINEL LIGHTING SERVICE CLASSIFICATION | C49: Retail Transmission Rate – Network Service Rate | D49: $/kW | E49: 2.030445035 | F49: 308096.5233 | G49: 779.5 | H49: =IF(ISERROR(E49*G49), 0, ROUND(E49*G49, 2)) -> 1582.73 | I49: 2.69994537e-05 | J49: 1582.73 | K49: =IF(ISERROR(J49/G49), 0, J49/G49) -> 2.030442591
A50: SL_TN | B50: STREET LIGHTING SERVICE CLASSIFICATION | C50: Retail Transmission Rate – Network Service Rate | D50: $/kW | E50: 2.627511832 | F50: 52178251.91 | G50: 139970.66 | H50: =IF(ISERROR(E50*G50), 0, ROUND(E50*G50, 2)) -> 367774.57 | I50: 0.006273787995 | J50: 367774.57 | K50: 2.627511866
B53: The purpose of this table is to update the re-aligned RTS Connection Rates to recover future wholesale connection costs.
B54: Rate Class | C54: Rate Description | D54: Unit | E54: Adjusted RTSR-Connection | F54: Loss Adjusted Billed kWh | G54: Billed kW | H54: Billed Amount | I54: Billed Amount % | J54: Current Wholesale Billing | K54: Proposed RTSR-Connection
A56: R_TC | B56: =B17 -> RESIDENTIAL SERVICE CLASSIFICATION | C56: =VLOOKUP(A56,RTSR,3,FALSE) -> Retail Transmission Rate – Line and Transformation Connection Service Rate | D56: =VLOOKUP(A56,RTSR,4,FALSE) -> $/kWh | E56: =K30 -> 0.003975615188 | F56: =VLOOKUP(A56,RTSR,9,FALSE) -> 2638615406 | G56: =VLOOKUP(A56,RTSR,7,FALSE) -> 0 | H56: =IF(ISERROR(E56*F56), 0, ROUND(E56*F56, 2)) -> 10490119.49 | I56: =H56/SUM(H$56:H$63) -> 0.3391063964 | J56: =I56*forecast_wholesale_LNPlus -> 10490119.49 | K56: =IF(ISERROR(J56/F56), 0, J56/F56) -> 0.003975615188
A57: GSL_TC | B57: =B18 -> GENERAL SERVICE LESS THAN 50 kW SERVICE CLASSIFICATION | C57: Retail Transmission Rate – Line and Transformation Connection Service Rate | D57: $/kWh | E57: =K31 -> 0.003478663291 | F57: 1043088282 | G57: 0 | H57: =IF(ISERROR(E57*F57), 0, ROUND(E57*F57, 2)) -> 3628552.92 | I57: =H57/SUM(H$56:H$63) -> 0.1172975681 | J57: 3628552.918 | K57: =IF(ISERROR(J57/F57), 0, J57/F57) -> 0.003478663293
A58: GSG_TC | B58: GENERAL SERVICE GREATER THAN 50 kW SERVICE CLASSIFICATION | C58: Retail Transmission Rate – Line and Transformation Connection Service Rate | D58: $/kW | E58: 1.333818895 | F58: 2543436223 | G58: 6379894.123 | H58: =IF(ISERROR(E58*G58), 0, ROUND(E58*G58, 2)) -> 8509623.33 | I58: 0.2750843501 | J58: 8509623.326 | K58: =IF(ISERROR(J58/G58), 0, J58/G58) -> 1.333818895
A59: GSGI_TC | B59: GENERAL SERVICE 50 to 4,999 kW SERVICE CLASSIFICATION | C59: Retail Transmission Rate – Line and Transformation Connection Service Rate – Interval Metered | D59: $/kW | E59: 1.443148312 | F59: 2194370879 | G59: 5504307.026 | H59: =IF(ISERROR(E59*G59), 0, ROUND(E59*G59, 2)) -> 7943531.4 | I59: 0.2567847116 | J59: 7943531.396 | K59: =IF(ISERROR(J59/G59), 0, J59/G59) -> 1.443148312
A60: LU_TC | B60: LARGE USE SERVICE CLASSIFICATION | C60: Retail Transmission Rate – Line and Transformation Connection Service Rate | D60: $/kW | E60: 1.39305553 | F60: 52537536.99 | G60: 78982.8 | H60: =IF(ISERROR(E60*G60), 0, ROUND(E60*G60, 2)) -> 110027.43 | I60: 0.003556776005 | J60: 110027.43 | K60: =IF(ISERROR(J60/G60), 0, J60/G60) -> 1.393055576
A61: USL_TC | B61: UNMETERED SCATTERED LOAD SERVICE CLASSIFICATION | C61: Retail Transmission Rate – Line and Transformation Connection Service Rate | D61: $/kWh | E61: 0.003677443986 | F61: 14122759.7 | G61: 0 | H61: =IF(ISERROR(E61*F61), 0, ROUND(E61*F61, 2)) -> 51935.66 | I61: 0.001678885977 | J61: 51935.65998 | K61: 0.003677444147
A62: SEN_TC | B62: SENTINEL LIGHTING SERVICE CLASSIFICATION | C62: Retail Transmission Rate – Line and Transformation Connection Service Rate | D62: $/kW | E62: 0.9868527537 | F62: 308096.5233 | G62: 779.5 | H62: =IF(ISERROR(E62*G62), 0, ROUND(E62*G62, 2)) -> 769.25 | I62: 2.486698037e-05 | J62: 769.2499997 | K62: =IF(ISERROR(J62/G62), 0, J62/G62) -> 0.9868505448
A63: SL_TC | B63: STREET LIGHTING SERVICE CLASSIFICATION | C63: Retail Transmission Rate – Line and Transformation Connection Service Rate | D63: $/kW | E63: 1.429134255 | F63: 52178251.91 | G63: 139970.66 | H63: =IF(ISERROR(E63*G63), 0, ROUND(E63*G63, 2)) -> 200036.86 | I63: 0.006466444812 | J63: 200036.8599 | K63: 1.429134219

Sheet 17. Rev2Cost-GDPIPI
A1: Back to Index | AA1: FALSE | AB1: 0 | AE1: NO
C2: =+'1. Information Sheet'!B2 -> INCENTIVE REGULATION MODEL FOR 2019 FILERS | S2: TRUE
C11: If applicable, please enter any adjustments related to the revenue to cost ratio model into columns C and E. The Price Escalator and Stretch Factor have been set at the 2016 values and will be updated by OEB staff at a later date.
C12: Price Escalator | D12: 0.012 | E12: Productivity Factor | F12: 0 | G12: # of Residential Customers (approved in the last CoS) | H12: 331460.9167 | I12: Effective Year of Residential Rate Design Transition (yyyy) | J12: 2017
C13: Choose Stretch Factor Group | D13: III | E13: Price Cap Index | F13: =D12-F12-D14 -> 0.009 | G13: Billed kWh for Residential Class (approved in the last CoS) | H13: 2689802037 | I13: OEB-approved # of Transition Years | J13: 4
C14: Associated Stretch Factor Value | D14: =IF(D13="I", 0%, IF(D13="II", 0.15%, IF(D13="III", 0.3%, IF(D13="IV", 0.45%, 0.6%)))) -> 0.003 | G14: Rate Design Transition Years Left | H14: 2
C15: Rate Class | D15: Current MFC | E15: MFC Adjustment from R/C Model | F15: Current Volumetric Charge | G15: DVR Adjustment from R/C Model | H15: Price Cap Index to be Applied to MFC and DVR | I15: Proposed MFC | J15: Proposed Volumetric Charge
A17: R_F | B17: R_V | C17: ='4. Billing Det. for Def-Var'!B17 -> RESIDENTIAL SERVICE CLASSIFICATION | D17: =IFERROR(VLOOKUP(A17,RATES,4,FALSE),"") -> 21.63 | F17: =IFERROR(VLOOKUP(B17,RATES,4,FALSE),"") -> 0.0088 | H17: =F13 -> 0.009 | I17: =IFERROR(ROUND(J28*(1+F13),2),0) -> 24.83 | J17: =IFERROR(ROUND(J29*(1+F13),4),0) -> 0.0044
A18: GSL_F | B18: GSL_V | C18: ='4. Billing Det. for Def-Var'!B18 -> GENERAL SERVICE LESS THAN 50 kW SERVICE CLASSIFICATION | D18: 29 | F18: 0.0185 | H18: =F13 -> 0.009 | I18: =IFERROR(ROUND((D18+E18)*(1+F$13),2),0) -> 29.26 | J18: =IFERROR((F18+G18)*(1+F$13),0) -> 0.0186665
A19: GSG_F | B19: GSG_V | C19: ='4. Billing Det. for Def-Var'!B19 -> GENERAL SERVICE 50 to 4,999 kW SERVICE CLASSIFICATION | D19: 142.24 | F19: 4.2415 | H19: =F13 -> 0.009 | I19: 143.52 | J19: =IFERROR((F19+G19)*(1+F$13),0) -> 4.2796735
A20: LU_F | B20: LU_V | C20: ='4. Billing Det. for Def-Var'!B20 -> LARGE USE SERVICE CLASSIFICATION | D20: 6128.34 | F20: 2.2623 | H20: =F13 -> 0.009 | I20: 6183.5 | J20: =IFERROR((F20+G20)*(1+F$13),0) -> 2.2826607
A21: USL_F | B21: USL_V | C21: ='4. Billing Det. for Def-Var'!B21 -> UNMETERED SCATTERED LOAD SERVICE CLASSIFICATION | D21: 8.68 | F21: 0.0197 | H21: =F13 -> 0.009 | I21: 8.76 | J21: =IFERROR((F21+G21)*(1+F$13),0) -> 0.0198773
B22: SB_V | C22: ='4. Billing Det. for Def-Var'!B22 -> STANDBY POWER SERVICE CLASSIFICATION | F22: 2.8334 | H22: =F13 -> 0.009 | I22: 0 | J22: =IFERROR((F22+G22)*(1+F$13),0) -> 2.8589006
A23: SEN_F | B23: SEN_V | C23: ='4. Billing Det. for Def-Var'!B23 -> SENTINEL LIGHTING SERVICE CLASSIFICATION | D23: 4.23 | F23: 9.9582 | H23: =F13 -> 0.009 | I23: 4.27 | J23: 10.0478238
A24: SL_F | B24: SL_V | C24: ='4. Billing Det. for Def-Var'!B24 -> STREET LIGHTING SERVICE CLASSIFICATION | D24: 1.2 | F24: 6.3791 | H24: =F13 -> 0.009 | I24: 1.21 | J24: 6.4365119
A25: MF | C25: microFIT SERVICE CLASSIFICATION | I25: 5.4 | J25: 0
C27: Rate Design Transition | E27: Revenue from Rates | F27: Current F/V Split | G27: Decoupling MFC Split | H27: Incremental Fixed Charge ($/month/year) | I27: New F/V Split | J27: Adjusted Rates1 | K27: Revenue at New F/V Split
C28: Current Residential Fixed Rate (inclusive of R/C adj.) | D28: =D17+E17 -> 21.63 | E28: =D28*COS_RES_CUSTOMERS*12 -> 86033995.53 | F28: =IF(ISERROR(E28/E30), 0, E28/E30) -> 0.7842357322 | G28: =IF(ISERROR((1-F28)/YRS_LEFT), 0, (1-F28)/YRS_LEFT) -> 0.1078821339 | H28: =IF(ISERROR(ROUND(G28*E30/COS_RES_CUSTOMERS/12, 2)), 0, ROUND(G28*E30/COS_RES_CUSTOMERS/12, 2)) -> 2.98 | I28: =G28+F28 -> 0.8921178661 | J28: =IF(ISERROR(ROUND(I28*E30/COS_RES_CUSTOMERS/12, 2)), 0, ROUND(I28*E30/COS_RES_CUSTOMERS/12, 2)) -> 24.61 | K28: =ROUND(J28*COS_RES_CUSTOMERS*12, 2) -> 97887037.91
C29: Current Residential Variable Rate (inclusive of R/C adj.) | D29: =F17+G17 -> 0.0088 | E29: =D29*COS_RES_KWH -> 23670257.92 | F29: =IF(ISERROR(E29/E30), 0, E29/E30) -> 0.2157642678 | I29: =1-I28 -> 0.1078821339 | J29: =IF(ISERROR(ROUND(I29*E30/COS_RES_KWH, 4)), 0, ROUND(I29*E30/COS_RES_KWH, 4)) -> 0.0044 | K29: =ROUND(J29*COS_RES_KWH, 2) -> 11835128.96
E30: =SUM(E28+E29) -> 109704253.5 | K30: =SUM(K28+K29) -> 109722166.9
C33: =IF((J28-D28)>=4, "The Rate Design Transition has calculated a monthly fixed charge greater than or equal to $4. Please refer to Section 3.2.3 of the Chapter 3 Filing Requirements for mitigation instructions.", "") -> 
C35: 1 These are the residential rates to which the Price Cap Index will be applied to.

Sheet 18. Regulatory Charges
A1: Back to Index
B2: =+'1. Information Sheet'!B2 -> INCENTIVE REGULATION MODEL FOR 2019 FILERS
C12: Update the following rates if an OEB Decision has been issued at the time of completing this application
E13: Proposed
C14: Wholesale Market Service Rate (WMS) - not including CBR | D14: $/kWh | E14: 0.0032
C15: Capacity Based Recovery (CBR) - Applicable for Class B Customers | D15: $/kWh | E15: 0.0004
C16: Rural or Remote Electricity Rate Protection Charge (RRRP) | D16: $/kWh | E16: 0.0003
C17: Standard Supply Service - Administrative Charge (if applicable) | D17: $ | E17: 0.25
C20: Time-of-Use RPP Prices
C21: As of | D21: 2018-05-01
C22: Off-Peak | D22: $/kWh | E22: 0.065
C23: Mid-Peak | D23: $/kWh | E23: 0.094
C24: On-Peak | D24: $/kWh | E24: 0.132

Sheet 19. Additional Rates
A1: Back to Index | AA1: 3
A2: =+'1. Information Sheet'!B2 -> INCENTIVE REGULATION MODEL FOR 2019 FILERS
A11: In the Green Cells below, enter any proposed rate riders that are not already included in this model (e.g.: proposed ICM rate riders). Please note that existing SMIRR and SM Entity Charge do not need to be included below. In column A, the rate rider descriptions must begin with "Rate Rider for". In column B, choose the associated unit from the drop-down menu. In column C, enter the rate. All rate riders with a "$" unit should be rounded to 2 decimal places and all others rounded to 4 decimal places. In column E, enter the expiry date (e.g. April 30, 2018) or description of the expiry date in text (e.g. the effective date of the next cost of service-based rate order). In column G, choose the sub-total as applicable in the bill impact calculation from the drop-down menu
A13: RESIDENTIAL SERVICE CLASSIFICATION
A14: Rate Rider for Incremental Capital Module (ICM) | B14: $ | C14: 0.2 | D14: - effective until | E14: next COS | G14: A
A15: Rate Rider for Recovery of Lost Revenue Adjustment Mechanism Variance Account (2014-15 balances) | B15: $/kWh | C15: ='8. Calculation of Def-Var RR'!L17 -> 0.0003 | D15: - effective until | E15: 2019-12-31 | G15: A
A16: Rate Rider for Disposition of Capacity Based Recovery Account (2017) - Applicable only for Class B Customers | B16: $/kWh | C16: ='7. CBR Calculation'!O22 -> -1.307799643e-05 | D16: - effective until | E16: 2019-12-31 | G16: B
D17: - effective until
D18: - effective until
D19: - effective until
D20: - effective until
D21: - effective until
D22: - effective until
D23: - effective until
A26: GS<50 SERVICE CLASSIFICATION
A27: Rate Rider for Incremental Capital Module (ICM) | B27: $ | C27: 0.21 | D27: - effective until | E27: next COS | G27: A
A28: Rate Rider for Incremental Capital Module (ICM) | B28: $/kWh | C28: 0.0001 | D28: - effective until | E28: next COS | G28: A
A29: Rate Rider for Recovery of Lost Revenue Adjustment Mechanism Variance Account (2014-15 balances) | B29: $/kWh | C29: ='8. Calculation of Def-Var RR'!L18 -> 0.0006 | D29: - effective until | E29: 2019-12-31 | G29: A
A30: Rate Rider for Disposition of Capacity Based Recovery Account (2017) - Applicable only for Class B Customers | B30: $/kWh | C30: ='7. CBR Calculation'!O23 -> -1.307799643e-05 | D30: - effective until | E30: 2019-12-31 | G30: B
D31: - effective until
D32: - effective until
D33: - effective until
D34: - effective until
D35: - effective until
A38: GS>50 SERVICE CLASSIFICATION
A39: Rate Rider for Incremental Capital Module (ICM) | B39: $ | C39: 1.05 | D39: - effective until | E39: next COS | G39: A
A40: Rate Rider for Incremental Capital Module (ICM) | B40: $/kW | C40: 0.0314 | D40: - effective until | E40: next COS | G40: A
A41: Rate Rider for Recovery of Lost Revenue Adjustment Mechanism Variance Account (2014-15 balances) | B41: $/kW | C41: ='8. Calculation of Def-Var RR'!L19 -> 0.0886 | D41: - effective until | E41: 2019-12-31 | G41: A
A42: Rate Rider for Disposition of Capacity Based Recovery Account (2017) - Applicable only for Class B Customers | B42: $/kW | C42: ='7. CBR Calculation'!O24 -> -0.004637868787 | D42: - effective until | E42: 2019-12-31 | G42: B
D43: - effective until
D44: - effective until
D45: - effective until
D46: - effective until
D47: - effective until
A50: LARGE USER SERVICE CLASSIFICATION
A51: Rate Rider for Incremental Capital Module (ICM) | B51: $ | C51: 45.37 | D51: - effective until | E51: next COS | G51: A
A52: Rate Rider for Incremental Capital Module (ICM) | B52: $/kW | C52: 0.0167 | D52: - effective until | E52: next COS | G52: A
A53: Rate Rider for Recovery of Lost Revenue Adjustment Mechanism Variance Account (2014-15 balances) | B53: $/kW | C53: ='8. Calculation of Def-Var RR'!L20 -> -0.0705 | D53: - effective until | E53: 2019-12-31 | G53: A
A54: Rate Rider for Disposition of Capacity Based Recovery Account (2017) - Applicable only for Class B Customers | B54: $/kW | C54: ='7. CBR Calculation'!O25 -> -1.307799643e-05 | D54: - effective until | E54: 2019-12-31 | G54: B
D55: - effective until
D56: - effective until
D57: - effective until
D58: - effective until
D59: - effective until
A62: UNMETERED SCATTERED LOAD SERVICE CLASSIFICATION
A63: Rate Rider for Incremental Capital Module (ICM) | B63: $ | C63: 0.06 | D63: - effective until | E63: next COS | G63: A
A64: Rate Rider for Incremental Capital Module (ICM) | B64: $/kWh | C64: 0.0001 | D64: - effective until | E64: next COS | G64: A
A65: Rate Rider for Recovery of Lost Revenue Adjustment Mechanism Variance Account (2014-15 balances) | B65: $/kWh | C65: ='8. Calculation of Def-Var RR'!L21 -> -0.0003 | D65: - effective until | E65: 2019-12-31 | G65: A
A66: Rate Rider for Disposition of Capacity Based Recovery Account (2017) - Applicable only for Class B Customers | B66: $/kWh | C66: ='7. CBR Calculation'!O26 -> -1.307799643e-05 | D66: - effective until | E66: 2019-12-31 | G66: B
D67: - effective until
D68: - effective until
D69: - effective until
D70: - effective until
D71: - effective until
A74: SENTINEL LIGHTING SERVICE CLASSIFICATION
A75: Rate Rider for Incremental Capital Module (ICM) | B75: $ | C75: 0.03 | D75: - effective until | E75: next COS | G75: A
A76: Rate Rider for Incremental Capital Module (ICM) | B76: $/kW | C76: 0.0737 | D76: - effective until | E76: next COS | G76: A
A77: Rate Rider for Recovery of Lost Revenue Adjustment Mechanism Variance Account (2014-15 balances) | B77: $/kW | C77: ='8. Calculation of Def-Var RR'!L23 -> -0.2176 | D77: - effective until | E77: 2019-12-31 | G77: A
A78: Rate Rider for Disposition of Capacity Based Recovery Account (2017) - Applicable only for Class B Customers | B78: $/kW | C78: ='7. CBR Calculation'!O28 -> -0.004985113127 | D78: - effective until | E78: 2019-12-31 | G78: B
D79: - effective until
D80: - effective until
D81: - effective until
D82: - effective until
D83: - effective until
A86: STREET LIGHTING SERVICE CLASSIFICATION
A87: Rate Rider for Incremental Capital Module (ICM) | B87: $ | C87: 0.01 | D87: - effective until | E87: next COS | G87: A
A88: Rate Rider for Incremental Capital Module (ICM) | B88: $/kW | C88: 0.0472 | D88: - effective until | E88: next COS | G88: A
A89: Rate Rider for Recovery of Lost Revenue Adjustment Mechanism Variance Account (2014-15 balances) | B89: $/kW | C89: ='8. Calculation of Def-Var RR'!L24 -> 1.2612 | D89: - effective until | E89: 2019-12-31 | G89: A
A90: Rate Rider for Disposition of Capacity Based Recovery Account (2017) - Applicable only for Class B Customers | B90: $/kW | C90: ='7. CBR Calculation'!O29 -> -0.004701721003 | D90: - effective until | E90: 2019-12-31 | G90: B
D91: - effective until
D92: - effective until
D93: - effective until
D94: - effective until
D95: - effective until
A98: MICROFIT SERVICE CLASSIFICATION
D99: - effective until
D100: - effective until
D101: - effective until
D102: - effective until
D103: - effective until
D104: - effective until
D105: - effective until
D106: - effective until
D107: - effective until
D108: - effective until

Sheet 20. Final Tariff Schedule
A1: Back to Index
B2: =+'1. Information Sheet'!B2 -> INCENTIVE REGULATION MODEL FOR 2019 FILERS
B11: ='Model Specs'!C4 -> Alectra - PowerStream
B12: TARIFF OF RATES AND CHARGES
B13: Effective Date January 1, 2019
B14: Implementation Date January 1, 2019
B16: This schedule supersedes and replaces all previously
B17: approved schedules of Rates, Charges and Loss Factors
C18: EB-2018-0016
B21: RESIDENTIAL SERVICE CLASSIFICATION
B22: This classification refers to an account taking electricity at 750 volts or less where the electricity is used exclusively in a separately metered living accommodation. Customers shall be residing in single-dwelling units that consist of a detached house or one unit of a semi-detached, duplex, triplex or quadruplex house, with a residential zoning. Separately metered dwellings within a town house complex or apartment building also qualify as residential customers. Multi-unit residential establishments such as apartment buildings supplied through one service (bulk metered) shall be classified as general service. Class B consumers are defined in accordance with O. Reg. 429/04. Further servicing details are available in the distributor’s Conditions of Service.
B24: APPLICATION
B26: The application of these rates and charges shall be in accordance with the Licence of the Distributor and any Code or Order of the Ontario Energy Board, and amendments thereto as approved by the Ontario Energy Board, which may be applicable to the administration of this schedule.
B28: No rates and charges for the distribution of electricity and charges to meet the costs of any work or service done or furnished for the purpose of the distribution of electricity shall be made except as permitted by this schedule, unless required by the Distributor’s Licence or a Code or Order of the Ontario Energy Board, and amendments thereto as approved by the Ontario Energy Board, or as specified herein.
B30: Unless specifically noted, this schedule does not contain any charges for the electricity commodity, be it under the Regulated Price Plan, a contract with a retailer or the wholesale market price, as applicable. In addition, the charges in the MONTHLY RATES AND CHARGES – Regulatory Component of this schedule do not apply to a customer that is an embedded wholesale market participant.
B32: It should be noted that this schedule does not list any charges, assessments or credits that are required by law to be invoiced by a distributor and that are not subject to Ontario Energy Board approval, such as the Debt Retirement Charge, the Global Adjustment and the HST.
B34: MONTHLY RATES AND CHARGES – Delivery Component
B36: =RATES!C14 -> Service Charge | C36: =RATES!G14 -> $ | D36: =RATES!I14 -> 24.83
B37: =RATES!C30 -> Smart Metering Entity Charge - effective until December 31, 2022 | C37: =RATES!G30 -> $ | D37: =RATES!I30 -> 0.57
B38: =RATES!C33 -> Rate Rider for Recovery of Incremental Capital Module (2018) - in effect until the effective date of the next cost of service based rate order | C38: =RATES!G33 -> $ | D38: =RATES!I33 -> 0.11
B39: =RATES!C24 -> Rate Rider for Recovery of Incremental Capital Module (2019) - in effect until the effective date of the next cost of service based rate order | C39: =RATES!G24 -> $ | D39: =RATES!I24 -> 0.2
B40: =RATES!C15 -> Distribution Volumetric Rate | C40: =RATES!G15 -> $/kWh | D40: =RATES!I15 -> 0.0044
B41: =RATES!C16 -> Low Voltage Service Rate | C41: =RATES!G16 -> $/kWh | D41: =RATES!I16 -> 0.0005
B42: =RATES!C29 -> Rate Rider for Disposition of Global Adjustment Account (2018) - effective until April 30, 2019 Applicable only for Non-RPP Customers | C42: =RATES!G29 -> $/kWh | D42: =RATES!I29 -> 0.0004
B43: =RATES!C27 -> Rate Rider for Disposition of Global Adjustment Account (2019) - effective until December 31, 2019 Applicable Only for Non-RPP Customers | C43: =RATES!G27 -> $/kWh | D43: =RATES!I27 -> 0.0018
B44: =RATES!C31 -> Rate Rider for Disposition of Deferral/Variance Accounts (2018) - effective until April 30, 2019 | C44: =RATES!G31 -> $/kWh | D44: =RATES!I31 -> -0.003
B45: =RATES!C26 -> Rate Rider for Disposition of Deferral/Variance Accounts (2019) - effective until December 31, 2019 | C45: =RATES!G26 -> $/kWh | D45: =RATES!I26 -> -0.001
B46: =RATES!C32 -> Rate Rider for Disposition of Capacity Based Recovery Account (2018) - effective until April 30, 2019 Applicable Only for Class B Customers | C46: =RATES!G32 -> $/kWh | D46: =RATES!I32 -> 0.0002
B47: =RATES!C28 -> Rate Rider for Disposition of Capacity Based Recovery Account (2019) - effective until December 31, 2019 Applicable Only for Class B Customers | C47: =RATES!G28 -> $/kWh | D47: =RATES!I28 -> 0
B49: =RATES!C37 -> Retail Transmission Rate - Network Service Rate | C49: =RATES!G37 -> $/kWh | D49: =RATES!I37 -> 0.0073
B50: =RATES!C38 -> Retail Transmission Rate - Line and Transformation Connection Service Rate | C50: =RATES!G38 -> $/kWh | D50: =RATES!I38 -> 0.004
B52: MONTHLY RATES AND CHARGES – Regulatory Component
B54: Wholesale Market Service Rate (WMS) - not including CBR | C54: $/kWh | D54: 0.0032
B55: Capacity Based Recovery (CBR) - Applicable for Class B Customers | C55: $/kWh | D55: 0.0004
B56: Rural or Remote Electricity Rate Protection Charge (RRRP) | C56: $/kWh | D56: 0.0003
B57: Standard Supply Service – Administrative Charge (if applicable) | C57: $ | D57: 0.25
B59: GENERAL SERVICE LESS THAN 50 kW SERVICE CLASSIFICATION
B61: This classification refers to a non-residential account taking electricity at 750 volts or less wheose monthly average peak demand is less than, or is forecast to be less than, 50 kW. Class B consumers are defined in accordance with O. Reg. 429/04. Further servicing details are available in the distributor’s Conditions of Service.
B63: APPLICATION
B65: The application of these rates and charges shall be in accordance with the Licence of the Distributor and any Code or Order of the Ontario Energy Board, and amendments thereto as approved by the Ontario Energy Board, which may be applicable to the administration of this schedule.
B67: No rates and charges for the distribution of electricity and charges to meet the costs of any work or service done or furnished for the purpose of the distribution of electricity shall be made except as permitted by this schedule, unless required by the Distributor’s Licence or a Code or Order of the Ontario Energy Board, and amendments thereto as approved by the Ontario Energy Board, or as specified herein.
B69: Unless specifically noted, this schedule does not contain any charges for the electricity commodity, be it under the Regulated Price Plan, a contract with a retailer or the wholesale market price, as applicable. In addition, the charges in the MONTHLY RATES AND CHARGES – Regulatory Component of this schedule do not apply to a customer that is an embedded wholesale market participant.
B71: It should be noted that this schedule does not list any charges, assessments or credits that are required by law to be invoiced by a distributor and that are not subject to Ontario Energy Board approval, such as the Debt Retirement Charge, the Global Adjustment and the HST.
B73: MONTHLY RATES AND CHARGES – Delivery Component
B75: =RATES!C42 -> Service Charge | C75: =RATES!G42 -> $ | D75: =RATES!I42 -> 29.26
B76: =+RATES!C59 -> Smart Metering Entity Charge - effective until December 31, 2022 | C76: =RATES!G59 -> $ | D76: =RATES!I59 -> 0.57
B77: =RATES!C64 -> Rate Rider for Recovery of Incremental Capital Module (2018) - in effect until the effective date of the next cost of service based rate order | C77: =RATES!G64 -> $ | D77: =RATES!I64 -> 0.12
B78: =RATES!C52 -> Rate Rider for Recovery of Incremental Capital Module (2019) - in effect until the effective date of the next cost of service based rate order | C78: =RATES!G52 -> $ | D78: =RATES!I52 -> 0.21
B79: =RATES!C43 -> Distribution Volumetric Rate | C79: =RATES!G43 -> $/kWh | D79: =RATES!I43 -> 0.0187
B80: =RATES!C44 -> Low Voltage Service Rate | C80: =RATES!G44 -> $/kWh | D80: =RATES!I44 -> 0.0004
B81: =RATES!C58 -> Rate Rider for Disposition of Global Adjustment Account (2018) - effective until April 30, 2019 Applicable only for Non-RPP Customers | C81: =RATES!G58 -> $/kWh | D81: =RATES!I58 -> 0.0004
B82: =RATES!C56 -> Rate Rider for Disposition of Global Adjustment Account (2019) - effective until December 31, 2019 Applicable Only for Non-RPP Customers | C82: =RATES!G56 -> $/kWh | D82: =RATES!I56 -> 0.0018
B83: =RATES!C60 -> Rate Rider for Disposition of Deferral/Variance Accounts (2018) - effective until April 30, 2019 | C83: =RATES!G60 -> $/kWh | D83: =RATES!I60 -> -0.003
B84: =RATES!C55 -> Rate Rider for Disposition of Deferral/Variance Accounts (2019) - effective until December 31, 2019 | C84: =RATES!G55 -> $/kWh | D84: =RATES!I55 -> -0.0009
B85: =RATES!C62 -> Rate Rider for Disposition of Capacity Based Recovery Account (2018) - effective until April 30, 2019 Applicable Only for Class B Customers | C85: =RATES!G62 -> $/kWh | D85: =RATES!I62 -> 0.0002
B86: =RATES!C57 -> Rate Rider for Disposition of Capacity Based Recovery Account (2019) - effective until December 31, 2019 Applicable Only for Class B Customers | C86: =RATES!G57 -> $/kWh | D86: =RATES!I57 -> 0
B87: =RATES!C63 -> Rate Rider for Disposition of Lost Revenue Adjustment Mechanism Variance Account (LRAMVA) (2018) - effective until April 30, 2019 | C87: =RATES!G63 -> $/kWh | D87: =RATES!I63 -> 0.0009
B88: =RATES!C54 -> Rate Rider for Disposition of Lost Revenue Adjustment Mechanism Variance Account (LRAMVA) (2019) - effective until December 31, 2019 | C88: =RATES!G54 -> $/kWh | D88: =RATES!I54 -> 0.0006
B89: =RATES!C61 -> Rate Rider for Recovery of Incremental Capital Module (2018) - in effect until the effective date of the next cost of service based rate order | C89: =RATES!G61 -> $/kWh | D89: =RATES!I61 -> 0.0001
B90: =RATES!C53 -> Rate Rider for Recovery of Incremental Capital Module (2019) - in effect until the effective date of the next cost of service based rate order | C90: =RATES!G53 -> $/kWh | D90: =RATES!I53 -> 0.0001
B92: Retail Transmission Rate – Network Service Rate | C92: $/kWh | D92: =RATES!I66 -> 0.0065
B93: Retail Transmission Rate – Line and Transformation Connection Service Rate | C93: $/kWh | D93: =RATES!I67 -> 0.0035
B95: MONTHLY RATES AND CHARGES – Regulatory Component
B97: Wholesale Market Service Rate (WMS) - not including CBR | C97: $/kWh | D97: 0.0032
B98: Capacity Based Recovery (CBR) - Applicable for Class B Customers | C98: $/kWh | D98: 0.0004
B99: Rural or Remote Electricity Rate Protection Charge (RRRP) | C99: $/kWh | D99: 0.0003
B100: Standard Supply Service – Administrative Charge (if applicable) | C100: $ | D100: 0.25
B104: GENERAL SERVICE 50 to 4,999 kW SERVICE CLASSIFICATION
B106: This classification refers to a non-residential account whose monthly average peak demand is equal to or greater than, or is forecast to be equal to or greater than, 50 kW but less than 5,000 kW, both regular and interval metered. Class A and Class B consumers are defined in accordance with O. Reg. 429/04. Further servicing details are available in the distributor’s Conditions of Service.
B108: APPLICATION
B110: The application of these rates and charges shall be in accordance with the Licence of the Distributor and any Code or Order of the Ontario Energy Board, and amendments thereto as approved by the Ontario Energy Board, which may be applicable to the administration of this schedule.
B112: No rates and charges for the distribution of electricity and charges to meet the costs of any work or service done or furnished for the purpose of the distribution of electricity shall be made except as permitted by this schedule, unless required by the Distributor’s Licence or a Code or Order of the Ontario Energy Board, and amendments thereto as approved by the Ontario Energy Board, or as specified herein.
B114: Unless specifically noted, this schedule does not contain any charges for the electricity commodity, be it under the Regulated Price Plan, a contract with a retailer or the wholesale market price, as applicable. In addition, the charges in the MONTHLY RATES AND CHARGES – Regulatory Component of this schedule do not apply to a customer that is an embedded wholesale market participant.
A116: The rate rider for the disposition of WMS – Sub-account CBR Class B is not applicable to wholesale market participants (WMP), customers that transitioned between Class A and Class B during the variance account accumulation period, or to customers that were in Class A for the entire period. Customers who transitioned are to be charged or refunded their share of the variance disposed through customer specific billing adjustments. This rate rider is to be consistently applied for the entire period to the sunset date of the rate rider. In addition, this rate rider is applicable to all new Class B customers.
A118: The rate rider for the disposition of Global Adjustment is only applicable to non-RPP Class B customers. It is not applicable to WMP customers that transitioned between Class A and Class B during the variance account accumulation period, or to customers that were in Class A for the entire period. Customers who transitioned are to be charged or refunded their share of the variance disposed through customer specific billing adjustments. This rate order is applicable to all new non-RPP Class B customers.
B120: It should be noted that this schedule does not list any charges, assessments or credits that are required by law to be invoiced by a distributor and that are not subject to Ontario Energy Board approval, such as the Debt Retirement Charge, the Global Adjustment and the HST.
B122: MONTHLY RATES AND CHARGES – Delivery Component
B124: =RATES!C71 -> Service Charge | C124: =RATES!G71 -> $ | D124: =RATES!I71 -> 143.52
B125: =RATES!C88 -> Rate Rider for Recovery of Incremental Capital Module (2018) - in effect until the effective date of the next cost of service based rate order | C125: =RATES!G88 -> $ | D125: =RATES!I88 -> 0.57
B126: =RATES!C81 -> Rate Rider for Recovery of Incremental Capital Module (2019) - in effect until the effective date of the next cost of service based rate order | C126: =RATES!G81 -> $ | D126: =RATES!I81 -> 1.05
B127: =RATES!C72 -> Distribution Volumetric Rate | C127: =RATES!G72 -> $/kW | D127: =RATES!I72 -> 4.2796735
B128: =RATES!C73 -> Low Voltage Service Rate | C128: =RATES!G73 -> $/kW | D128: =RATES!I73 -> 0.1589
B129: =RATES!C92 -> Rate Rider for Disposition of Global Adjustment Account (2018) - effective until April 30, 2019 Applicable only for Non-RPP Customers | C129: =RATES!G92 -> $/kwh | D129: =RATES!I92 -> 0.0004
B130: =RATES!C85 -> Rate Rider for Disposition of Global Adjustment Account (2019) - effective until December 31, 2019 Applicable Only for Non-RPP Customers non-Interval Metered | C130: =RATES!G85 -> $/kWh | D130: =RATES!I85 -> 0.0018
B131: =RATES!C79 -> Rate Rider for Disposition of Deferral/Variance Accounts (2018) - effective until April 30, 2019 | C131: =RATES!G79 -> $/kW | D131: =RATES!I79 -> 0.0184
B132: =RATES!C84 -> Rate Rider for Disposition of Deferral/Variance Accounts (2019) - effective until December 31, 2019 | C132: =RATES!G84 -> $/kW | D132: =RATES!I84 -> -0.2953
B133: =RATES!C80 -> Rate Rider for Disposition of Deferral/Variance Accounts (2018) - effective until April 30, 2019 Applicable only for Non-Wholesale Market Participants | C133: =RATES!G80 -> $/kW | D133: =RATES!I80 -> -1.1367
B134: =RATES!C87 -> Rate Rider for Disposition of Deferral/Variance Accounts (2019) - effective until December 31, 2019 Applicable only for Non-Wholesale Market Participants | C134: =RATES!G87 -> $/kW | D134: =RATES!I87 -> -0.0453
B135: =RATES!C94 -> Rate Rider for Disposition of Capacity Based Recovery Account (2018) - effective until April 30, 2019 Applicable Only for Class B Customers | C135: =RATES!G94 -> $/kW | D135: =RATES!I94 -> 0.0905
B136: =RATES!C86 -> Rate Rider for Disposition of Capacity Based Recovery Account (2019) - effective until December 31, 2019 Applicable Only for Class B Customers | C136: =RATES!G86 -> $/kW | D136: =RATES!I86 -> -0.0046
B137: =RATES!C93 -> Rate Rider for Disposition of Lost Revenue Adjustment Mechanism Variance Account (LRAMVA) (2018) - effective until April 30, 2019 | C137: =RATES!G93 -> $/kW | D137: =RATES!I93 -> 0.0796
B138: =RATES!C83 -> Rate Rider for Disposition of Lost Revenue Adjustment Mechanism Variance Account (LRAMVA) (2019) - effective until December 31, 2019 | C138: =RATES!G83 -> $/kW | D138: =RATES!I83 -> 0.0886
B139: =RATES!C89 -> Rate Rider for Recovery of Incremental Capital Module (2018) - in effect until the effective date of the next cost of service based rate order | C139: =RATES!G89 -> $/kW | D139: =RATES!I89 -> 0.0168
B140: =RATES!C82 -> Rate Rider for Recovery of Incremental Capital Module (2019) - in effect until the effective date of the next cost of service based rate order | C140: =RATES!G82 -> $/kW | D140: =RATES!I82 -> 0.0314
B142: Retail Transmission Rate – Network Service Rate | C142: $/kW | D142: =RATES!I95 -> 2.613
B143: Retail Transmission Rate – Line and Transformation Connection Service Rate | C143: $/kW | D143: =RATES!I96 -> 1.3338
B144: Retail Transmission Rate – Network Service Rate – Interval Metered | C144: $/kW | D144: =RATES!I97 -> 2.7391
B145: Retail Transmission Rate – Line and Transformation Connection Service Rate – Interval Metered | C145: $/kW | D145: =RATES!I98 -> 1.4431
B147: MONTHLY RATES AND CHARGES – Regulatory Component
B149: Wholesale Market Service Rate (WMS) - not including CBR | C149: $/kWh | D149: 0.0032
B150: Capacity Based Recovery (CBR) - Applicable for Class B Customers | C150: $/kWh | D150: 0.0004
B151: Rural or Remote Electricity Rate Protection Charge (RRRP) | C151: $/kWh | D151: 0.0003
B152: Standard Supply Service – Administrative Charge (if applicable) | C152: $ | D152: 0.25
B156: LARGE USE SERVICE CLASSIFICATION
B158: This classification refers to an account whose monthly average peak demand is equal to or greater than, or is forecast to be equal to or greater than, 5,000 kW. Class A and Class B consumers are defined in accordance with O. Reg. 429/04. Further servicing details are available in the distributor’s Conditions of Service.
B160: APPLICATION
B162: The application of these rates and charges shall be in accordance with the Licence of the Distributor and any Code or Order of the Ontario Energy Board, and amendments thereto as approved by the Ontario Energy Board, which may be applicable to the administration of this schedule.
B164: No rates and charges for the distribution of electricity and charges to meet the costs of any work or service done or furnished for the purpose of the distribution of electricity shall be made except as permitted by this schedule, unless required by the Distributor’s Licence or a Code or Order of the Ontario Energy Board, and amendments thereto as approved by the Ontario Energy Board, or as specified herein.
B166: Unless specifically noted, this schedule does not contain any charges for the electricity commodity, be it under the Regulated Price Plan, a contract with a retailer or the wholesale market price, as applicable. In addition, the charges in the MONTHLY RATES AND CHARGES – Regulatory Component of this schedule do not apply to a customer that is an embedded wholesale market participant.
A168: The rate rider for the disposition of WMS – Sub-account CBR Class B is not applicable to wholesale market participants (WMP), customers that transitioned between Class A and Class B during the variance account accumulation period, or to customers that were in Class A for the entire period. Customers who transitioned are to be charged or refunded their share of the variance disposed through customer specific billing adjustments. This rate rider is to be consistently applied for the entire period to the sunset date of the rate rider. In addition, this rate rider is applicable to all new Class B customers.
A170: The rate rider for the disposition of Global Adjustment is only applicable to non-RPP Class B customers. It is not applicable to WMP customers that transitioned between Class A and Class B during the variance account accumulation period, or to customers that were in Class A for the entire period. Customers who transitioned are to be charged or refunded their share of the variance disposed through customer specific billing adjustments. This rate order is applicable to all new non-RPP Class B customers.
B172: It should be noted that this schedule does not list any charges, assessments or credits that are required by law to be invoiced by a distributor and that are not subject to Ontario Energy Board approval, such as the Debt Retirement Charge, the Global Adjustment and the HST.
B174: MONTHLY RATES AND CHARGES – Delivery Component
B176: =RATES!C100 -> Service Charge | C176: =RATES!G100 -> $ | D176: =RATES!I100 -> 6183.5
B177: =RATES!C117 -> Rate Rider for Recovery of Incremental Capital Module (2018) - in effect until the effective date of the next cost of service based rate order | C177: =RATES!G117 -> $ | D177: =RATES!I117 -> 24.34
B178: =RATES!C109 -> Rate Rider for Recovery of Incremental Capital Module (2019) - in effect until the effective date of the next cost of service based rate order | C178: =RATES!G109 -> $ | D178: =RATES!I109 -> 45.37
B179: =RATES!C101 -> Distribution Volumetric Rate | C179: =RATES!G101 -> $/kW | D179: =RATES!I101 -> 2.2826607
B180: =RATES!C102 -> Low Voltage Service Rate | C180: =RATES!G102 -> $/kW | D180: =RATES!I102 -> 0.163
B181: =RATES!C115 -> Rate Rider for Disposition of Deferral/Variance Accounts (2018) - effective until April 30, 2019 | C181: =RATES!G115 -> $/kW | D181: =RATES!I115 -> -1.3235
B182: =RATES!C112 -> Rate Rider for Disposition of Deferral/Variance Accounts (2019) - effective until December 31, 2019 | C182: =RATES!G112 -> $/kW | D182: =RATES!I112 -> -0.5809
B183: =RATES!C118 -> Rate Rider for Disposition of Lost Revenue Adjustment Mechanism Variance Account (LRAMVA) (2018) - effective until April 30, 2019 | C183: =RATES!G118 -> $/kW | D183: =RATES!I118 -> -0.0723
B184: =RATES!C111 -> Rate Rider for Disposition of Lost Revenue Adjustment Mechanism Variance Account (LRAMVA) (2019) - effective until December 31, 2019 | C184: =RATES!G111 -> $/kW | D184: =RATES!I111 -> -0.0705
B185: =RATES!C116 -> Rate Rider for Recovery of Incremental Capital Module (2018) - in effect until the effective date of the next cost of service based rate order | C185: =RATES!G116 -> $/kW | D185: =RATES!I116 -> 0.009
B186: =RATES!C110 -> Rate Rider for Recovery of Incremental Capital Module (2019) - in effect until the effective date of the next cost of service based rate order | C186: =RATES!G110 -> $/kW | D186: =RATES!I110 -> 0.0167
B188: Retail Transmission Rate – Network Service Rate | C188: $/kW | D188: =RATES!I122 -> 3.1569
B189: Retail Transmission Rate – Line and Transformation Connection Service Rate | C189: $/kW | D189: =RATES!I123 -> 1.3931
B192: MONTHLY RATES AND CHARGES – Regulatory Component
B194: Wholesale Market Service Rate (WMS) - not including CBR | C194: $/kWh | D194: 0.0032
B195: Capacity Based Recovery (CBR) - Applicable for Class B Customers | C195: $/kWh | D195: 0.0004
B196: Rural or Remote Electricity Rate Protection Charge (RRRP) | C196: $/kWh | D196: 0.0003
B197: Standard Supply Service – Administrative Charge (if applicable) | C197: $ | D197: 0.25
B199: STANDBY POWER SERVICE CLASSIFICATION
B201: This classification refers to an account that has Load Displacement Generation and requires the distributor to provide back-up service. Further servicing details are available in the distributor’s Conditions of Service.
B203: APPLICATION
B205: The application of these rates and charges shall be in accordance with the Licence of the Distributor and any Code or Order of the Ontario Energy Board, and amendments thereto as approved by the Ontario Energy Board, which may be applicable to the administration of this schedule.
B207: No rates and charges for the distribution of electricity and charges to meet the costs of any work or service done or furnished for the purpose of the distribution of electricity shall be made except as permitted by this schedule, unless required by the Distributor’s Licence or a Code or Order of the Ontario Energy Board, and amendments thereto as approved by the Ontario Energy Board, or as specified herein.
B209: Unless specifically noted, this schedule does not contain any charges for the electricity commodity, be it under the Regulated Price Plan, a contract with a retailer or the wholesale market price, as applicable.
B211: It should be noted that this schedule does not list any charges, assessments or credits that are required by law to be invoiced by a distributor and that are not subject to Ontario Energy Board approval, such as the Debt Retirement Charge, the Global Adjustment and the HST.
B214: MONTHLY RATES AND CHARGES – Delivery Component - APPROVED ON AN INTERIM BASIS
B216: Standby Charge – for a month where standby power is not provided. The charge is applied to the
B217: contracted amount (e.g. nameplate rating of generation facility). | C217: $/kW | D217: ='17. Rev2Cost-GDPIPI'!J22 -> 2.8589006
B220: UNMETERED SCATTERED LOAD SERVICE CLASSIFICATION
B222: This classification refers to an account taking electricity at 750 volts or less whose average monthly peak demand is less than, or is forecast to be less than, 50 kW and the consumption is unmetered. Such connections include cable TV power packs, bus shelters, telephone booths, traffic lights, railway crossings, etc. The customer will provide detailed manufacturer information/documentation with regard to electrical demand/consumption of the proposed unmetered load. Class B consumers are defined in accordance with O. Reg. 429/04. Further servicing details are available in the distributor’s Conditions of Service.
B224: APPLICATION
B226: The application of these rates and charges shall be in accordance with the Licence of the Distributor and any Code or Order of the Ontario Energy Board, and amendments thereto as approved by the Ontario Energy Board, which may be applicable to the administration of this schedule.
B228: No rates and charges for the distribution of electricity and charges to meet the costs of any work or service done or furnished for the purpose of the distribution of electricity shall be made except as permitted by this schedule, unless required by the Distributor’s Licence or a Code or Order of the Ontario Energy Board, and amendments thereto as approved by the Ontario Energy Board, or as specified herein.
B230: Unless specifically noted, this schedule does not contain any charges for the electricity commodity, be it under the Regulated Price Plan, a contract with a retailer or the wholesale market price, as applicable. In addition, the charges in the MONTHLY RATES AND CHARGES – Regulatory Component of this schedule do not apply to a customer that is an embedded wholesale market participant.
B232: It should be noted that this schedule does not list any charges, assessments or credits that are required by law to be invoiced by a distributor and that are not subject to Ontario Energy Board approval, such as the Debt Retirement Charge, the Global Adjustment and the HST.
B234: MONTHLY RATES AND CHARGES – Delivery Component
B236: =RATES!C127 -> Service Charge | C236: =RATES!G127 -> $ | D236: =RATES!I127 -> 8.76
B237: =RATES!C143 -> Rate Rider for Recovery of Incremental Capital Module (2018) - in effect until the effective date of the next cost of service based rate order | C237: =RATES!G143 -> $ | D237: =RATES!I143 -> 0.03
B238: =RATES!C136 -> Rate Rider for Recovery of Incremental Capital Module (2019) - in effect until the effective date of the next cost of service based rate order | C238: =RATES!G136 -> $ | D238: =RATES!I136 -> 0.06
B239: =RATES!C128 -> Distribution Volumetric Rate | C239: =RATES!G128 -> $/kWh | D239: =RATES!I128 -> 0.0198773
B240: =RATES!C129 -> Low Voltage Service Rate | C240: =RATES!G129 -> $/kWh | D240: =RATES!I129 -> 0.0005
B241: =RATES!C144 -> Rate Rider for Disposition of Global Adjustment Account (2018) - effective until April 30, 2019 Applicable only for Non-RPP Customers | C241: =RATES!G144 -> $/kWh | D241: =RATES!I144 -> 0.0004
B242: =RATES!C140 -> Rate Rider for Disposition of Global Adjustment Account (2019) - effective until December 31, 2019 Applicable Only for Non-RPP Customers | C242: =RATES!G140 -> $/kWh | D242: =RATES!I140 -> 0.0018
B243: =RATES!C134 -> Rate Rider for Disposition of Deferral/Variance Accounts (2018) - effective until April 30, 2019 | C243: =RATES!G134 -> $/kWh | D243: =RATES!I134 -> -0.0029
B244: =RATES!C139 -> Rate Rider for Disposition of Deferral/Variance Accounts (2019) - effective until December 31, 2019 | C244: =RATES!G139 -> $/kWh | D244: =RATES!I139 -> -0.0009
B245: =RATES!C147 -> Rate Rider for Disposition of Lost Revenue Adjustment Mechanism Variance Account (LRAMVA) (2018) - effective until April 30, 2019 | C245: =RATES!G147 -> $/kWh | D245: =RATES!I147 -> -0.0005
B246: =RATES!C138 -> Rate Rider for Disposition of Lost Revenue Adjustment Mechanism Variance Account (LRAMVA) (2019) - effective until December 31, 2019 | C246: =RATES!G138 -> $/kWh | D246: =RATES!I138 -> -0.0003
B247: =RATES!C145 -> Rate Rider for Disposition of Capacity Based Recovery Account (2018) - effective until April 30, 2019 Applicable Only for Class B Customers | C247: =RATES!G145 -> $/kWh | D247: =RATES!I145 -> 0.0002
B248: =RATES!C141 -> Rate Rider for Disposition of Capacity Based Recovery Account (2019) - effective until December 31, 2019 Applicable Only for Class B Customers | C248: =RATES!G141 -> $/kWh | D248: =RATES!I141 -> 0
B249: =RATES!C146 -> Rate Rider for Recovery of Incremental Capital Module (2018) - in effect until the effective date of the next cost of service based rate order | C249: =RATES!G146 -> $/kWh | D249: =RATES!I146 -> 0.0001
B250: =RATES!C137 -> Rate Rider for Recovery of Incremental Capital Module (2019) - in effect until the effective date of the next cost of service based rate order | C250: =RATES!G137 -> $/kWh | D250: =RATES!I137 -> 0.0001
B252: Retail Transmission Rate – Network Service Rate | C252: $/kWh | D252: =RATES!I148 -> 0.0062
B253: Retail Transmission Rate – Line and Transformation Connection Service Rate | C253: $/kWh | D253: =RATES!I149 -> 0.0037
B255: MONTHLY RATES AND CHARGES – Regulatory Component
B257: Wholesale Market Service Rate (WMS) - not including CBR | C257: $/kWh | D257: 0.0032
B258: Capacity Based Recovery (CBR) - Applicable for Class B Customers | C258: $/kWh | D258: 0.0004
B259: Rural or Remote Electricity Rate Protection Charge (RRRP) | C259: $/kWh | D259: 0.0003
B260: Standard Supply Service – Administrative Charge (if applicable) | C260: $ | D260: 0.25
B263: SENTINEL LIGHTING SERVICE CLASSIFICATION
B265: This classification refers to an unmetered lighting load supplied to a sentinel light. Class B consumers are defined in accordance with O. Reg. 429/04. Further servicing details are available in the distributor’s Conditions of Service.
B267: APPLICATION
B269: The application of these rates and charges shall be in accordance with the Licence of the Distributor and any Code or Order of the Ontario Energy Board, and amendments thereto as approved by the Ontario Energy Board, which may be applicable to the administration of this schedule.
B271: No rates and charges for the distribution of electricity and charges to meet the costs of any work or service done or furnished for the purpose of the distribution of electricity shall be made except as permitted by this schedule, unless required by the Distributor’s Licence or a Code or Order of the Ontario Energy Board, and amendments thereto as approved by the Ontario Energy Board, or as specified herein.
B273: Unless specifically noted, this schedule does not contain any charges for the electricity commodity, be it under the Regulated Price Plan, a contract with a retailer or the wholesale market price, as applicable. In addition, the charges in the MONTHLY RATES AND CHARGES – Regulatory Component of this schedule do not apply to a customer that is an embedded wholesale market participant.
B275: It should be noted that this schedule does not list any charges, assessments or credits that are required by law to be invoiced by a distributor and that are not subject to Ontario Energy Board approval, such as the Debt Retirement Charge, the Global Adjustment and the HST.
B277: MONTHLY RATES AND CHARGES – Delivery Component
B279: =RATES!C153 -> Service Charge (per Connection) | C279: =RATES!G153 -> $ | D279: =RATES!I153 -> 4.27
B280: =RATES!C169 -> Rate Rider for Recovery of Incremental Capital Module (2018) - in effect until the effective date of the next cost of service based rate order | C280: =RATES!G169 -> $ | D280: =RATES!I169 -> 0.02
B281: =RATES!C162 -> Rate Rider for Recovery of Incremental Capital Module (2019) - in effect until the effective date of the next cost of service based rate order | C281: =RATES!G162 -> $ | D281: =RATES!I162 -> 0.03
B282: =RATES!C154 -> Distribution Volumetric Rate | C282: =RATES!G154 -> $/kW | D282: =RATES!I154 -> 10.0478238
B283: =RATES!C155 -> Low Voltage Service Rate | C283: =RATES!G155 -> $/kW | D283: =RATES!I155 -> 0.117
B284: =RATES!C170 -> Rate Rider for Disposition of Global Adjustment Account (2018) - effective until April 30, 2019 Applicable only for Non-RPP Customers | C284: =RATES!G170 -> $/kWh | D284: =RATES!I170 -> 0.0004
B285: =RATES!C166 -> Rate Rider for Disposition of Global Adjustment Account (2019) - effective until December 31, 2019 Applicable Only for Non-RPP Customers | C285: =RATES!G166 -> $/kWh | D285: =RATES!I166 -> 0.0018
B286: =RATES!C171 -> Rate Rider for Disposition of Deferral/Variance Accounts (2018) - effective until April 30, 2019 | C286: =RATES!G171 -> $/kW | D286: =RATES!I171 -> -1.074
B287: =RATES!C165 -> Rate Rider for Disposition of Deferral/Variance Accounts (2019) - effective until December 31, 2019 | C287: =RATES!G165 -> $/kW | D287: =RATES!I165 -> -0.3377
B288: =RATES!C160 -> Rate Rider for Disposition of Capacity Based Recovery Account (2018) - effective until April 30, 2019 Applicable Only for Class B Customers | C288: =RATES!G160 -> $/kW | D288: =RATES!I160 -> 0.0895
B289: =RATES!C167 -> Rate Rider for Disposition of Capacity Based Recovery Account (2019) - effective until December 31, 2019 Applicable Only for Class B Customers | C289: =RATES!G167 -> $/kW | D289: =RATES!I167 -> -0.005
B290: =RATES!C172 -> Rate Rider for Disposition of Lost Revenue Adjustment Mechanism Variance Account (LRAMVA) (2018) - effective until April 30, 2019 | C290: =RATES!G172 -> $/kW | D290: =RATES!I172 -> -0.385
B291: =RATES!C164 -> Rate Rider for Disposition of Lost Revenue Adjustment Mechanism Variance Account (LRAMVA) (2019) - effective until December 31, 2019 | C291: =RATES!G164 -> $/kW | D291: =RATES!I164 -> -0.2176
B292: =RATES!C161 -> Rate Rider for Recovery of Incremental Capital Module (2018) - in effect until the effective date of the next cost of service based rate order | C292: =RATES!G161 -> $/kW | D292: =RATES!I161 -> 0.0396
B293: =RATES!C163 -> Rate Rider for Recovery of Incremental Capital Module (2019) - in effect until the effective date of the next cost of service based rate order | C293: =RATES!G163 -> $/kW | D293: =RATES!I163 -> 0.0737
B295: Retail Transmission Rate – Network Service Rate | C295: $/kW | D295: =RATES!I174 -> 2.0304
B296: Retail Transmission Rate – Line and Transformation Connection Service Rate | C296: $/kW | D296: =RATES!I175 -> 0.9869
B299: MONTHLY RATES AND CHARGES – Regulatory Component
B301: Wholesale Market Service Rate (WMS) - not including CBR | C301: $/kWh | D301: 0.0032
B302: Capacity Based Recovery (CBR) - Applicable for Class B Customers | C302: $/kWh | D302: 0.0004
B303: Rural or Remote Electricity Rate Protection Charge (RRRP) | C303: $/kWh | D303: 0.0003
... 102 more rows

Sheet 21. Bill Impacts
A1: Back to Index
E2: =+'1. Information Sheet'!B2 -> INCENTIVE REGULATION MODEL FOR 2019 FILERS
E11: The bill comparisons below must be provided for typical customers and consumption levels. Bill impacts must be provided for residential customers consuming 750 kWh per month and general service customers consuming 2,000 kWh per month and having a monthly demand of less than 50 kW. Include bill comparisons for Non-RPP (retailer) as well. To assess the combined effects of the shift to fixed rates and other bill impacts associated with changes in the cost of distribution service, applicants are to include a total bill impact for a residential customer at the distributor’s 10th consumption percentile (In other words, 10% of a distributor’s residential customers consume at or less than this level of consumption on a monthly basis). Refer to page 9 of the Filing Requirements For Electricity Distribution Rate Applications issued July 14, 2016. For certain classes where one or more customers have unique consumption and demand patterns and which may be significantly impacted by the proposed rate changes, the distributor must show a typical comparison, and provide an explanation. Note: 1. For those classes that are not eligible for the RPP price, the weighted average price including Class B GA through end of February 2017 of $0.1058/kWh (IESO's Monthly Market Report for February 2017, page 22) has been used to represent the cost of power. For those classes on a retailer contract, applicants should enter the contract price (plus GA) for a more accurate estimate. Changes to the cost of power can be made directly on the bill impact table for the specific class. 2. Please enter the applicable billing determinant (e.g. number of connections or devices) to be applied to the monthly service charge for unmetered rate classes in column N. If the monthly service charge is applied on a per customer basis, enter the number “1”. Distributors should provide the number of connections or devices reflective of a typical customer in each class.
E13: Table 1
E14: RATE CLASSES / CATEGORIES (eg: Residential TOU, Residential Retailer) | G14: Units | H14: RPP? Non-RPP Retailer? Non-RPP Other? | I14: Current Loss Factor | J14: Proposed Loss Factor | K14: Consumption (kWh) | L14: Demand kW (if applicable) | M14: RTSR | N14: Billing Determinant Applied to Fixed Charge for Unmetered Classes (e.g. # of devices/connections).
B15: 1 | C15: 1 | E15: ='4. Billing Det. for Def-Var'!B17 -> RESIDENTIAL SERVICE CLASSIFICATION | G15: =IF(ISERROR(VLOOKUP(E15,BILLING_DETERMINANTS,2,FALSE)),"",(VLOOKUP(E15,BILLING_DETERMINANTS,2,FALSE))) -> kWh | H15: RPP | I15: =LLF -> 1.0369 | J15: =IF(ISBLANK(I15),"", I15) -> 1.0369 | K15: 750 | M15: N/A | T15: =SUM(I15:L15) -> 752.0738 | U15: 78 | V15: 1
B16: 2 | C16: 2 | E16: ='4. Billing Det. for Def-Var'!B18 -> GENERAL SERVICE LESS THAN 50 kW SERVICE CLASSIFICATION | G16: kWh | H16: RPP | I16: =I15 -> 1.0369 | J16: =IF(ISBLANK(I16),"", I16) -> 1.0369 | K16: 2000 | M16: N/A | T16: 2002.0738 | U16: =U15+68 -> 146 | V16: 2
B17: 3 | C17: 3 | E17: ='4. Billing Det. for Def-Var'!B19 -> GENERAL SERVICE 50 to 4,999 kW SERVICE CLASSIFICATION | G17: kW | H17: Non-RPP (Other) | I17: =I16 -> 1.0369 | J17: 1.0369 | K17: 80000 | L17: 250 | M17: DEMAND | T17: 80252.0738 | U17: =U16+68 -> 214 | V17: 3
B18: 4 | C18: 4 | E18: ='4. Billing Det. for Def-Var'!B20 -> LARGE USE SERVICE CLASSIFICATION | G18: kW | H18: Non-RPP (Other) | I18: 1.0145 | J18: 1.0145 | K18: 2800000 | L18: 7350 | M18: DEMAND | T18: 2807352.029 | U18: 282 | V18: 4
B19: 5 | C19: 5 | E19: ='4. Billing Det. for Def-Var'!B21 -> UNMETERED SCATTERED LOAD SERVICE CLASSIFICATION | G19: kWh | H19: RPP | I19: =I15 -> 1.0369 | J19: 1.0369 | K19: 150 | M19: N/A | N19: 1 | T19: 152.0738 | U19: 350 | V19: 5
B20: 6 | C20: 6 | E20: ='4. Billing Det. for Def-Var'!B22 -> STANDBY POWER SERVICE CLASSIFICATION | G20: kW | M20: N/A | T20: =SUM(I20:L20) -> 0 | U20: 418 | V20: 6
B21: 7 | C21: 7 | E21: ='4. Billing Det. for Def-Var'!B23 -> SENTINEL LIGHTING SERVICE CLASSIFICATION | G21: kW | H21: RPP | I21: =I17 -> 1.0369 | J21: 1.0369 | K21: 180 | L21: 1 | M21: DEMAND | N21: 1 | T21: 183.0738 | U21: 486 | V21: 7
B22: 8 | C22: 8 | E22: ='4. Billing Det. for Def-Var'!B24 -> STREET LIGHTING SERVICE CLASSIFICATION | G22: kW | H22: Non-RPP (Other) | I22: 1.0369 | J22: 1.0369 | K22: 280 | L22: 1 | M22: DEMAND | N22: 1 | T22: 283.0738 | U22: 554 | V22: 8
B23: 9 | C23: =IF(ISERROR(VLOOKUP(E23, E$15:V$33, 18, FALSE)),"", VLOOKUP(E23, E$15:V$33, 18, FALSE)) -> 1 | E23: =E15 -> RESIDENTIAL SERVICE CLASSIFICATION | F23: (10th consumption percentile) | G23: kWh | H23: RPP | I23: =I19 -> 1.0369 | J23: 1.0369 | K23: 308.871 | M23: N/A | T23: 310.9448 | U23: 622
B24: 10 | C24: =IF(ISERROR(VLOOKUP(E24, E$15:V$33, 18, FALSE)),"", VLOOKUP(E24, E$15:V$33, 18, FALSE)) -> 1 | E24: =E15 -> RESIDENTIAL SERVICE CLASSIFICATION | F24: (Retailer) | H24: Non-RPP (Retailer) | I24: =I21 -> 1.0369 | J24: 1.0369 | K24: 750 | M24: N/A | T24: 752.0738 | U24: 690
B25: 11 | C25: 2 | E25: =E16 -> GENERAL SERVICE LESS THAN 50 kW SERVICE CLASSIFICATION | F25: (Retailer) | H25: Non-RPP (Retailer) | I25: =I21 -> 1.0369 | J25: 1.0369 | K25: 2000 | M25: N/A | T25: 2002.0738 | U25: 758
B26: 12 | C26: 0 | E26: Add additional scenarios if required | J26: =IF(ISBLANK(I26),"", I26) ->  | T26: 0 | U26: 826
B27: 13 | C27: 0 | E27: Add additional scenarios if required | T27: 0 | U27: 894
B28: 14 | C28: 0 | E28: Add additional scenarios if required | T28: 0 | U28: 962
B29: 15 | C29: 0 | E29: Add additional scenarios if required | T29: 0 | U29: 1030
B30: 16 | C30: 0 | E30: Add additional scenarios if required | T30: 0 | U30: 1098
B31: 17 | C31: 0 | E31: Add additional scenarios if required | T31: 0 | U31: 1166
B32: 18 | C32: 0 | E32: Add additional scenarios if required | T32: 0 | U32: 1234
B33: 19 | C33: 0 | E33: Add additional scenarios if required | T33: 0 | U33: 1302
E36: Table 2
E37: RATE CLASSES / CATEGORIES (eg: Residential TOU, Residential Retailer) | G37: Units | H37: Sub-Total | N37: Total | P37: Total (Before Tax) | R37: Total
H38: A | J38: B | L38: C | N38: A + B + C | P38: A + B + C | R38: A + B + C
H39: $ | I39: % | J39: $ | K39: % | L39: $ | M39: % | N39: $ | O39: % | P39: $ | Q39: % | R39: $ | S39: %
B40: =H15 -> RPP | C40: =B15 -> 1 | E40: =IF(ISBLANK(E15), "", IF(E15 = "Add additional scenarios if required", "", IF(O15="INTERVAL", E15 & " - " & H15 & " - Interval Customers", E15 & " - " &H15))) -> RESIDENTIAL SERVICE CLASSIFICATION - RPP | G40: =IF(ISBLANK(G15), "", G15) -> kWh | H40: =IF(LEN($G40)>1, (SUMPRODUCT(--($C$72:$C$1010=$B15), --($A$72:$A$1010=$E15), --($B$72:$B$1010="ST_A"), $M$72:$M$1010)), "") -> 0.185 | I40: =IF(LEN($G40)>1, (SUMPRODUCT(--($C$72:$C$1010=$B15), --($A$72:$A$1010=$E15), --($B$72:$B$1010="ST_A"), $N$72:$N$1010)), "") -> 0.006495786517 | J40: =IF(LEN($G40)>1, (SUMPRODUCT(--($C$72:$C$1010=$B15), --($A$72:$A$1010=$E15), --($B$72:$B$1010="ST_B"), $M$72:$M$1010)), "") -> -0.745 | K40: =IF(LEN($G40)>1, (SUMPRODUCT(--($C$72:$C$1010=$B15), --($A$72:$A$1010=$E15), --($B$72:$B$1010="ST_B"), $N$72:$N$1010)), "") -> -0.02502176957 | L40: =IF(LEN($G40)>1, (SUMPRODUCT(--($C$72:$C$1010=$B15), --($A$72:$A$1010=$E15), --($B$72:$B$1010="ST_C"), $M$72:$M$1010)), "") -> -0.900535 | M40: =IF(LEN($G40)>1, (SUMPRODUCT(--($C$72:$C$1010=$B15), --($A$72:$A$1010=$E15), --($B$72:$B$1010="ST_C"), $N$72:$N$1010)), "") -> -0.02325921922 | N40: =IF(LEN($G40)>1, (SUMPRODUCT(--($C$72:$C$1010=$B15), --($A$72:$A$1010=$E15), --($B$72:$B$1010=$B40&"_TOTAL"), $M$72:$M$1010)), "") -> -0.94556175 | O40: =IF(LEN($G40)>1, (SUMPRODUCT(--($C$72:$C$1010=$B15), --($A$72:$A$1010=$E15), --($B$72:$B$1010=$B40&"_TOTAL"), $N$72:$N$1010)), "") -> -0.008701429242 | P40: =IF(LEN($G40)>1, (SUMPRODUCT(--($C$72:$C$1010=$B15), --($A$72:$A$1010=$E15), --($B$72:$B$1010=$B40&"_BT"), $M$72:$M$1010)), "") -> -0.900535 | Q40: =IF(LEN($G40)>1, (SUMPRODUCT(--($C$72:$C$1010=$B15), --($A$72:$A$1010=$E15), --($B$72:$B$1010=$B40&"_BT"), $N$72:$N$1010)), "") -> -0.008701429242 | R40: =IF(LEN($G40)>1, (SUMPRODUCT(--($C$72:$C$1010=$B15), --($A$72:$A$1010=$E15), --($B$72:$B$1010=$B40&"_NET"), $M$72:$M$1010)), "") -> -1.01760455 | S40: =IF(LEN($G40)>1, (SUMPRODUCT(--($C$72:$C$1010=$B15), --($A$72:$A$1010=$E15), --($B$72:$B$1010=$B40&"_NET"), $N$72:$N$1010)), "") -> -0.008701429242
B41: =H16 -> RPP | C41: =B16 -> 2 | E41: =IF(ISBLANK(E16), "", IF(E16 = "Add additional scenarios if required", "", IF(O16="INTERVAL", E16 & " - " & H16 & " - Interval Customers", E16 & " - " &H16))) -> GENERAL SERVICE LESS THAN 50 kW SERVICE CLASSIFICATION - RPP | G41: =IF(ISBLANK(G16), "", G16) -> kWh | H41: 1.87 | I41: 0.02729130181 | J41: -0.54 | K41: -0.00761090119 | L41: -0.95476 | M41: -0.01036615042 | N41: -15.702498 | O41: -0.05371267347 | P41: -14.95476 | Q41: -0.05371267347 | R41: -16.8988788 | S41: -0.05371267347
B42: Non-RPP (Other) | C42: 3 | E42: GENERAL SERVICE 50 to 4,999 kW SERVICE CLASSIFICATION - Non-RPP (Other) | G42: kW | H42: 37.663375 | I42: 0.0305834575 | J42: -501.336625 | K42: -0.3051404621 | L42: -518.611625 | M42: -0.1959283721 | N42: -1218.831136 | O42: -0.08883950947 | P42: -1078.611625 | Q42: -0.08883950947 | R42: -1218.831136 | S42: -0.08883950947
B43: Non-RPP (Other) | C43: 4 | E43: LARGE USE SERVICE CLASSIFICATION - Non-RPP (Other) | G43: kW | H43: -242.268855 | I43: -0.01080961412 | J43: -5074.158855 | K43: -0.3512756261 | L43: -5677.593855 | M43: -0.1170857957 | N43: -28563.68106 | O43: -0.06758285675 | P43: -25277.59385 | Q43: -0.06758285675 | R43: -28563.68106 | S43: -0.06758285675
B44: RPP | C44: 5 | E44: UNMETERED SCATTERED LOAD SERVICE CLASSIFICATION - RPP | G44: kWh | H44: 0.056595 | I44: 0.00484338896 | J44: -0.108405 | K44: -0.009156744421 | L44: -0.1239585 | M44: -0.009254664493 | N44: -1.326573105 | O44: -0.04253588235 | P44: -1.1739585 | Q44: -0.04253588235 | R44: -1.326573105 | S44: -0.04253588235
B45: 0 | C45: 6 | E45: STANDBY POWER SERVICE CLASSIFICATION - | G45: kW | H45: 0 | I45: 0 | J45: 0 | K45: 0 | L45: 0 | M45: 0 | N45: 0 | O45: 0 | P45: 0 | Q45: 0 | R45: 0 | S45: 0
B46: RPP | C46: 7 | E46: SENTINEL LIGHTING SERVICE CLASSIFICATION - RPP | G46: kW | H46: -0.0242762 | I46: -0.001746137469 | J46: -2.8230762 | K46: -0.1760464048 | L46: -2.8764762 | M46: -0.1505482148 | N46: -4.674218106 | O46: -0.1145750006 | P46: -4.1364762 | Q46: -0.1145750006 | R46: -4.674218106 | S46: -0.1145750006
B47: Non-RPP (Other) | C47: 8 | E47: STREET LIGHTING SERVICE CLASSIFICATION - Non-RPP (Other) | G47: kW | H47: 1.3758119 | I47: 0.1677860314 | J47: -0.7100881 | K47: -0.06565854712 | L47: -0.7801881 | M47: -0.05221596784 | N47: -3.096412553 | O47: -0.05787354082 | P47: -2.7401881 | Q47: -0.05787354082 | R47: -3.096412553 | S47: -0.05787354082
B48: RPP | C48: 9 | E48: RESIDENTIAL SERVICE CLASSIFICATION - RPP | G48: kWh | H48: 1.9936289 | I48: 0.081048201 | J48: 1.5047579 | K48: 0.0588436683 | L48: 1.440704232 | M48: 0.04924606491 | N48: 1.512739444 | O48: 0.02569080464 | P48: 1.440704232 | Q48: 0.02569080464 | R48: 1.627995782 | S48: 0.02569080464
B49: Non-RPP (Retailer) | C49: 10 | E49: RESIDENTIAL SERVICE CLASSIFICATION - Non-RPP (Retailer) | G49: kWh | H49: 0.185 | I49: 0.006495786517 | J49: -4.045 | K49: -0.1144995006 | L49: -4.200535 | M49: -0.09488247112 | N49: -4.41056175 | O49: -0.03356296801 | P49: -4.200535 | Q49: -0.03356296801 | R49: -4.74660455 | S49: -0.03356296801
B50: Non-RPP (Retailer) | C50: 11 | E50: GENERAL SERVICE LESS THAN 50 kW SERVICE CLASSIFICATION - Non-RPP (Retailer) | G50: kWh | H50: 1.87 | I50: 0.02729130181 | J50: -9.34 | K50: -0.1089080233 | L50: -9.75476 | M50: -0.09123999656 | N50: -24.942498 | O50: -0.070572454 | P50: -23.75476 | Q50: -0.070572454 | R50: -26.8428788 | S50: -0.070572454
B51: 0 | C51: 12 | E51: =IF(ISBLANK(E26), "", IF(E26 = "Add additional scenarios if required", "", IF(O26="YES", E26 & " - " & J26 & " - Interval Customers", E26 & " - " &J26))) ->  | G51: =IF(ISBLANK(I26), "", I26) ->  | P51: =IF(LEN($G51)>1, (SUMPRODUCT(--($C$72:$C$1010=$B26), --($A$72:$A$1010=$E26), --($B$72:$B$1010=$B51&"_TOTAL"), $M$72:$M$1010)), "") ->  | Q51: =IF(LEN($G51)>1, (SUMPRODUCT(--($C$72:$C$1010=$B26), --($A$72:$A$1010=$E26), --($B$72:$B$1010=$B51&"_TOTAL"), $N$72:$N$1010)), "") ->  | R51: =IF(LEN($G51)>1, (SUMPRODUCT(--($C$72:$C$1010=$B26), --($A$72:$A$1010=$E26), --($B$72:$B$1010=$B51&"_TOTAL"), $M$72:$M$1010)), "") ->  | S51: =IF(LEN($G51)>1, (SUMPRODUCT(--($C$72:$C$1010=$B26), --($A$72:$A$1010=$E26), --($B$72:$B$1010=$B51&"_TOTAL"), $N$72:$N$1010)), "") -> 
B52: 0 | C52: 13
B53: 0 | C53: 14
B54: 0 | C54: 15
B55: 0 | C55: 16 | G55: =IF(ISBLANK(I30), "", I30) -> 
B56: 0 | C56: 17 | G56: =IF(ISBLANK(I31), "", I31) -> 
B57: 0 | C57: 18 | G57: =IF(ISBLANK(I32), "", I32) -> 
B58: 0 | C58: 19 | G58: =IF(ISBLANK(I33), "", I33) -> 
B59: 0 | C59: 0 | G59: =IF(ISBLANK(I34), "", I34) -> 
E62: Customer Class: | F62: =E15 -> RESIDENTIAL SERVICE CLASSIFICATION | L62: =IF(O14="DEMAND - INTERVAL","RTSR - INTERVAL METERED","") -> 
E63: RPP / Non-RPP: | F63: =H15 -> RPP | I63: Class B
E64: Consumption | F64: =K15 -> 750 | G64: kWh
E65: Demand | F65: =L15 -> 0 | G65: kW
E66: Current Loss Factor | F66: =I15 -> 1.0369
E67: Proposed/Approved Loss Factor | F67: =J15 -> 1.0369
G69: Current OEB-Approved | J69: Proposed | M69: Impact
G70: Rate | H70: Volume | I70: Charge | J70: Rate | K70: Volume | L70: Charge | M70: $ Change | N70: % Change
G71: ($) | I71: ($) | J71: ($) | L71: ($)
A72: =F62 -> RESIDENTIAL SERVICE CLASSIFICATION | D72: R_F | E72: Monthly Service Charge | G72: =IFERROR(SUMIF(RATES!B:B,'21. Bill Impacts'!D72,RATES!H:H),"") -> 21.63 | H72: 1 | I72: =H72*G72 -> 21.63 | J72: =IFERROR(SUMIF(RATES!B:B,'21. Bill Impacts'!D72,RATES!I:I),"") -> 24.83 | K72: 1 | L72: =K72*J72 -> 24.83 | M72: =L72-I72 -> 3.2 | N72: =IF(ISERROR(M72/I72), "", M72/I72) -> 0.1479426722
A73: =A72 -> RESIDENTIAL SERVICE CLASSIFICATION | D73: R_V | E73: Distribution Volumetric Rate | G73: =IFERROR(SUMIF(RATES!B:B,'21. Bill Impacts'!D73,RATES!H:H),"") -> 0.0088 | H73: =IF($F65>0, $F65, $F64) -> 750 | I73: =H73*G73 -> 6.6 | J73: =IFERROR(SUMIF(RATES!B:B,'21. Bill Impacts'!D73,RATES!I:I),"") -> 0.0044 | K73: =IF($F65>0, $F65, $F64) -> 750 | L73: =K73*J73 -> 3.3 | M73: -3.3 | N73: =IF(ISERROR(M73/I73), "", M73/I73) -> -0.5
A74: =A73 -> RESIDENTIAL SERVICE CLASSIFICATION | D74: R_FRR | E74: Fixed Rate Riders | G74: =IFERROR(SUMIF(RATES!B:B,'21. Bill Impacts'!D74,RATES!H:H),"") -> 0.25 | H74: 1 | I74: 0.25 | J74: =IFERROR(SUMIF(RATES!B:B,'21. Bill Impacts'!D74,RATES!I:I),"") -> 0.31 | K74: 1 | L74: =K74*J74 -> 0.31 | M74: 0.06 | N74: 0.24
A75: =A74 -> RESIDENTIAL SERVICE CLASSIFICATION | D75: R_VRR | E75: Volumetric Rate Riders | G75: =IFERROR(SUMIF(RATES!B:B,'21. Bill Impacts'!D75,RATES!H:H),"") -> 0 | H75: =IF($F65>0, $F65, $F64) -> 750 | I75: 0 | J75: =IFERROR(SUMIF(RATES!B:B,'21. Bill Impacts'!D75,RATES!I:I),"") -> 0.0003 | K75: =IF($F65>0, $F65, $F64) -> 750 | L75: 0.225 | M75: 0.225
A76: RESIDENTIAL SERVICE CLASSIFICATION | B76: ST_A | C76: =B15 -> 1 | E76: Sub-Total A (excluding pass through) | I76: =SUM(I72:I75) -> 28.48 | L76: =SUM(L72:L75) -> 28.665 | M76: 0.185 | N76: =IF((I76)=0,"",(M76/I76)) -> 0.006495786517
A77: RESIDENTIAL SERVICE CLASSIFICATION | E77: Line Losses on Cost of Power | G77: =IF((F64*12>=150000), 0, IF(F63="RPP",(G91*0.65+G92*0.17+G93*0.18),IF(F63="Non-RPP (Retailer)",G94,G95))) -> 0.08199 | H77: =IF(G77=0, 0, $F64*F66-F64) -> 27.675 | I77: =H77*G77 -> 2.26907325 | J77: =IF((F64*12>=150000), 0, IF(F63="RPP",(J91*0.65+J92*0.17+J93*0.18),IF(F63="Non-RPP (Retailer)",J94,J95))) -> 0.08199 | K77: =IF(G77=0, 0, $F64*F66-F64) -> 27.675 | L77: =K77*J77 -> 2.26907325 | M77: =L77-I77 -> 0 | N77: =IF(ISERROR(M77/I77), "", M77/I77) -> 0
A78: RESIDENTIAL SERVICE CLASSIFICATION | D78: R_DVA | E78: Total Deferral/Variance Account Rate Riders | G78: =IFERROR(SUMIF(RATES!B:B,'21. Bill Impacts'!D78,RATES!H:H),"") -> -0.0028 | H78: =IF($F65>0, $F65, $F64) -> 750 | I78: -2.1 | J78: =IFERROR(SUMIF(RATES!B:B,'21. Bill Impacts'!D78,RATES!I:I),"") -> -0.0038 | K78: =IF($F65>0, $F65, $F64) -> 750 | L78: -2.85 | M78: -0.75 | N78: 0.3571428571
A79: RESIDENTIAL SERVICE CLASSIFICATION | D79: R_GA | E79: GA Rate Riders
A80: RESIDENTIAL SERVICE CLASSIFICATION | D80: R_LV | E80: Low Voltage Service Charge | G80: =IFERROR(SUMIF(RATES!B:B,'21. Bill Impacts'!D80,RATES!H:H),"") -> 0.0005 | H80: =IF($F65>0, $F65, $F64) -> 750 | I80: 0.375 | J80: =IFERROR(SUMIF(RATES!B:B,'21. Bill Impacts'!D80,RATES!I:I),"") -> 0.0005 | K80: =IF($F65>0, $F65, $F64) -> 750 | L80: 0.375 | M80: 0 | N80: 0
A81: RESIDENTIAL SERVICE CLASSIFICATION | D81: R_FDVA | E81: Smart Meter Entity Charge (if applicable) and/or any fixed ($) Deferral/Variance Account Rate Riders | G81: =IFERROR(SUMIF(RATES!B:B,'21. Bill Impacts'!D81,RATES!H:H),"") -> 0.75 | H81: 1 | I81: =H81*G81 -> 0.75 | J81: =IFERROR(SUMIF(RATES!B:B,'21. Bill Impacts'!D81,RATES!I:I),"") -> 0.57 | K81: 1 | L81: =K81*J81 -> 0.57 | M81: -0.18 | N81: =IF(ISERROR(M81/I81), "", M81/I81) -> -0.24
A82: RESIDENTIAL SERVICE CLASSIFICATION | B82: ST_B | C82: =B15 -> 1 | E82: Sub-Total B - Distribution (includes Sub-Total A) | I82: =SUM(I76:I81) -> 29.77407325 | L82: =SUM(L76:L81) -> 29.02907325 | M82: -0.745 | N82: =IF((I82)=0,"",(M82/I82)) -> -0.02502176957
A83: RESIDENTIAL SERVICE CLASSIFICATION | D83: R_TN | E83: RTSR - Network | G83: =IFERROR(SUMIF(RATES!B:B,'21. Bill Impacts'!D83,RATES!H:H),"") -> 0.0075 | H83: =IF($F65>0, $F65, $F64*$F66) -> 777.675 | I83: =H83*G83 -> 5.8325625 | J83: =IFERROR(SUMIF(RATES!B:B,'21. Bill Impacts'!D83,RATES!I:I),"") -> 0.0073 | K83: =IF($F65>0, $F65, $F64*$F66) -> 777.675 | L83: =K83*J83 -> 5.6770275 | M83: -0.155535 | N83: =IF(ISERROR(M83/I83), "", M83/I83) -> -0.02666666667
A84: RESIDENTIAL SERVICE CLASSIFICATION | D84: R_TC | E84: RTSR - Connection and/or Line and Transformation Connection | G84: =IFERROR(SUMIF(RATES!B:B,'21. Bill Impacts'!D84,RATES!H:H),"") -> 0.004 | H84: =IF($F65>0, $F65, $F64*$F66) -> 777.675 | I84: =H84*G84 -> 3.1107 | J84: =IFERROR(SUMIF(RATES!B:B,'21. Bill Impacts'!D84,RATES!I:I),"") -> 0.004 | K84: =IF($F65>0, $F65, $F64*$F66) -> 777.675 | L84: =K84*J84 -> 3.1107 | M84: 0 | N84: =IF(ISERROR(M84/I84), "", M84/I84) -> 0
A85: RESIDENTIAL SERVICE CLASSIFICATION | B85: ST_C | C85: =B15 -> 1 | E85: Sub-Total C - Delivery (including Sub-Total B) | I85: =SUM(I82:I84) -> 38.71733575 | L85: =SUM(L82:L84) -> 37.81680075 | M85: -0.900535 | N85: =IF((I85)=0,"",(M85/I85)) -> -0.02325921922
A86: RESIDENTIAL SERVICE CLASSIFICATION | E86: Wholesale Market Service Charge (WMSC) | G86: 0.0036 | H86: =F64*F66 -> 777.675 | I86: =H86*G86 -> 2.79963 | J86: 0.0036 | K86: =F64*F66 -> 777.675 | L86: =K86*J86 -> 2.79963 | M86: 0 | N86: =IF(ISERROR(M86/I86), "", M86/I86) -> 0
A87: RESIDENTIAL SERVICE CLASSIFICATION | E87: Rural and Remote Rate Protection (RRRP) | G87: 0.0003 | H87: =F64*F66 -> 777.675 | I87: 0.2333025 | J87: 0.0003 | K87: =F64*F66 -> 777.675 | L87: 0.2333025 | M87: 0 | N87: 0
A88: RESIDENTIAL SERVICE CLASSIFICATION | E88: Standard Supply Service Charge | G88: 0.25 | H88: 1 | I88: 0.25 | J88: 0.25 | K88: 1 | L88: 0.25 | M88: 0 | N88: 0
A89: RESIDENTIAL SERVICE CLASSIFICATION | E89: Debt Retirement Charge (DRC)
A90: RESIDENTIAL SERVICE CLASSIFICATION | M90: 0
A91: RESIDENTIAL SERVICE CLASSIFICATION | B91: RPP | E91: TOU - Off Peak | G91: 0.065 | H91: =IF(AND(F64*12>=150000),0.65*F64*F66,0.65*F64) -> 487.5 | I91: 31.6875 | J91: 0.065 | K91: =IF(AND(F64*12>=150000),0.65*F64*F67,0.65*F64) -> 487.5 | L91: 31.6875 | M91: 0 | N91: 0
A92: RESIDENTIAL SERVICE CLASSIFICATION | B92: RPP | E92: TOU - Mid Peak | G92: 0.094 | H92: =IF(AND(F64*12>=150000),0.17*F64*F66,0.17*F64) -> 127.5 | I92: 11.985 | J92: =G92 -> 0.094 | K92: =IF(AND(F64*12>=150000),0.17*F64*F67,0.17*F64) -> 127.5 | L92: 11.985 | M92: 0 | N92: 0
A93: RESIDENTIAL SERVICE CLASSIFICATION | B93: RPP | E93: TOU - On Peak | G93: 0.132 | H93: =IF(AND(F64*12>=150000),0.18*F64*F66,0.18*F64) -> 135 | I93: 17.82 | J93: 0.132 | K93: =IF(AND(F64*12>=150000),0.18*F64*F67,0.18*F64) -> 135 | L93: 17.82 | M93: 0 | N93: 0
A94: RESIDENTIAL SERVICE CLASSIFICATION | B94: Non-RPP (Retailer) | E94: Non-RPP Retailer Avg. Price | G94: =0.1038 -> 0.1038 | H94: =IF(AND(F64*12>=150000),F64*F66,F64) -> 750 | I94: =H94*G94 -> 77.85 | J94: =G94 -> 0.1038 | K94: =IF(AND(F64*12>=150000),F64*F67,F64) -> 750 | L94: =K94*J94 -> 77.85 | M94: 0 | N94: 0
A95: RESIDENTIAL SERVICE CLASSIFICATION | B95: Non-RPP (Other) | E95: Average IESO Wholesale Market Price | G95: =G94 -> 0.1038 | H95: =IF(AND(F64*12>=150000),F64*F66,F64) -> 750 | I95: =H95*G95 -> 77.85 | J95: =G95 -> 0.1038 | K95: =IF(AND(F64*12>=150000),F64*F67,F64) -> 750 | L95: =K95*J95 -> 77.85 | M95: 0 | N95: 0
A96: RESIDENTIAL SERVICE CLASSIFICATION
A97: RESIDENTIAL SERVICE CLASSIFICATION | B97: RPP_BT | C97: 1 | E97: Total Bill on TOU (before Taxes) | I97: =SUM(I86:I93,I85) -> 103.4927682 | L97: =SUM(L86:L93,L85) -> 102.5922332 | M97: =L97-I97 -> -0.900535 | N97: =IF((I97)=0,"",(M97/I97)) -> -0.008701429242
A98: RESIDENTIAL SERVICE CLASSIFICATION | B98: RPP | E98: HST | G98: 0.13 | I98: =I97*G98 -> 13.45405987 | J98: 0.13 | L98: =L97*J98 -> 13.33699032 | M98: =L98-I98 -> -0.11706955 | N98: =IF((I98)=0,"",(M98/I98)) -> -0.008701429242
A99: RESIDENTIAL SERVICE CLASSIFICATION | B99: RPP_NET | C99: 1 | E99: Total Bill on TOU (before 8% Provincial Rebate) | I99: =SUM(I97:I98) -> 116.9468281 | L99: =SUM(L97:L98) -> 115.9292236 | M99: =SUM(M97:M98) -> -1.01760455 | N99: =IF((I99)=0,"",(M99/I99)) -> -0.008701429242
A100: =A98 -> RESIDENTIAL SERVICE CLASSIFICATION | B100: RPP | E100: 8% Provincial Rebate | G100: -0.08 | I100: =I97*G100 -> -8.27942146 | J100: =G100 -> -0.08 | L100: =L97*J100 -> -8.20737866 | M100: =L100-I100 -> 0.0720428 | N100: =IF((I100)=0,"",(M100/I100)) -> -0.008701429242
A101: RESIDENTIAL SERVICE CLASSIFICATION | B101: RPP_TOTAL | C101: =B15 -> 1 | E101: Total Bill on TOU | I101: =SUM(I97,I98,I100) -> 108.6674067 | L101: =L97+L98+L100 -> 107.7218449 | M101: =L101-I101 -> -0.94556175 | N101: =IF((I101)=0,"",(M101/I101)) -> -0.008701429242
A102: RESIDENTIAL SERVICE CLASSIFICATION | B102: RPP
A103: RESIDENTIAL SERVICE CLASSIFICATION | B103: Non-RPP (Retailer) | E103: Total Bill on Non-RPP Avg. Price | I103: =SUM(I94,I86:I90,I85) -> 119.8502682 | L103: =SUM(L94,L86:L90,L85) -> 118.9497332 | M103: =L103-I103 -> -0.900535 | N103: =IF((I103)=0,"",(M103/I103)) -> -0.007513833829
A104: RESIDENTIAL SERVICE CLASSIFICATION | B104: Non-RPP (Retailer) | E104: HST | G104: 0.13 | I104: =I103*G104 -> 15.58053487 | J104: 0.13 | L104: =L103*J104 -> 15.46346532 | M104: =L104-I104 -> -0.11706955 | N104: =IF((I104)=0,"",(M104/I104)) -> -0.007513833829
A105: RESIDENTIAL SERVICE CLASSIFICATION | B105: Non-RPP (Retailer) | E105: Provincial Rebate | G105: -0.08 | I105: =I103*G105 -> -9.58802146 | J105: =G105 -> -0.08 | L105: =L103*J105 -> -9.51597866 | M105: =L105-I105 -> 0.0720428 | N105: =IF((I105)=0,"",(M105/I105)) -> -0.007513833829
A106: RESIDENTIAL SERVICE CLASSIFICATION | B106: Non-RPP (Retailer)_TOTAL | E106: Total Bill on Non-RPP Avg. Price | I106: =SUM(I103,I104,I105) -> 125.8427817 | L106: =SUM(L103,L104,L105) -> 124.8972199 | M106: =L106-I106 -> -0.94556175 | N106: =IF((I106)=0,"",(M106/I106)) -> -0.007513833829
A107: RESIDENTIAL SERVICE CLASSIFICATION | B107: Non-RPP (Retailer)
A108: RESIDENTIAL SERVICE CLASSIFICATION | B108: Non-RPP (Other) | E108: Total Bill on Average IESO Wholesale Market Price | I108: =SUM(I95,I86:I90,I85) -> 119.8502682 | L108: =SUM(L95,L86:L90,L85) -> 118.9497332 | M108: =L108-I108 -> -0.900535 | N108: =IF((I108)=0,"",(M108/I108)) -> -0.007513833829
A109: RESIDENTIAL SERVICE CLASSIFICATION | B109: Non-RPP (Other) | E109: HST | G109: 0.13 | I109: =I108*G109 -> 15.58053487 | J109: 0.13 | L109: =L108*J109 -> 15.46346532 | M109: =L109-I109 -> -0.11706955 | N109: =IF((I109)=0,"",(M109/I109)) -> -0.007513833829
A110: RESIDENTIAL SERVICE CLASSIFICATION | B110: Non-RPP (Other) | E110: Provincial Rebate | G110: -0.08 | I110: =I108*G110 -> -9.58802146 | J110: =G110 -> -0.08 | L110: =L108*J110 -> -9.51597866 | M110: =L110-I110 -> 0.0720428 | N110: =IF((I110)=0,"",(M110/I110)) -> -0.007513833829
